Workbook

Sheet 目錄
A1: 101 年 交 通 事 業 人 力 及 設 備 報 告
A2: 目 錄
A3: 壹、人力
B4: 表1 交通部及所屬機關（構）員工人數
B5: 表2 交通部及所屬機關 (構) 正式職員人數
A6: 貳、設備
B7: 表3 臺灣地區鐵路里程及車站數
B8: 表4 臺灣地區鐵路客貨車輛數
B9: 表5 臺灣鐵路管理局路線里程、橋梁、隧道及平交道
B10: 表6 臺灣鐵路管理局客貨車輛數
B11: 表7 臺灣鐵路管理局客貨車輛數按已用年數分
B12: 表8 臺灣鐵路管理局車站數按等級別分
B13: 表9 臺北大眾捷運公司營運路線、里程及車站數
B14: 表10 高雄捷運公司營運路線、里程及車站數
B15: 表11 臺灣地區道路長度
B16: 表12 臺灣地區道路路面面積
B17: 表13 臺灣地區道路橋梁座數概況
B18: 表14 臺灣地區省道路線里程、橋梁及隧道
B19: 表15 臺灣地區國道路線里程、橋梁、隧道、收費站、交流道
B20: 及服務區
B21: 表16 汽車運輸業家數
B22: 表17 機動車輛登記數
B23: 表18 機動車輛登記數按車齡分
B24: 表19 臺灣地區小型汽車停車位概況按縣市分
B25: 表20 國籍航空公司適航航空器按航空公司及機種分
B26: 表21 國籍航空公司適航航空器按航空公司及機齡分
B27: 表22 民航機場設施
B28: 表23 民航機場助導航及航管設施
B29: 表24 國籍船舶登記數
B30: 表25 臺灣地區港埠概況
B31: 表26 臺灣地區港埠機具及車輛
B32: 表27 基隆港碼頭概況
B33: 表28 蘇澳港碼頭概況
B34: 表29 臺北港碼頭概況
B35: 表30 高雄港碼頭概況
B36: 表31 安平港碼頭概況
B37: 表32 花蓮港碼頭概況
B38: 表33 臺中港碼頭概況
B39: 表34 中華郵政股份有限公司主要設備及郵路里程
B40: 表35 觀光遊憩區統計
B41: 表36 觀光旅館概況
B42: 表37 觀光旅館按縣市別分
B43: 表38 一般旅館按縣市別分
B44: 表39 觀光旅館及一般旅館家數按房間規模分
B45: 表40 旅行業家數
B46: 表41 氣象測站概況

Sheet 表1
A1: 表１ 交通部及所屬機關 ( 構 ) 員工人數 | I1: 表１ 交通部及所屬機關 ( 構 ) 員工人數 ( 續 1 ) | Y1: 表１ 交通部及所屬機關 ( 構 ) 員工人數 ( 續 2 ) | AF1: 表１ 交通部及所屬機關 ( 構 ) 員工人數 ( 續 3 ) | AM1: 表１ 交通部及所屬機關 ( 構 ) 員工人數 ( 續 4 ) | AT1: 表１ 交通部及所屬機關 ( 構 ) 員工人數 ( 續 5 ) | BA1: 表１ 交通部及所屬機關 ( 構 ) 員工人數 ( 續完 )
H2: 單位：人 | R2: 單位：人 | W2: 單位：人 | AE2: 單位：人 | AS2: 單位：人 | AZ2: 單位：人 | BJ2: 單位：人
A3: 年 底 別 | B3: 總 計 | D3: 交 通 部 | G3: 運 輸 研 究 所 | I3: 年 底 別 | K3: 中華郵政股份有限公司 | N3: 電 信 總 局 | Q3: 中 華 電 信 公 司 | T3: 臺 灣 鐵 路 管 理 局 | W3: 鐵 路 改 建 工 程 局 | Y3: 年 底 別 | AA3: 高 速 鐵 路 工 程 局 | AD3: 臺灣區國道高速公路 局 | AF3: 年 底 別 | AH3: 臺灣區國道新建工程局 | AK3: 公 路 總 局 | AM3: 年 底 別 | AN3: 航 | AO3: 港 | AP3: 局 | AR3: 臺灣港務股份有限公司 | AT3: 年 底 別 | AV3: 民 用 航 空 局 | AY3: 桃園國際機場股份有限公司 | BA3: 年 底 別 | BC3: 觀 光 局 | BF3: 中 央 氣 象 局 | BH3: 其 他
C4: 計 | D4: 員 | E4: 工 | F4: 計 | G4: 員 | H4: 工 | J4: 計 | K4: 員 | L4: 工 | M4: 小 計 | N4: 員 | O4: 工 | P4: 小 計 | Q4: 員 | R4: 工 | S4: 計 | T4: 員 | U4: 工 | V4: 計 | W4: 員 | X4: 工 | Z4: 計 | AA4: 員 | AB4: 工 | AC4: 計 | AD4: 員 | AE4: 工 | AG4: 計 | AH4: 員 | AI4: 工 | AJ4: 計 | AK4: 員 | AL4: 工 | AN4: 計 | AO4: 員 | AP4: 工 | AQ4: 計 | AR4: 員 | AS4: 工 | AU4: 計 | AV4: 員 | AW4: 工 | AX4: 計 | AY4: 員 | AZ4: 工 | BB4: 計 | BC4: 員 | BD4: 工 | BE4: 計 | BF4: 員 | BG4: 工 | BH4: 計 | BI4: 員 | BJ4: 工
A6: 60年底 | B6: 23635 | C6: =SUM(D6:E6) -> 183 | D6: 148 | E6: 35 | F6: =SUM(G6:H6) -> 147 | G6: 122 | H6: 25 | I6: 60年底 | J6: =SUM(K6:L6) -> 8318 | K6: 4140 | L6: 4178 | M6: =SUM(N6:O6) -> 12229 | N6: 9122 | O6: 3107 | P6: － | Q6: － | R6: － | S6: － | T6: － | U6: － | V6: － | W6: － | X6: － | Y6: 60年底 | Z6: － | AA6: － | AB6: － | AC6: =SUM(AD6:AE6) -> 327 | AD6: 281 | AE6: 46 | AF6: 60年底 | AG6: － | AH6: － | AI6: － | AJ6: － | AK6: － | AL6: － | AM6: 60年底 | AN6: － | AO6: － | AP6: － | AQ6: － | AR6: － | AS6: － | AT6: 60年底 | AU6: =SUM(AV6:AW6) -> 597 | AV6: 402 | AW6: 195 | AX6: － | AY6: － | AZ6: － | BA6: 60年底 | BB6: =SUM(BC6:BD6) -> 95 | BC6: 81 | BD6: 14 | BE6: =SUM(BF6:BG6) -> 520 | BF6: 416 | BG6: 104 | BH6: =SUM(BI6:BJ6) -> 13448 | BI6: 9255 | BJ6: 4193
A7: 70年底 | B7: 49281 | C7: 203 | D7: 166 | E7: 37 | F7: 117 | G7: 94 | H7: 23 | I7: 70年底 | J7: 16102 | K7: 6700 | L7: 9402 | M7: 27184 | N7: 21355 | O7: 5829 | P7: － | Q7: － | R7: － | S7: － | T7: － | U7: － | V7: － | W7: － | X7: － | Y7: 70年底 | Z7: － | AA7: － | AB7: － | AC7: 714 | AD7: 650 | AE7: 64 | AF7: 70年底 | AG7: － | AH7: － | AI7: － | AJ7: － | AK7: － | AL7: － | AM7: 70年底 | AN7: － | AO7: － | AP7: － | AQ7: － | AR7: － | AS7: － | AT7: 70年底 | AU7: 2607 | AV7: 1605 | AW7: 1002 | AX7: － | AY7: － | AZ7: － | BA7: 70年底 | BB7: 137 | BC7: 114 | BD7: 23 | BE7: 560 | BF7: 446 | BG7: 114 | BH7: 28841 | BI7: 22126 | BJ7: 6715
A8: 80年底 | B8: 73940 | C8: 246 | D8: 209 | E8: 37 | F8: 103 | G8: 88 | H8: 15 | I8: 80年底 | J8: 28585 | K8: 14834 | L8: 13751 | M8: 36589 | N8: 25057 | O8: 11532 | P8: － | Q8: － | R8: － | S8: － | T8: － | U8: － | V8: =SUM(W8:X8) -> 479 | W8: 131 | X8: 348 | Y8: 80年底 | Z8: =SUM(AA8:AB8) -> 149 | AA8: 114 | AB8: 35 | AC8: 1207 | AD8: 997 | AE8: 210 | AF8: 80年底 | AG8: =SUM(AH8:AI8) -> 568 | AH8: 434 | AI8: 134 | AJ8: － | AK8: － | AL8: － | AM8: 80年底 | AN8: － | AO8: － | AP8: － | AQ8: － | AR8: － | AS8: － | AT8: 80年底 | AU8: 3261 | AV8: 2440 | AW8: 821 | AX8: － | AY8: － | AZ8: － | BA8: 80年底 | BB8: 370 | BC8: 299 | BD8: 71 | BE8: 681 | BF8: 559 | BG8: 122 | BH8: 38291 | BI8: 25988 | BJ8: 12303
A9: 89年底 | C9: 497 | D9: 438 | E9: 59 | F9: 194 | G9: 151 | H9: 43 | I9: 89年底 | J9: 26237 | K9: 14423 | L9: 11814 | M9: 494 | N9: 471 | O9: 23 | P9: =SUM(Q9:R9) -> 34707 | Q9: 25118 | R9: 9589 | S9: =SUM(T9:U9) -> 16928 | T9: 15907 | U9: 1021 | V9: 1178 | W9: 384 | X9: 794 | Y9: 89年底 | Z9: 273 | AA9: 245 | AB9: 28 | AC9: 2502 | AD9: 2116 | AE9: 386 | AF9: 89年底 | AG9: 955 | AH9: 721 | AI9: 234 | AJ9: =SUM(AK9:AL9) -> 6669 | AK9: 6301 | AL9: 368 | AM9: 89年底 | AN9: － | AO9: － | AP9: － | AQ9: － | AR9: － | AS9: － | AT9: 89年底 | AU9: 4055 | AV9: 3272 | AW9: 783 | AX9: － | AY9: － | AZ9: － | BA9: 89年底 | BB9: 614 | BC9: 497 | BD9: 117 | BE9: 709 | BF9: 604 | BG9: 105 | BH9: 973 | BI9: 43 | BJ9: 930
A10: 90年底 | B10: 96798 | C10: 469 | D10: 416 | E10: 53 | F10: 191 | G10: 149 | H10: 42 | I10: 90年底 | J10: 25929 | K10: 14331 | L10: 11598 | M10: 494 | N10: 470 | O10: 24 | P10: =SUM(Q10:R10) -> 31421 | Q10: 23162 | R10: 8259 | S10: 16143 | T10: 15218 | U10: 925 | V10: 824 | W10: 382 | X10: 442 | Y10: 90年底 | Z10: 279 | AA10: 251 | AB10: 28 | AC10: 2466 | AD10: 2080 | AE10: 386 | AF10: 90年底 | AG10: 923 | AH10: 692 | AI10: 231 | AJ10: 6446 | AK10: 6207 | AL10: 239 | AM10: 90年底 | AN10: － | AO10: － | AP10: － | AQ10: － | AR10: － | AS10: － | AT10: 90年底 | AU10: 4089 | AV10: 3314 | AW10: 775 | AX10: － | AY10: － | AZ10: － | BA10: 90年底 | BB10: 697 | BC10: 580 | BD10: 117 | BE10: 709 | BF10: 608 | BG10: 101 | BH10: 32917 | BI10: 23683 | BJ10: 9234
A11: 91年底 | C11: 446 | D11: 397 | E11: 49 | F11: 189 | G11: 150 | H11: 39 | I11: 91年底 | J11: 25304 | K11: 14132 | L11: 11172 | M11: 496 | N11: 472 | O11: 24 | P11: =SUM(Q11:R11) -> 28969 | Q11: 21149 | R11: 7820 | S11: 15097 | T11: 14354 | U11: 743 | V11: 790 | W11: 377 | X11: 413 | Y11: 91年底 | Z11: 283 | AA11: 257 | AB11: 26 | AC11: 2305 | AD11: 2072 | AE11: 233 | AF11: 91年底 | AG11: 876 | AH11: 663 | AI11: 213 | AJ11: 6443 | AK11: 6213 | AL11: 230 | AM11: 91年底 | AN11: － | AO11: － | AP11: － | AQ11: － | AR11: － | AS11: － | AT11: 91年底 | AU11: 4094 | AV11: 3350 | AW11: 744 | AX11: － | AY11: － | AZ11: － | BA11: 91年底 | BB11: 690 | BC11: 575 | BD11: 115 | BE11: 695 | BF11: 602 | BG11: 93 | BH11: 24601 | BI11: 23673 | BJ11: 928
A12: 92年底 | C12: =SUM(D12:E12) -> 455 | D12: 406 | E12: 49 | F12: =SUM(G12:H12) -> 183 | G12: 144 | H12: 39 | I12: 92年底 | J12: =SUM(K12:L12) -> 24846 | K12: 13081 | L12: 11765 | M12: =SUM(N12:O12) -> 492 | N12: 468 | O12: 24 | P12: =SUM(Q12:R12) -> 29072 | Q12: 20997 | R12: 8075 | S12: 14206 | T12: 13569 | U12: 637 | V12: 791 | W12: 364 | X12: 427 | Y12: 92年底 | Z12: 278 | AA12: 252 | AB12: 26 | AC12: =SUM(AD12:AE12) -> 2212 | AD12: 1983 | AE12: 229 | AF12: 92年底 | AG12: 858 | AH12: 648 | AI12: 210 | AJ12: 6372 | AK12: 6147 | AL12: 225 | AM12: 92年底 | AN12: － | AO12: － | AP12: － | AQ12: － | AR12: － | AS12: － | AT12: 92年底 | AU12: =SUM(AV12:AW12) -> 4058 | AV12: 3326 | AW12: 732 | AX12: － | AY12: － | AZ12: － | BA12: 92年底 | BB12: =SUM(BC12:BD12) -> 691 | BC12: 578 | BD12: 113 | BE12: =SUM(BF12:BG12) -> 666 | BF12: 575 | BG12: 91 | BH12: 23673 | BI12: 23673 | BJ12: －
A13: 93年底 | C13: =SUM(D13:E13) -> 451 | D13: 405 | E13: 46 | F13: =SUM(G13:H13) -> 179 | G13: 140 | H13: 39 | I13: 93年底 | J13: =SUM(K13:L13) -> 24557 | K13: 12960 | L13: 11597 | M13: =SUM(N13:O13) -> 483 | N13: 459 | O13: 24 | P13: =SUM(Q13:R13) -> 28518 | Q13: 20461 | R13: 8057 | S13: 13839 | T13: 13273 | U13: 566 | V13: 782 | W13: 362 | X13: 420 | Y13: 93年底 | Z13: 278 | AA13: 253 | AB13: 25 | AC13: =SUM(AD13:AE13) -> 2039 | AD13: 1814 | AE13: 225 | AF13: 93年底 | AG13: 821 | AH13: 624 | AI13: 197 | AJ13: 6214 | AK13: 5997 | AL13: 217 | AM13: 93年底 | AN13: － | AO13: － | AP13: － | AQ13: － | AR13: － | AS13: － | AT13: 93年底 | AU13: =SUM(AV13:AW13) -> 4502 | AV13: 3263 | AW13: 1239 | AX13: － | AY13: － | AZ13: － | BA13: 93年底 | BB13: =SUM(BC13:BD13) -> 689 | BC13: 568 | BD13: 121 | BE13: =SUM(BF13:BG13) -> 659 | BF13: 570 | BG13: 89 | BH13: 29012 | BI13: 20926 | BJ13: 8086
A14: 94年底 | C14: =SUM(D14:E14) -> 446 | D14: 400 | E14: 46 | F14: =SUM(G14:H14) -> 187 | G14: 148 | H14: 39 | I14: 94年底 | J14: =SUM(K14:L14) -> 24987 | K14: 12922 | L14: 12065 | M14: =SUM(N14:O14) -> 484 | N14: 460 | O14: 24 | P14: － | Q14: － | R14: － | S14: 13769 | T14: 13228 | U14: 541 | V14: =SUM(W14:X14) -> 726 | W14: 341 | X14: 385 | Y14: 94年底 | Z14: =SUM(AA14:AB14) -> 267 | AA14: 245 | AB14: 22 | AC14: =SUM(AD14:AE14) -> 1947 | AD14: 1725 | AE14: 222 | AF14: 94年底 | AG14: =SUM(AH14:AI14) -> 798 | AH14: 606 | AI14: 192 | AJ14: 6146 | AK14: 5938 | AL14: 208 | AM14: 94年底 | AN14: － | AO14: － | AP14: － | AQ14: － | AR14: － | AS14: － | AT14: 94年底 | AU14: =SUM(AV14:AW14) -> 4435 | AV14: 3247 | AW14: 1188 | AX14: － | AY14: － | AZ14: － | BA14: 94年底 | BB14: =SUM(BC14:BD14) -> 734 | BC14: 617 | BD14: 117 | BE14: =SUM(BF14:BG14) -> 663 | BF14: 580 | BG14: 83 | BH14: =SUM(BI14:BJ14) -> 490 | BI14: 466 | BJ14: 24
A15: 95年底 | B15: 57867 | C15: =SUM(D15:E15) -> 464 | D15: 420 | E15: 44 | F15: =SUM(G15:H15) -> 183 | G15: 144 | H15: 39 | I15: 95年底 | J15: =SUM(K15:L15) -> 24411 | K15: 12733 | L15: 11678 | M15: － | N15: － | O15: － | P15: － | Q15: － | R15: － | S15: =SUM(T15:U15) -> 13363 | T15: 12763 | U15: 600 | V15: =SUM(W15:X15) -> 707 | W15: 340 | X15: 367 | Y15: 95年底 | Z15: =SUM(AA15:AB15) -> 286 | AA15: 266 | AB15: 20 | AC15: =SUM(AD15:AE15) -> 1826 | AD15: 1605 | AE15: 221 | AF15: 95年底 | AG15: =SUM(AH15:AI15) -> 771 | AH15: 587 | AI15: 184 | AJ15: =SUM(AK15:AL15) -> 6050 | AK15: 5850 | AL15: 200 | AM15: 95年底 | AN15: － | AO15: － | AP15: － | AQ15: － | AR15: － | AS15: － | AT15: 95年底 | AU15: =SUM(AV15:AW15) -> 4451 | AV15: 3589 | AW15: 862 | AX15: － | AY15: － | AZ15: － | BA15: 95年底 | BB15: =SUM(BC15:BD15) -> 803 | BC15: 680 | BD15: 123 | BE15: =SUM(BF15:BG15) -> 681 | BF15: 600 | BG15: 81 | BH15: =SUM(BI15:BJ15) -> 6 | BI15: 6 | BJ15: －
A16: 96年底 | B16: 57031 | C16: =SUM(D16:E16) -> 468 | D16: 424 | E16: 44 | F16: =SUM(G16:H16) -> 177 | G16: 140 | H16: 37 | I16: 96年底 | J16: =SUM(K16:L16) -> 24400 | K16: 12644 | L16: 11756 | M16: － | N16: － | O16: － | P16: － | Q16: － | R16: － | S16: =SUM(T16:U16) -> 13221 | T16: 12621 | U16: 600 | V16: =SUM(W16:X16) -> 773 | W16: 438 | X16: 335 | Y16: 96年底 | Z16: =SUM(AA16:AB16) -> 409 | AA16: 360 | AB16: 49 | AC16: =SUM(AD16:AE16) -> 1752 | AD16: 1535 | AE16: 217 | AF16: 96年底 | AG16: =SUM(AH16:AI16) -> 503 | AH16: 387 | AI16: 116 | AJ16: =SUM(AK16:AL16) -> 5847 | AK16: 5657 | AL16: 190 | AM16: 96年底 | AN16: － | AO16: － | AP16: － | AQ16: － | AR16: － | AS16: － | AT16: 96年底 | AU16: =SUM(AV16:AW16) -> 4217 | AV16: 3358 | AW16: 859 | AX16: － | AY16: － | AZ16: － | BA16: 96年底 | BB16: =SUM(BC16:BD16) -> 798 | BC16: 683 | BD16: 115 | BE16: =SUM(BF16:BG16) -> 678 | BF16: 603 | BG16: 75 | BH16: =SUM(BI16:BJ16) -> 4 | BI16: 4 | BJ16: －
A18: 97年底 | B18: 57023 | C18: =SUM(D18:E18) -> 471 | D18: 427 | E18: 44 | F18: =SUM(G18:H18) -> 173 | G18: 138 | H18: 35 | I18: 97年底 | J18: =SUM(K18:L18) -> 24520 | K18: 12660 | L18: 11860 | S18: =SUM(T18:U18) -> 13494 | T18: 12898 | U18: 596 | V18: =SUM(W18:X18) -> 778 | W18: 448 | X18: 330 | Y18: 97年底 | Z18: =SUM(AA18:AB18) -> 429 | AA18: 381 | AB18: 48 | AC18: =SUM(AD18:AE18) -> 1700 | AD18: 1482 | AE18: 218 | AF18: 97年底 | AG18: =SUM(AH18:AI18) -> 433 | AH18: 333 | AI18: 100 | AJ18: =SUM(AK18:AL18) -> 5696 | AK18: 5508 | AL18: 188 | AM18: 97年底 | AN18: － | AO18: － | AP18: － | AQ18: － | AR18: － | AS18: － | AT18: 97年底 | AU18: =SUM(AV18:AW18) -> 4119 | AV18: 3289 | AW18: 830 | AX18: － | AY18: － | AZ18: － | BA18: 97年底 | BB18: 843 | BC18: 733 | BD18: 110 | BE18: =SUM(BF18:BG18) -> 670 | BF18: 599 | BG18: 71 | BH18: =SUM(BI18:BJ18) -> 4 | BI18: 4 | BJ18: －
A19: 98年底 | B19: 56573 | C19: =SUM(D19:E19) -> 485 | D19: 438 | E19: 47 | F19: =SUM(G19:H19) -> 174 | G19: 140 | H19: 34 | I19: 98年底 | J19: =SUM(K19:L19) -> 24236 | K19: 12609 | L19: 11627 | S19: =SUM(T19:U19) -> 13473 | T19: 12868 | U19: 605 | V19: =SUM(W19:X19) -> 897 | W19: 509 | X19: 388 | Y19: 98年底 | Z19: =SUM(AA19:AB19) -> 416 | AA19: 369 | AB19: 47 | AC19: =SUM(AD19:AE19) -> 1674 | AD19: 1457 | AE19: 217 | AF19: 98年底 | AG19: =SUM(AH19:AI19) -> 412 | AH19: 320 | AI19: 92 | AJ19: =SUM(AK19:AL19) -> 5627 | AK19: 5441 | AL19: 186 | AM19: 98年底 | AN19: － | AO19: － | AP19: － | AQ19: － | AR19: － | AS19: － | AT19: 98年底 | AU19: =SUM(AV19:AW19) -> 4162 | AV19: 3336 | AW19: 826 | AX19: － | AY19: － | AZ19: － | BA19: 98年底 | BB19: =SUM(BC19:BD19) -> 863 | BC19: 743 | BD19: 120 | BE19: =SUM(BF19:BG19) -> 671 | BF19: 600 | BG19: 71 | BH19: =SUM(BI19:BJ19) -> 4 | BI19: 4 | BJ19: －
A20: 99年底 | B20: 57565 | C20: =SUM(D20:E20) -> 473 | D20: 425 | E20: 48 | F20: =SUM(G20:H20) -> 169 | G20: 135 | H20: 34 | I20: 99年底 | J20: =SUM(K20:L20) -> 25362 | K20: 12165 | L20: 13197 | S20: =SUM(T20:U20) -> 13603 | T20: 13004 | U20: 599 | V20: =SUM(W20:X20) -> 866 | W20: 517 | X20: 349 | Y20: 99年底 | Z20: =SUM(AA20:AB20) -> 449 | AA20: 372 | AB20: 77 | AC20: =SUM(AD20:AE20) -> 1624 | AD20: 1407 | AE20: 217 | AF20: 99年底 | AG20: =SUM(AH20:AI20) -> 412 | AH20: 321 | AI20: 91 | AJ20: =SUM(AK20:AL20) -> 5511 | AK20: 5329 | AL20: 182 | AM20: 99年底 | AN20: － | AO20: － | AP20: － | AQ20: － | AR20: － | AS20: － | AT20: 99年底 | AU20: =SUM(AV20:AW20) -> 3778 | AV20: 3087 | AW20: 691 | AX20: =SUM(AY20:AZ20) -> 418 | AY20: 280 | AZ20: 138 | BA20: 99年底 | BB20: =SUM(BC20:BD20) -> 859 | BC20: 725 | BD20: 134 | BE20: =SUM(BF20:BG20) -> 675 | BF20: 605 | BG20: 70 | BH20: =SUM(BI20:BJ20) -> 4 | BI20: 4 | BJ20: －
A21: 100年底 | B21: 57410 | C21: =SUM(D21:E21) -> 474 | D21: 422 | E21: 52 | F21: =SUM(G21:H21) -> 169 | G21: 136 | H21: 33 | I21: 100年底 | J21: =SUM(K21:L21) -> 25389 | K21: 12078 | L21: 13311 | S21: =SUM(T21:U21) -> 13794 | T21: 13199 | U21: 595 | V21: =SUM(W21:X21) -> 802 | W21: 503 | X21: 299 | Y21: 100年底 | Z21: =SUM(AA21:AB21) -> 415 | AA21: 370 | AB21: 45 | AC21: =SUM(AD21:AE21) -> 1556 | AD21: 1342 | AE21: 214 | AF21: 100年底 | AG21: =SUM(AH21:AI21) -> 420 | AH21: 331 | AI21: 89 | AJ21: =SUM(AK21:AL21) -> 5370 | AK21: 5192 | AL21: 178 | AM21: 100年底 | AN21: － | AO21: － | AP21: － | AQ21: － | AR21: － | AS21: － | AT21: 100年底 | AU21: =SUM(AV21:AW21) -> 3745 | AV21: 3070 | AW21: 675 | AX21: =SUM(AY21:AZ21) -> 419 | AY21: 323 | AZ21: 96 | BA21: 100年底 | BB21: =SUM(BC21:BD21) -> 870 | BC21: 737 | BD21: 133 | BE21: =SUM(BF21:BG21) -> 678 | BF21: 607 | BG21: 71 | BH21: － | BI21: － | BJ21: －
A22: 101年底 | B22: 58085 | C22: =SUM(D22:E22) -> 459 | D22: 414 | E22: 45 | F22: =SUM(G22:H22) -> 173 | G22: 140 | H22: 33 | I22: 101年底 | J22: =SUM(K22:L22) -> 25596 | K22: 11770 | L22: 13826 | S22: =SUM(T22:U22) -> 13860 | T22: 13260 | U22: 600 | V22: =SUM(W22:X22) -> 798 | W22: 511 | X22: 287 | Y22: 101年底 | Z22: =SUM(AA22:AB22) -> 444 | AA22: 369 | AB22: 75 | AC22: =SUM(AD22:AE22) -> 1503 | AD22: 1292 | AE22: 211 | AF22: 101年底 | AG22: =SUM(AH22:AI22) -> 398 | AH22: 309 | AI22: 89 | AJ22: 5850 | AK22: 5566 | AL22: 284 | AM22: 101年底 | AN22: =SUM(AO22:AP22) -> 277 | AO22: 277 | AP22: － | AQ22: =SUM(AR22:AS22) -> 2911 | AR22: 2718 | AS22: 193 | AT22: 101年底 | AU22: =SUM(AV22:AW22) -> 3692 | AV22: 3034 | AW22: 658 | AX22: =SUM(AY22:AZ22) -> 428 | AY22: 426 | AZ22: 2 | BA22: 101年底 | BB22: =SUM(BC22:BD22) -> 877 | BC22: 765 | BD22: 112 | BE22: =SUM(BF22:BG22) -> 684 | BF22: 613 | BG22: 71 | BH22: － | BI22: － | BJ22: －
A24: 說明：1.本表員工人數包含正式職員、聘用、約僱人員、工 友、技工、契約工等，不包括駐警 | I24: 說明：郵政總局自92年1月1日起改制成立「中華郵政股份有限公司」。 | AM24: 說明：航港局和臺灣港務股份有限公司公司(含所屬基隆﹑臺中﹑高雄及花蓮四個港務 | AT24: 說明：桃園國際機場股份有限公司於99年11月1日成立。 | BA24: 說明：1.「其他」包括電信總局、中華電信公司、臺灣汽車客運公司、臺灣鐵路貨物搬運公
A25: 人員、臨時人員等。 | AM25: 分公司) 於101年3月1日成立。 | BA25: 司、陽明海運公司及招商局員工人數。
A26: 2.自88年7月1日起，臺灣省政府交通處裁併入交通部，其所屬旅遊局裁併入觀光局，臺 | BA26: 2.招商局自84年7月起併入陽明海運公司，陽明海運公司於85年2月15日起改制民營；
A27: 灣鐵路管理局、臺灣鐵路貨物搬運公司、公路局、臺灣汽車客運公司及各港務局均改 | BA27: 臺灣鐵路貨物搬運公司自88年7月1日起改隸交通部，並於92年1月1日改制民營。
A28: 隸交通部。 | BA28: 95至99年底係臺灣汽車客運股份有限公司資料，因臺汽公司自100年7月1日 起解散
A29: 3.電信總局於85年7月1日將電信事業部分改制為中華電信公司，該公司自94年8月12日起 | BA29: 清查，致100年底起「其他」已無員工資料。
A30: 改制民營；另電信總局自95年2月22日起電信監理業務轉由國家通訊傳播委員會(NCC)
A31: 辦理。

Sheet 表2
A1: 表 2 交通部及所屬機關(構)正式職員人數 | I1: 表 2 交通部及所屬機關(構)正式職員人數 ( 續1 ) | Q1: 表 2 交通部及所屬機關(構)正式職員人數 ( 續完 )
A2: 民國 101 年底 | L2: 民國 101 年底 | O2: 單位：人 | S2: 民國 101 年底 | W2: 單位：人
B3: 總 計 | C3: 年 齡 別 | J3: 教 育 程 度 別 | R3: 進 用 別
A4: 項目別 | I4: 項目別 | Q4: 項目別 | R4: 考 試 及 格 | X4: 依其他
A5: 機關別 | C5: 未滿 | D5: 30-未滿 | E5: 40-未滿 | F5: 50-未滿 | G5: 60歲 | H5: 平均 | I5: 機關別 | J5: 大 專 以 上 | O5: 高中 | P5: 國(初)中 | Q5: 機關別 | R5: 計 | T5: 高 普 考 試 | V5: 特 考 | W5: 其他 | X5: 法 令
C6: 30歲 | D6: 40歲 | E6: 50歲 | F6: 60歲 | G6: 以上 | H6: 年齡 | J6: 計 | K6: 博士 | L6: 碩士 | M6: 大學 | N6: 專科 | O6: (職) | P6: 及以下 | S6: 小 計 | T6: 高 考 | U6: 普 考 | W6: 考試 | X6: 進 用
A7: 總計 | B7: 36465 | C7: 1952 | D7: 5136 | E7: 10268 | F7: 15356 | G7: 3753 | H7: 48.5 | I7: 總計 | J7: 24701 | K7: 178 | L7: 3993 | M7: 10578 | N7: 9952 | O7: 9973 | P7: 1791 | Q7: 總計 | R7: 34675 | S7: 3436 | T7: 2216 | U7: 1220 | V7: 13754 | W7: 17485 | X7: 1790
A8: 交通部 | B8: 341 | C8: 13 | D8: 83 | E8: 129 | F8: 87 | G8: 29 | H8: 45.8 | I8: =A8 -> 交通部 | J8: 334 | K8: 9 | L8: 174 | M8: 126 | N8: 25 | O8: 7 | P8: 0 | Q8: 交通部 | R8: 333 | S8: 176 | T8: 162 | U8: 14 | V8: 74 | W8: 83 | X8: 8
A9: 運輸研究所 | B9: 135 | C9: 4 | D9: 26 | E9: 48 | F9: 42 | G9: 15 | H9: 47.5 | I9: 運輸研究所 | J9: 129 | K9: 27 | L9: 78 | M9: 15 | N9: 9 | O9: 5 | P9: 1 | Q9: 運輸研究所 | R9: 112 | S9: 72 | T9: 70 | U9: 2 | V9: 14 | W9: 26 | X9: 23
A10: 中華郵政公司 | B10: 11770 | C10: 154 | D10: 826 | E10: 3369 | F10: 5965 | G10: 1456 | H10: 51.3 | I10: 中華郵政公司 | J10: 8492 | K10: 3 | L10: 393 | M10: 3661 | N10: 4435 | O10: 3066 | P10: 212 | Q10: 中華郵政公司 | R10: 11768 | S10: 675 | T10: 356 | U10: 319 | V10: 5409 | W10: 5684 | X10: 2
A11: 臺灣鐵路管理局 | B11: 12261 | C11: 1019 | D11: 2009 | E11: 3114 | F11: 5065 | G11: 1054 | H11: 47.3 | I11: 臺灣鐵路管理局 | J11: 6380 | K11: 7 | L11: 552 | M11: 2943 | N11: 2878 | O11: 4733 | P11: 1148 | Q11: 臺灣鐵路管理局 | R11: 11853 | S11: 97 | T11: 65 | U11: 32 | V11: 6039 | W11: 5717 | X11: 408
A12: 鐵路改建工程局 | B12: 492 | C12: 15 | D12: 59 | E12: 236 | F12: 164 | G12: 18 | H12: 47.2 | I12: 鐵路改建工程局 | J12: 481 | K12: 8 | L12: 191 | M12: 172 | N12: 110 | O12: 11 | P12: 0 | Q12: 鐵路改建工程局 | R12: 124 | S12: 63 | T12: 44 | U12: 19 | V12: 39 | W12: 22 | X12: 368
A13: 高速鐵路工程局 | B13: 355 | C13: 1 | D13: 33 | E13: 168 | F13: 133 | G13: 20 | H13: 48.7 | I13: 高速鐵路工程局 | J13: 353 | K13: 9 | L13: 168 | M13: 115 | N13: 61 | O13: 2 | P13: 0 | Q13: 高速鐵路工程局 | R13: 122 | S13: 46 | T13: 38 | U13: 8 | V13: 22 | W13: 54 | X13: 233
A14: 臺灣區國道高速公路局 | B14: 907 | C14: 36 | D14: 106 | E14: 240 | F14: 401 | G14: 124 | H14: 49.9 | I14: 臺灣區國道高速公路局 | J14: 661 | K14: 3 | L14: 203 | M14: 247 | N14: 208 | O14: 180 | P14: 66 | Q14: 臺灣區國道高速公路局 | R14: 813 | S14: 169 | T14: 127 | U14: 42 | V14: 92 | W14: 552 | X14: 94
A15: 臺灣區國道新建工程局 | B15: 271 | C15: 0 | D15: 18 | E15: 110 | F15: 115 | G15: 28 | H15: 50.4 | I15: 臺灣區國道新建工程局 | J15: 268 | K15: 7 | L15: 110 | M15: 76 | N15: 75 | O15: 3 | P15: 0 | Q15: 臺灣區國道新建工程局 | R15: 86 | S15: 29 | T15: 22 | U15: 7 | V15: 12 | W15: 45 | X15: 185
A16: 公路總局 | B16: 4189 | C16: 318 | D16: 863 | E16: 1390 | F16: 1352 | G16: 266 | H16: 45.8 | I16: 公路總局 | J16: 3282 | K16: 20 | L16: 720 | M16: 1492 | N16: 1050 | O16: 772 | P16: 135 | Q16: 公路總局 | R16: 4000 | S16: 795 | T16: 413 | U16: 382 | V16: 900 | W16: 2305 | X16: 189
A17: 航港局 | B17: 270 | C17: 19 | D17: 47 | E17: 68 | F17: 99 | G17: 37 | H17: 48 | I17: 航港局 | J17: 239 | K17: 3 | L17: 102 | M17: 85 | N17: 49 | O17: 28 | P17: 3 | Q17: 航港局 | R17: 268 | S17: 124 | T17: 95 | U17: 29 | V17: 32 | W17: 112 | X17: 2
A18: 臺灣港務(股)公司 | B18: 2699 | C18: 155 | D18: 314 | E18: 390 | F18: 1265 | G18: 575 | H18: 51.1 | I18: 臺灣港務(股)公司 | J18: 1541 | K18: 17 | L18: 384 | M18: 555 | N18: 585 | O18: 947 | P18: 211 | Q18: 臺灣港務(股)公司 | R18: 2562 | S18: 232 | T18: 204 | U18: 28 | V18: 302 | W18: 2028 | X18: 137
A19: 民用航空局 | B19: 1190 | C19: 95 | D19: 325 | E19: 477 | F19: 236 | G19: 57 | H19: 43.5 | I19: 民用航空局 | J19: 1144 | K19: 10 | L19: 347 | M19: 555 | N19: 232 | O19: 46 | P19: 0 | Q19: 民用航空局 | R19: 1134 | S19: 343 | T19: 239 | U19: 104 | V19: 632 | W19: 159 | X19: 56
A20: 桃園國際機場(股)公司 | B20: 428 | C20: 26 | D20: 139 | E20: 84 | F20: 135 | G20: 44 | H20: 45.5 | I20: 桃園國際機場(股)公司 | J20: 282 | K20: 2 | L20: 81 | M20: 107 | N20: 92 | O20: 132 | P20: 14 | Q20: 桃園國際機場(股)公司 | R20: 420 | S20: 7 | T20: 6 | U20: 1 | V20: 20 | W20: 393 | X20: 8
A21: 觀光局 | B21: 580 | C21: 43 | D21: 149 | E21: 221 | F21: 149 | G21: 18 | H21: 44.1 | I21: 觀光局 | J21: 553 | K21: 11 | L21: 258 | M21: 203 | N21: 81 | O21: 27 | P21: 0 | Q21: 觀光局 | R21: 559 | S21: 257 | T21: 195 | U21: 62 | V21: 128 | W21: 174 | X21: 21
A22: 中央氣象局 | B22: 577 | C22: 54 | D22: 139 | E22: 224 | F22: 148 | G22: 12 | H22: 43.6 | I22: 中央氣象局 | J22: 562 | K22: 42 | L22: 232 | M22: 226 | N22: 62 | O22: 14 | P22: 1 | Q22: 中央氣象局 | R22: 521 | S22: 351 | T22: 180 | U22: 171 | V22: 39 | W22: 131 | X22: 56

Sheet 表3
A1: 表 3 臺灣地區鐵路里程及車站數
A2: 民國 101 年底
A3: 機 關 ( 構 ) | B3: 里 程 數 | D3: 車 站 數 | F3: 軌 道 長 度
B4: ( 公里 ) | D4: ( 個 ) | F4: ( 公里 )
A5: 總 計 | B5: =SUM(B6:C10) -> 1703.1 | D5: =SUM(D6:E10) -> 393 | F5: =SUM(F6:F10) -> 3914.8
A6: 臺灣鐵路管理局 | B6: 1067.3 | D6: 225 | F6: 2498.2
A7: 高速鐵路 | B7: 340 | D7: 8 | F7: 736.3
A8: 臺北捷運 | B8: 112.8 | D8: 102 | F8: 331.6
A9: 高雄捷運 | B9: 44.7 | D9: 38 | F9: 89.4
A10: 生產事業鐵路 | B10: 138.3 | D10: 20 | F10: 259.3
A11: 說明：生產事業鐵路包含臺糖、臺泥、臺電公司及農委會林務局。

Sheet 表4
A1: 表 4 臺灣地區鐵路客貨車輛數
C2: 民國 101 年底 | G2: 單位：輛
A3: 機 關 ( 構 ) | B3: 總 計 | C3: 機 車 | D3: 電 聯 車 | E3: 柴油客車 | F3: 客 車 | G3: 貨 車
D4: (車廂)
A5: 總 計 | B5: =SUM(B6:B10) -> 8569 | C5: 483 | D5: 2180 | E5: 250 | F5: 1343 | G5: 4313
A6: 臺灣鐵路管理局 | B6: =SUM(C6:G6) -> 4209 | C6: 284 | D6: 739 | E6: 221 | F6: 1069 | G6: 1896
A7: 臺灣高鐵公司 | B7: =SUM(C7:G7) -> 360 | C7: － | D7: 360 | E7: － | F7: － | G7: －
A8: 臺北大眾捷運公司 | B8: =SUM(C8:G8) -> 955 | C8: － | D8: 955 | E8: － | F8: － | G8: －
A9: 高雄捷運公司 | B9: =SUM(C9:G9) -> 130 | C9: － | D9: 126 | E9: － | F9: 2 | G9: 2
A10: 生產事業機構 | B10: =SUM(C10:G10) -> 2915 | C10: 199 | D10: － | E10: 29 | F10: 272 | G10: 2415

Sheet 表5
A1: 表 5 臺灣鐵路管理局路線營業里程、橋梁、隧道及平交道
D2: 民國101 年底
A3: 線 別 | C3: 路 線 | E3: 橋 | F3: 梁 | G3: 隧 | H3: 道 | I3: 平交道
B4: 營業里程 | C4: 車 站 數 | D4: 軌道長度 | E4: 座 數 | F4: 長 度 | G4: 座 數 | H4: 長 度 | I4: (處)
B5: (公里) | C5: (個) | D5: (公里) | E5: (座) | F5: (公尺) | G5: (座) | H5: (公尺)
A6: 總計 | B6: =SUM(B7:B22) -> 1067.3 | C6: 225 | D6: 2498 | E6: 1787 | F6: 84085 | G6: 140 | H6: 155094 | I6: 537
A7: 縱貫線 | B7: 404.5 | C7: 89 | D7: 1079 | E7: 735 | F7: 24428 | G7: 8 | H7: 23184 | I7: 223
A8: 林口線 | B8: － | C8: － | D8: 20 | E8: 45 | F8: 488 | G8: － | H8: － | I8: 45
A9: 內灣線 | B9: 26.5 | C9: 11 | D9: 43 | E9: 31 | F9: 1061 | G9: 5 | H9: 977 | I9: 7
A10: 六家線 | B10: 3.1 | C10: 1 | D10: － | E10: － | F10: － | G10: － | H10: － | I10: －
A11: 臺中線 | B11: 87.7 | C11: 16 | D11: 204 | E11: 147 | F11: 12090 | G11: 14 | H11: 13866 | I11: 30
A12: 臺中港線 | B12: － | C12: － | D12: 32 | E12: 5 | F12: 140 | G12: － | H12: － | I12: 20
A13: 集集線 | B13: 29.7 | C13: 6 | D13: 31 | E13: 82 | F13: 680 | G13: 9 | H13: 2361 | I13: 29
A14: 沙崙線 | B14: 5.3 | C14: 2 | D14: 11 | E14: － | F14: － | G14: － | H14: － | I14: －
A15: 屏東線 | B15: 61.3 | C15: 17 | D15: 255 | E15: 129 | F15: 3705 | G15: － | H15: － | I15: 56
A16: 宜蘭線 | B16: 93.6 | C16: 26 | D16: 214 | E16: 154 | F16: 11186 | G16: 25 | H16: 10542 | I16: 34
A17: 深澳線 | B17: 6 | C17: － | D17: 5 | E17: 2 | F17: 21 | G17: 3 | H17: 372 | I17: 2
A18: 平溪線 | B18: 12.9 | C18: 6 | D18: 13 | E18: 12 | F18: 375 | G18: 6 | H18: 583 | I18: 1
A19: 北迴線 | B19: 79.2 | C19: 12 | D19: 190 | E19: 88 | F19: 6752 | G19: 22 | H19: 51169 | I19: 13
A20: 花蓮港線 | B20: 7.4 | C20: 1 | D20: 20 | E20: 10 | F20: 361 | G20: － | H20: － | I20: 2
A21: 臺東線 | B21: 151.9 | C21: 27 | D21: 236 | E21: 191 | F21: 13514 | G21: 11 | H21: 11936 | I21: 63
A22: 南迴線 | B22: 98.2 | C22: 11 | D22: 144 | E22: 156 | F22: 9287 | G22: 37 | H22: 40104 | I22: 12
A23: 說明：六家線自100年起加入營運，惟臺灣鐵路管理局尚未完成接收財產移交清冊，故未列軌道長度。

Sheet 表6
A1: 表 6 臺灣鐵路管理局客貨車輛數
H2: 單位：輛
A3: 年 底 別 | B3: 總 計 | C3: 電力機車 | D3: 柴電機車 | E3: 柴液機車 | F3: 電 聯 車 | G3: 柴油客車 | H3: 客 車 | I3: 貨 車 | L3: .
A4: 80 年底 | B4: =SUM(C4:I4) -> 7107 | C4: 111 | D4: 155 | E4: － | F4: 169 | G4: 221 | H4: 1284 | I4: 5167
A5: 86 年底 | B5: 5867 | C5: 154 | D5: 146 | E5: － | F5: 441 | G5: 186 | H5: 1302 | I5: 3638
A6: 87 年底 | B6: 5829 | C6: 180 | D6: 146 | E6: － | F6: 509 | G6: 212 | H6: 1407 | I6: 3375
A7: 88 年底 | B7: 5665 | C7: 179 | D7: 142 | E7: － | F7: 507 | G7: 246 | H7: 1394 | I7: 3197
A8: 89 年底 | B8: 5529 | C8: 179 | D8: 141 | E8: － | F8: 507 | G8: 234 | H8: 1370 | I8: 3098
A9: 90 年底 | B9: 5269 | C9: 179 | D9: 148 | E9: － | F9: 515 | G9: 234 | H9: 1328 | I9: 2865
A10: 91 年底 | B10: =SUM(C10:I10) -> 5306 | C10: 179 | D10: 143 | E10: 1 | F10: 563 | G10: 230 | H10: 1354 | I10: 2836
A11: 92 年底 | B11: =SUM(C11:I11) -> 5235 | C11: 179 | D11: 140 | E11: 16 | F11: 563 | G11: 230 | H11: 1352 | I11: 2755
A12: 93 年底 | B12: =SUM(C12:I12) -> 5167 | C12: 174 | D12: 137 | E12: 16 | F12: 562 | G12: 230 | H12: 1324 | I12: 2724
A14: 94 年底 | B14: 5032 | C14: 161 | D14: 135 | E14: 16 | F14: 562 | G14: 228 | H14: 1286 | I14: 2644
A15: 95 年底 | B15: 4878 | C15: 161 | D15: 131 | E15: 16 | F15: 562 | G15: 226 | H15: 1265 | I15: 2517
A16: 96 年底 | B16: 4909 | C16: 161 | D16: 130 | E16: 16 | F16: 722 | G16: 225 | H16: 1234 | I16: 2421
A17: 97 年底 | B17: 4721 | C17: 156 | D17: 122 | E17: 16 | F17: 770 | G17: 224 | H17: 1214 | I17: 2219
A18: 98 年底 | B18: 4497 | C18: 155 | D18: 117 | E18: 16 | F18: 770 | G18: 224 | H18: 1121 | I18: 2094
A19: 99 年底 | B19: =SUM(C19:I19) -> 4397 | C19: 155 | D19: 115 | E19: 16 | F19: 753 | G19: 223 | H19: 1092 | I19: 2043
A20: 100 年底 | B20: =SUM(C20:I20) -> 4263 | C20: 155 | D20: 114 | E20: 16 | F20: 723 | G20: 223 | H20: 1083 | I20: 1949
A21: 101 年底 | B21: 4209 | C21: 155 | D21: 113 | E21: 16 | F21: 739 | G21: 221 | H21: 1069 | I21: 1896
A22: 說明：「電力機車」含推拉式電力機車，「柴油客車」含動力車及拖車，「客車」含推拉式客車、
A23: 餐車、各等級客車、臥車、客守車及行李車。

Sheet 表7
A1: 表 7 臺灣鐵路管理局客貨車輛數按已用年數分
B2: 民國101 年底 | H2: 單位：輛
A3: 已 用 年 數 | B3: 總 計 | C3: 電力機車 | D3: 柴電機車 | E3: 柴液機車 | F3: 電 聯 車 | G3: 柴油客車 | H3: 客 車 | I3: 貨 車
A4: 總 計 | B4: =SUM(C4:I4) -> 4209 | C4: =SUM(C5:C11) -> 155 | D4: =SUM(D5:D11) -> 113 | E4: =SUM(E6:E11) -> 16 | F4: 739 | G4: 221 | H4: 1069 | I4: 1896
A5: 未 滿 5 年 | B5: 96 | C5: － | D5: － | E5: － | F5: 64 | G5: － | H5: － | I5: 32
A6: 5－未滿10年 | B6: 235 | C6: － | D6: － | E6: 16 | F6: 160 | G6: － | H6: － | I6: 59
A7: 10－未滿15年 | B7: 234 | C7: － | D7: 6 | E7: － | F7: 56 | G7: 66 | H7: 50 | I7: 56
A8: 15－未滿20年 | B8: 808 | C8: 64 | D8: － | E8: － | F8: 342 | G8: － | H8: 382 | I8: 20
A9: 20－未滿30年 | B9: 434 | C9: 5 | D9: 4 | E9: － | F9: 102 | G9: 95 | H9: 69 | I9: 159
A10: 30－未滿40年 | B10: 1168 | C10: 86 | D10: 24 | E10: － | F10: 15 | G10: 45 | H10: 236 | I10: 762
A11: 40 年 以 上 | B11: 1234 | C11: － | D11: 79 | E11: － | F11: － | G11: 15 | H11: 332 | I11: 808

Sheet 表8
A1: 表 8 臺灣鐵路管理局車站數按等級別分
D2: 民國101 年底 | H2: 單位：站
A3: 運 務 段 別 | B3: 總 計 | C3: 特等站 | D3: 一等站 | E3: 二等站 | F3: 三等站 | G3: 簡易站 | H3: 招呼站
A5: 總 計 | B5: =SUM(B6,B7,B8,B9,B10) -> 225 | C5: 3 | D5: 27 | E5: 24 | F5: 77 | G5: 50 | H5: 44
A6: 臺 北 運 務 段 | B6: =SUM(C6:H6) -> 42 | C6: 1 | D6: 9 | E6: 5 | F6: 8 | G6: 14 | H6: 5
A7: 臺 中 運 務 段 | B7: =SUM(C7:H7) -> 48 | C7: 1 | D7: 5 | E7: 5 | F7: 15 | G7: 11 | H7: 11
A8: 高 雄 運 務 段 | B8: =SUM(C8:H8) -> 56 | C8: 1 | D8: 7 | E8: 7 | F8: 16 | G8: 14 | H8: 11
A9: 花 蓮 運 務 段 | B9: =SUM(C9:H9) -> 42 | C9: － | D9: 3 | E9: 2 | F9: 28 | G9: 2 | H9: 7
A10: 宜 蘭 運 務 段 | B10: =SUM(C10:H10) -> 37 | C10: － | D10: 3 | E10: 5 | F10: 10 | G10: 9 | H10: 10
A12: 說明：臺北運務段含基隆－香山，北新竹－內灣，竹中－六家。
A13: 臺中運務段含崎頂－二水，竹南－彰化，成功－追分，二水－車埕。
A14: 高雄運務段含林內－高雄，中洲－沙崙，高雄－枋寮，枋寮－枋野。
A15: 花蓮運務段含和平－臺東，北埔－花蓮港，花蓮－花蓮港，臺東－古莊。
A16: 宜蘭運務段含暖暖－蘇澳，蘇澳新－漢本，瑞芳－深澳，三貂嶺－菁桐。

Sheet 表9
A1: 表 9 臺北大眾捷運公司營運路線、里程及車站數
A2: 年底別 | B2: 路 線 名 稱 | C2: 路線里程 | D2: 車站數 | E2: 備 註
C3: (公里) | D3: (站)
A4: 85年底 | B4: 木柵線 | C4: 10.5 | D4: 12 | E4: 木柵線自85年3月開始營運。
A6: 86年底 | B6: 木柵線、淡水線 | C6: 32.4 | D6: 32 | E6: 淡水線臺北車站至淡水站及淡水線新
E7: 北投支線均自86年3月開始營運。
A9: 87年底 | B9: 木柵線、淡水線、 | C9: 40.3 | D9: 39 | E9: 新店線北段及中和線自87年12月開始
B10: 新店線北段及中和線 | E10: 營運。
A12: 88年底 | B12: 木柵線、淡水線、新店線 | C12: 56.4 | D12: 54 | E12: 新店線自88年11月開始全線營運，板
B13: 、中和線、板南線 | E13: 南線龍山寺站至市政府站自88年12月
E14: 開始營運。
A16: 89年底 | B16: 木柵線、淡水線、新店線、 | C16: 65.1 | D16: 60 | E16: 板南線新埔站至龍山寺站及小南門線
B17: 中和線、 板南線、小南門線 | E17: 均自89年8月開始營運。板南線市政府
E18: 站至昆陽站自89年12月開始營運。
A20: 90年底 | B20: 木柵線、淡水線、新店線、 | C20: 65.1 | D20: 60
B21: 中和線、板南線 ( 新埔站
B22: －昆陽站 )、小南門線
A24: 91年底 | B24: 木柵線、淡水線、新店線、 | C24: 65.1 | D24: 60
B25: 中和線、板南線 ( 新埔站
B26: －昆陽站 )、小南門線
A28: 92年底 | B28: 木柵線、淡水線、新店線、 | C28: 65.1 | D28: 60
B29: 、中和線、板南線( 新埔站
B30: －昆陽站 )、小南門線
A32: 93年底 | B32: 木柵線、淡水線、新店線、 | C32: 67 | D32: 61 | E32: 新店線小碧潭支線自93年9月開始營運。
B33: 中和線、板南線、小南門線
A35: 94年底 | B35: 木柵線、淡水線、新店線、 | C35: 67 | D35: 63 | E35: 板南線自94年9月更名切分為板橋線(西
B36: 中和線、板橋線、南港線、 | E36: 門站至新埔站)及南港線(西門站至昆陽
B37: 小南門線 | E37: 站)。
A39: 95年底 | B39: 木柵線、淡水線、新店線、 | C39: 74.4 | D39: 69 | E39: 板橋線新埔站至府中站及土城線府中
B40: 中和線、板橋線、南港線、 | E40: 站至永寧站均自95年5月31日開始營運。
B41: 小南門線、土城線
A43: 97年底 | B43: 木柵線、淡水線、新店線、 | C43: 75.8 | D43: 70 | E43: 南港線昆陽站至南港站自97年12月25日
B44: 中和線、板橋線、南港線、 | E44: 開始營運。
B45: 小南門線、土城線
A47: 98年底 | B47: 文湖線、淡水線、新店線、 | C47: 90.5 | D47: 82 | E47: 內湖線中山國中站至南港展覽館站自
B48: 中和線、板橋線、南港線、 | E48: 98年7月4日開始營運。木柵線及內湖
B49: 小南門線、土城線 | E49: 線自98年10月8日起合併更名為文山內
E50: 湖線，簡稱文湖線。
A52: 99年底 | B52: 文湖線、淡水線、新店線、 | C52: 100.8 | D52: 93 | E52: 蘆洲線蘆洲站至忠孝新生站，自99年
B53: 中和線、板橋線、南港線、 | E53: 11月3日開始營運。
B54: 小南門線、土城線、蘆洲線
A56: 100年底 | B56: 文湖線、淡水線、新店線、 | C56: 101.9 | D56: 94 | E56: 南港線東延至南港展覽館站，自100年
B57: 中和線、板橋線、南港線、 | E57: 2月27日開始營運。
B58: 小南門線、土城線、蘆洲線
A60: 101年底 | B60: 文湖線、淡水線、新店線、 | C60: 112.8 | D60: 102 | E60: 新莊線大橋頭站至輔大站，自101年1月
B61: 中和線、板橋線、南港線、 | E61: 5日開始營運。新莊線東門站，自101年
B62: 小南門線、土城線、蘆洲線 | E62: 9月30日開始營運。
A64: 說明：94年底起依據新修訂之車站標準計算站數，捷運臺北車站及忠孝復興站兩大轉乘站以2站計算。

Sheet 表10
A1: 表10 高雄捷運公司營運路線、里程及車站數
A2: 民國 101 年底
A3: 路 線 名 稱 | B3: 營業里程 | C3: 車站數 | D3: 備 註
B4: (公里) | C4: (個)
A5: 總 計 | B5: 41.4 | C5: 38
A6: 紅 線 | B6: 28.2 | C6: 24 | D6: 紅線 (小港站至南岡山站) 自97年4月7日起正式營
D7: 運，營運車站包含小港、高雄國際機場、草衙、前
D8: 鎮高中、凱旋、獅甲、三多商圈、中央公園、美麗
D9: 島、高雄車站、後驛、凹子底、巨蛋、生態園區、
D10: 左營、世運、油廠國小、楠梓加工區、後勁、都會
D11: 公園、青埔、橋頭糖廠、橋頭火車站 及南岡山 (R3
D12: 至R24) 等24個車站。
A14: 橘 線 | B14: 13.1 | C14: 14 | D14: 橘線 (西子灣站至大寮站) 自97年 9月21日起正式營
D15: 運，營運車站包含西子灣、鹽埕埔、市議會、美麗
D16: 島、信義國小、文化中心、五塊厝、技擊館、衛武
D17: 營、鳳山西站、鳳山、大東、鳳山國中、大寮 (O1
D18: 至OT1) 等14個車站。

Sheet 表11
E1: 表 11 臺 灣 地 區 道 路 長 度
I2: 單位：公里
A3: 年 底 別 | D3: 公 | G3: 路 | I3: 市區道路
A4: 及 | B4: 總 計 | C4: 計 | D4: 國 道 | E4: 省 道 | F4: 縣 道 | G4: 鄉 道 | H4: 專用公路
A5: 地 區 別
A6: 95年底 | B6: 38276 | C6: 21223 | D6: 954 | E6: 4843 | F6: 3358 | G6: 11654 | H6: 414 | I6: 17053
A7: 96年底 | B7: 38505 | C7: 21382 | D7: 954 | E7: 5000 | F7: 3360 | G7: 11654 | H7: 414 | I7: 17123
A8: 97年底 | B8: 39294 | C8: 21471 | D8: 989 | E8: 5024 | F8: 3484 | G8: 11560 | H8: 414 | I8: 17823
A9: 98年底 | B9: 39828 | C9: 21760 | D9: 989 | E9: 5092 | F9: 3518 | G9: 11765 | H9: 396 | I9: 18068
A10: 99年底 | B10: 40332 | C10: 21800 | D10: 989 | E10: 5099 | F10: 3551 | G10: 11765 | H10: 396 | I10: 18532
A11: 100年底 | B11: 40974 | C11: 21826 | D11: 989 | E11: 5124 | F11: 3551 | G11: 11766 | H11: 396 | I11: 19148
A12: 101年底 | B12: 42037 | C12: 21839 | D12: 989 | E12: 5137 | F12: 3551 | G12: 11766 | H12: 396 | I12: 20198
A13: 新北市 | B13: 3049 | C13: 1393 | D13: 81 | E13: 370 | F13: 304 | G13: 638 | H13: 0 | I13: 1656
A14: 臺北市 | B14: 1340 | C14: 103 | D14: 30 | E14: 66 | F14: 7 | G14: 0 | H14: 0 | I14: 1237
A15: 臺中市 | B15: 4216 | C15: 1480 | D15: 94 | E15: 412 | F15: 140 | G15: 682 | H15: 152 | I15: 2736
A16: 臺南市 | B16: 4605 | C16: 2168 | D16: 140 | E16: 377 | F16: 338 | G16: 1304 | H16: 9 | I16: 2437
A17: 高雄市 | B17: 4921 | C17: 1405 | D17: 84 | E17: 513 | F17: 105 | G17: 694 | H17: 9 | I17: 3516
A18: 臺灣省 | B18: =SUM(B19:B33) -> 23906 | C18: =SUM(C19:C33) -> 15290 | D18: 560 | E18: 3399 | F18: 2657 | G18: 8448 | H18: 226 | I18: 8616
A19: 宜蘭縣 | B19: 1349 | C19: 830 | D19: 29 | E19: 337 | F19: 57 | G19: 383 | H19: 24 | I19: 519
A20: 桃園縣 | B20: 2737 | C20: 1214 | D20: 73 | E20: 314 | F20: 206 | G20: 613 | H20: 8 | I20: 1523
A21: 新竹縣 | B21: 1276 | C21: 874 | D21: 50 | E21: 104 | F21: 163 | G21: 549 | H21: 8 | I21: 402
A22: 苗栗縣 | B22: 1669 | C22: 1337 | D22: 96 | E22: 265 | F22: 196 | G22: 756 | H22: 24 | I22: 332
A23: 彰化縣 | B23: 2321 | C23: 1663 | D23: 59 | E23: 218 | F23: 390 | G23: 996 | H23: 0 | I23: 658
A24: 南投縣 | B24: 2167 | C24: 1564 | D24: 67 | E24: 418 | F24: 199 | G24: 790 | H24: 90 | I24: 603
A25: 雲林縣 | B25: 2433 | C25: 1876 | D25: 48 | E25: 224 | F25: 389 | G25: 1215 | H25: 0 | I25: 557
A26: 嘉義縣 | B26: 2281 | C26: 1764 | D26: 47 | E26: 308 | F26: 456 | G26: 941 | H26: 12 | I26: 517
A27: 屏東縣 | B27: 2853 | C27: 1879 | D27: 51 | E27: 338 | F27: 290 | G27: 1194 | H27: 6 | I27: 974
A28: 臺東縣 | B28: 1331 | C28: 933 | D28: 0 | E28: 352 | F28: 66 | G28: 470 | H28: 45 | I28: 398
A29: 花蓮縣 | B29: 1589 | C29: 957 | D29: 0 | E29: 415 | F29: 109 | G29: 424 | H29: 9 | I29: 632
A30: 澎湖縣 | B30: 268 | C30: 195 | D30: 0 | E30: 0 | F30: 78 | G30: 117 | H30: 0 | I30: 73
A31: 基隆市 | B31: 620 | C31: 73 | D31: 17 | E31: 50 | F31: 6 | G31: 0 | H31: 0 | I31: 547
A32: 新竹市 | B32: 528 | C32: 85 | D32: 17 | E32: 39 | F32: 29 | G32: 0 | H32: 0 | I32: 443
A33: 嘉義市 | B33: 484 | C33: 46 | D33: 6 | E33: 17 | F33: 23 | G33: 0 | H33: 0 | I33: 438
A35: 說明 : 市區道路係路面寬度6米以上部分。

Sheet 表12
C1: 表12 臺 灣 地 區 道 路 路 面 面 積 | G1: 表 12 臺 灣 地 區 道 路 路 面 面 積 ( 續 )
E2: 單位：千平方公尺 | I2: 單位：千平方公尺
A3: 年 底 別 | D3: 公 路 | G3: 公 路
A4: 及 | B4: 總 計 | C4: 計 | D4: 國 道 | E4: 省 道 | F4: 縣 道 | G4: 鄉 道 | H4: 專 用 公 路 | I4: 市 區 道 路
A5: 地 區 別
A6: 95年底 | B6: 409928 | C6: 193045 | D6: 25999 | E6: 73791 | F6: 31766 | G6: 59873 | H6: 1616 | I6: 216883
A7: 96年底 | B7: 416836 | C7: 196562 | D7: 25999 | E7: 76815 | F7: 32244 | G7: 59888 | H7: 1616 | I7: 220274
A8: 97年底 | B8: 425159 | C8: 199657 | D8: 27101 | E8: 78136 | F8: 36616 | G8: 56188 | H8: 1616 | I8: 225502
A9: 98年底 | B9: 473558 | C9: 244453 | D9: 27605 | E9: 89010 | F9: 42705 | G9: 83601 | H9: 1532 | I9: 229105
A10: 99年底 | B10: 478437 | C10: 245332 | D10: 27605 | E10: 89046 | F10: 43548 | G10: 83601 | H10: 1532 | I10: 233105
A11: 100年底 | B11: 483798 | C11: 245897 | D11: 27605 | E11: 89614 | F11: 43550 | G11: 83596 | H11: 1532 | I11: 237901
A12: 101年底 | B12: 501195 | C12: 247327 | D12: 27605 | E12: 90953 | F12: 43641 | G12: 83596 | H12: 1532 | I12: 253868
A13: 新北市 | B13: 35464 | C13: 15730 | D13: 2200 | E13: 6226 | F13: 3975 | G13: 3329 | H13: 0 | I13: 19734
A14: 臺北市 | B14: 21863 | C14: 3228 | D14: 1316 | E14: 1845 | F14: 67 | G14: 0 | H14: 0 | I14: 18635
A15: 臺中市 | B15: 60105 | C15: 19363 | D15: 2646 | E15: 8224 | F15: 1876 | G15: 5761 | H15: 856 | I15: 40742
A16: 臺南市 | B16: 60460 | C16: 28501 | D16: 2916 | E16: 8602 | F16: 5485 | G16: 11419 | H16: 79 | I16: 31959
A17: 高雄市 | B17: 65473 | C17: 18360 | D17: 2556 | E17: 8522 | F17: 1969 | G17: 5276 | H17: 37 | I17: 47113
A18: 臺灣省 | B18: =SUM(B19:B33) -> 257830 | C18: =SUM(C19:C33) -> 162145 | D18: 15971 | E18: 57534 | F18: 30269 | G18: 57811 | H18: 560 | I18: 95685 | K18: *-+6
A19: 宜蘭縣 | B19: 15887 | C19: 9372 | D19: 756 | E19: 4667 | F19: 729 | G19: 3051 | H19: 169 | I19: 6515
A20: 桃園縣 | B20: 29007 | C20: 16355 | D20: 2460 | E20: 5836 | F20: 3440 | G20: 4563 | H20: 56 | I20: 12652
A21: 新竹縣 | B21: 13625 | C21: 9941 | D21: 1707 | E21: 2338 | F21: 1845 | G21: 4024 | H21: 27 | I21: 3684
A22: 苗栗縣 | B22: 16520 | C22: 12344 | D22: 2553 | E22: 5746 | F22: 1771 | G22: 2190 | H22: 84 | I22: 4176
A23: 彰化縣 | B23: 26261 | C23: 17832 | D23: 1264 | E23: 4837 | F23: 4610 | G23: 7121 | H23: 0 | I23: 8429
A24: 南投縣 | B24: 19431 | C24: 13108 | D24: 1992 | E24: 4908 | F24: 1860 | G24: 4328 | H24: 20 | I24: 6323
A25: 雲林縣 | B25: 29660 | C25: 22408 | D25: 1347 | E25: 5407 | F25: 5001 | G25: 10653 | H25: 0 | I25: 7252
A26: 嘉義縣 | B26: 23074 | C26: 17492 | D26: 1410 | E26: 4926 | F26: 4954 | G26: 6138 | H26: 64 | I26: 5582
A27: 屏東縣 | B27: 31235 | C27: 18478 | D27: 1123 | E27: 5742 | F27: 2599 | G27: 8974 | H27: 40 | I27: 12757
A28: 臺東縣 | B28: 12731 | C28: 8512 | D28: 0 | E28: 4558 | F28: 623 | G28: 3258 | H28: 73 | I28: 4219
A29: 花蓮縣 | B29: 16744 | C29: 9635 | D29: 0 | E29: 5767 | F29: 1045 | G29: 2796 | H29: 27 | I29: 7109
A30: 澎湖縣 | B30: 2586 | C30: 1838 | D30: 0 | E30: 0 | F30: 1123 | G30: 715 | H30: 0 | I30: 748
A31: 基隆市 | B31: 6713 | C31: 1822 | D31: 795 | E31: 935 | F31: 92 | G31: 0 | H31: 0 | I31: 4891
A32: 新竹市 | B32: 4886 | C32: 1798 | D32: 401 | E32: 1109 | F32: 288 | G32: 0 | H32: 0 | I32: 3088
A33: 嘉義市 | B33: 9470 | C33: 1210 | D33: 163 | E33: 758 | F33: 289 | G33: 0 | H33: 0 | I33: 8260
A35: 說明：98年底資料因執行公路總清查，致道路路面面積較往年差異大。

Sheet 表13
A1: 表13 臺灣地區道路橋梁座數概況 | H1: 表13 臺灣地區道路橋梁座數概況 ( 續 )
G2: 單位：座 | L2: 單位：座
A3: 年 底 別 | B3: 公 路 橋 梁 | H3: 新北市市區 | I3: 臺北市市區 | J3: 臺中市市區 | K3: 臺南市市區 | L3: 高雄市市區
B4: 計 | C4: 國道 | D4: 省道 | E4: 縣道 | F4: 鄉道 | G4: 專用公路 | H4: 道路橋梁 | I4: 道路橋梁 | J4: 道路橋梁 | K4: 道路橋梁 | L4: 道路橋梁
A5: 91年底 | B5: =SUM(C5,D5, E5, F5,G5 ) -> 11356 | C5: 1094 | D5: 2743 | E5: 1897 | F5: 5535 | G5: 87 | H5: － | I5: 231 | J5: － | K5: － | L5: 100
A6: 92年底 | B6: 11493 | C6: 1190 | D6: 2769 | E6: 1912 | F6: 5535 | G6: 87 | H6: － | I6: 231 | J6: － | K6: － | L6: 92
A7: 93年底 | B7: 11719 | C7: 1304 | D7: 2915 | E7: 1864 | F7: 5549 | G7: 87 | H7: － | I7: 233 | J7: － | K7: － | L7: 92
A8: 94年底 | B8: 11785 | C8: 1341 | D8: 2930 | E8: 1869 | F8: 5558 | G8: 87 | H8: － | I8: 245 | J8: － | K8: － | L8: 93
A9: 95年底 | B9: 12069 | C9: 1578 | D9: 2976 | E9: 1870 | F9: 5558 | G9: 87 | H9: － | I9: 250 | J9: － | K9: － | L9: 94
A10: 96年底 | B10: 11918 | C10: 1378 | D10: 3016 | E10: 1879 | F10: 5558 | G10: 87 | H10: － | I10: 253 | J10: － | K10: － | L10: 93
A11: 97年底 | B11: 11925 | C11: 1395 | D11: 3050 | E11: 1924 | F11: 5469 | G11: 87 | H11: － | I11: 253 | J11: － | K11: － | L11: 95
A12: 98年底 | B12: 11014 | C12: 1421 | D12: 2643 | E12: 1559 | F12: 5307 | G12: 84 | H12: － | I12: 254 | J12: － | K12: － | L12: 91
A13: 99年底 | B13: 11067 | C13: 1421 | D13: 2696 | E13: 1559 | F13: 5307 | G13: 84 | H13: － | I13: 252 | J13: － | K13: － | L13: 92
A14: 100年底 | B14: 11165 | C14: 2189 | D14: 2592 | E14: 1638 | F14: 4586 | G14: 160 | H14: 284 | I14: 243 | J14: 565 | K14: 215 | L14: 323
A15: 101年底 | B15: 11479 | C15: 2440 | D15: 2646 | E15: 1639 | F15: 4599 | G15: 155 | H15: 249 | I15: 245 | J15: 566 | K15: 226 | L15: 335
A16: 說明：1. 公路橋梁係指跨距6公尺以上之橋梁。
A17: 2.100年起配合縣市改制直轄市，相關統計資料陳示亦作調整。
A18: 資料來源：100年起為交通部運輸研究所「臺灣地區橋梁管理資訊系統」。

Sheet 表14
A1: 表 14 臺灣地區省道路線里程、橋梁及隧道
C2: 民國101 年底
C3: 路 線 | D3: 橋 | E3: 梁 | F3: 隧 | G3: 道
A4: 路 線 別 | C4: 里 程 | D4: 座 數 | E4: 長 度 | F4: 座 數 | G4: 長 度
C5: (公尺) | D5: (座) | E5: (公尺) | F5: (座) | G5: (公尺)
A6: 總 | B6: 計 | C6: =SUM(C7:C101) -> 5155493 | D6: =SUM(D7:D101) -> 2746 | E6: 335638 | F6: =SUM(F7:F101) -> 215 | G6: 60091
A7: 1 | B7: 臺北－楓港 | C7: 460600 | D7: 294 | E7: 27722 | F7: 2 | G7: 474
A8: 1甲 | B8: 臺北－桃園 | C8: 25645 | D8: 10 | E8: 1722 | F8: － | G8: －
A9: 1乙 | B9: 大雅－王田 | C9: 21800 | D9: 18 | E9: 402 | F9: － | G9: －
A10: 1丙 | B10: 大肚橋－莿桐腳 | C10: 7977 | D10: 4 | E10: 389 | F10: 2 | G10: 142
A11: 1丁 | B11: 莿桐－斗南 | C11: 14008 | D11: 9 | E11: 552 | F11: － | G11: －
A12: 1戊 | B12: 高雄－後庄 | C12: 8528 | D12: 4 | E12: 64 | F12: － | G12: －
A13: 1己 | B13: 竹南－蘆竹湳 | C13: 4186 | D13: 3 | E13: 255 | F13: － | G13: －
A14: 2 | B14: 關渡－蘇澳 | C14: 169521 | D14: 112 | E14: 5172 | F14: 8 | G14: 4935
A15: 2甲 | B15: 金山－臺北 | C15: 37985 | D15: 8 | E15: 224 | F15: － | G15: －
A16: 2乙 | B16: 臺北－林子 | C16: 21658 | D16: 11 | E16: 706 | F16: － | G16: －
A17: 2丙 | B17: 暖暖－大溪 | C17: 19698 | D17: 22 | E17: 2149 | F17: 1 | G17: 1339
A18: 2丁 | B18: 八堵－瑞濱 | C18: 12689 | D18: 8 | E18: 225 | F18: 2 | G18: 566
A19: 2戊 | B19: 清水－蘇澳 | C19: 9305 | D19: 1 | E19: 11 | F19: － | G19: －
A20: 2己 | B20: 仙洞－大武崙 | C20: 3980 | D20: － | E20: － | F20: － | G20: －
A21: 2庚 | B21: 頭城－二城 | C21: 3736 | D21: 3 | E21: 482 | F21: － | G21: －
A22: 3 | B22: 臺北－屏東 | C22: 435832 | D22: 294 | E22: 19660 | F22: 5 | G22: 991
A23: 3甲 | B23: 草屯－五塊厝 | C23: 11695 | D23: 11 | E23: 369 | F23: － | G23: －
A24: 3乙 | B24: 員樹林－深窩 | C24: 12078 | D24: 7 | E24: 66 | F24: － | G24: －
A25: 3丙 | B25: 水底寮－林尾 | C25: 7133 | D25: 4 | E25: 441 | F25: － | G25: －
A26: 4 | B26: 竹圍－石門 | C26: 36706 | D26: 16 | E26: 1610 | F26: － | G26: －
A27: 5 | B27: 臺北－基隆 | C27: 28921 | D27: 23 | E27: 2640 | F27: 2 | G27: 269
A28: 5甲 | B28: 樟樹灣－六堵 | C28: 8631 | D28: 4 | E28: 108 | F28: － | G28: －
A29: 5乙 | B29: 汐止交流道－汐止陸橋 | C29: 2085 | D29: － | E29: － | F29: － | G29: －
A30: 6 | B30: 龍港－汶水 | C30: 31448 | D30: 12 | E30: 706 | F30: 7 | G30: 578
A31: 7 | B31: 大溪－公館 | C31: 129519 | D31: 46 | E31: 2497 | F31: 6 | G31: 1113
A32: 7甲 | B32: 棲蘭－梨山 | C32: 74217 | D32: 28 | E32: 1803 | F32: － | G32: －
A33: 7乙 | B33: 大埔－三民 | C33: 14206 | D33: 10 | E33: 143 | F33: － | G33: －
A34: 7丙 | B34: 牛鬥－利澤簡 | C34: 31510 | D34: 11 | E34: 1812 | F34: － | G34: －
A35: 8 | B35: 東勢－新城 | C35: 189994 | D35: 52 | E35: 1768 | F35: 66 | G35: 7700
A36: 8甲 | B36: 霸新－德基 | C36: 16866 | D36: － | E36: － | F36: － | G36: －
A37: 9 | B37: 臺北－楓港 | C37: 472558 | D37: 209 | E37: 20785 | F37: 22 | G37: 8725
A38: 9甲 | B38: 新店－宜蘭 | C38: 36043 | D38: 16 | E38: 1510 | F38: 1 | G38: 74
A39: 9乙 | B39: 檳榔－大南 | C39: 5182 | D39: 1 | E39: 10 | F39: － | G39: －
A40: 9丙 | B40: 花蓮－壽豐 | C40: 22820 | D40: 7 | E40: 472 | F40: － | G40: －
A41: 10 | B41: 臺中港－豐原 | C41: 21119 | D41: 4 | E41: 53 | F41: － | G41: －
A42: 10乙 | B42: 清水－西勢寮 | C42: 5271 | D42: 1 | E42: 8 | F42: － | G42: －
A43: 11 | B43: 花蓮－知本 | C43: 178229 | D43: 147 | E43: 9786 | F43: 4 | G43: 556
A44: 11甲 | B44: 光復－豐濱 | C44: 19291 | D44: 11 | E44: 526 | F44: － | G44: －
A45: 11乙 | B45: 富岡－卑南 | C45: 7405 | D45: 6 | E45: 1762 | F45: － | G45: －
A46: 11丙 | B46: 光華－溪口 | C46: 18290 | D46: 5 | E46: 2384 | F46: － | G46: －
A47: 12 | B47: 臺中港－臺中 | C47: 23193 | D47: 15 | E47: 430 | F47: － | G47: －
A48: 13 | B48: 內湖－豐原 | C48: 64644 | D48: 37 | E48: 5561 | F48: － | G48: －
A49: 13甲 | B49: 竹南－苗栗 | C49: 12735 | D49: 5 | E49: 454 | F49: 4 | G49: 1264
A50: 14 | B50: 彰化－廬山 | C50: 99016 | D50: 73 | E50: 3696 | F50: 17 | G50: 2822
A51: 14甲 | B51: 霧社－大禹嶺 | C51: 41596 | D51: － | E51: － | F51: － | G51: －
A52: 14乙 | B52: 芬園－五塊厝 | C52: 16899 | D52: 10 | E52: 520 | F52: － | G52: －
A53: 14丙 | B53: 三村－外快官 | C53: 2783 | D53: 3 | E53: 34 | F53: － | G53: －
A54: 14丁 | B54: 芬園－苦苓腳 | C54: 10461 | D54: 11 | E54: 110 | F54: － | G54: －
A55: 15 | B55: 關渡－南寮 | C55: 83951 | D55: 54 | E55: 5550 | F55: 1 | G55: 2275
A56: 15甲 | B56: 竹圍－沙崙 | C56: 1635 | D56: 1 | E56: 25 | F56: － | G56: －
A57: 16 | B57: 名間－鳳林 | C57: 42570 | D57: 20 | E57: 1372 | F57: 4 | G57: 1431
A58: 17 | B58: 甲南－水底寮 | C58: 274129 | D58: 141 | E58: 18739 | F58: － | G58: －
A59: 17甲 | B59: 安南－湖內橋 | C59: 26851 | D59: 9 | E59: 642 | F59: － | G59: －
A60: 17乙 | B60: 土城子－溪心寮 | C60: 5918 | D60: 6 | E60: 379 | F60: － | G60: －
A61: 18 | B61: 太保－塔塔加 | C61: 109316 | D61: 21 | E61: 1641 | F61: 6 | G61: 923
A62: 19 | B62: 彰化－臺南 | C62: 140336 | D62: 72 | E62: 7282 | F62: － | G62: －
A63: 19甲 | B63: 鹽水－赤崁 | C63: 76036 | D63: 34 | E63: 2537 | F63: － | G63: －
A64: 20 | B64: 臺南－德高 | C64: 203181 | D64: 102 | E64: 4362 | F64: 20 | G64: 4454
A65: 20甲 | B65: 初來－池上 | C65: 5714 | D65: 1 | E65: 870 | F65: － | G65: －
A66: 20乙 | B66: 左鎮－南化 | C66: 8058 | D66: 5 | E66: 238 | F66: － | G66: －
A67: 21 | B67: 天冷－林園 | C67: 248292 | D67: 154 | E67: 10221 | F67: 11 | G67: 2730
A68: 21甲 | B68: 日月潭－頭社 | C68: 20815 | D68: － | E68: － | F68: 2 | G68: 157
A69: 22 | B69: 楠梓－高樹 | C69: 33611 | D69: 20 | E69: 5774 | F69: － | G69: －
A70: 23 | B70: 富里－東河 | C70: 45224 | D70: 41 | E70: 1237 | F70: 2 | G70: 48
A71: 24 | B71: 屏東－阿禮 | C71: 48690 | D71: 16 | E71: 445 | F71: 1 | G71: 86
A72: 25 | B72: 鳳山－林園 | C72: 17045 | D72: 13 | E72: 393 | F72: － | G72: －
A73: 26 | B73: 楓港－達仁 | C73: 69796 | D73: 46 | E73: 1070 | F73: － | G73: －
A74: 27 | B74: 荖濃－烏龍 | C74: 79241 | D74: 41 | E74: 2271 | F74: － | G74: －
A75: 27甲 | B75: 六龜－新威 | C75: 14032 | D75: 12 | E75: 438 | F75: － | G75: －
A76: 28 | B76: 湖內橋－茂林 | C76: 49206 | D76: 41 | E76: 6938 | F76: － | G76: －
A77: 30 | B77: 山風－寧埔 | C77: 30316 | D77: 18 | E77: 907 | F77: 1 | G77: 2660
A78: 31 | B78: 蘆竹－新屋 | C78: 17876 | D78: 6 | E78: 312 | F78: － | G78: －
A79: 37 | B79: 新港－鹿草 | C79: 14453 | D79: 2 | E79: 670 | F79: － | G79: －
A80: 39 | B80: 新市－阿蓮 | C80: 18849 | D80: 5 | E80: 2175 | F80: － | G80: －
A81: 61 | B81: 八里－灣裡 | C81: 211013 | D81: 93 | E81: 41852 | F81: － | G81: －
A82: 61甲 | B82: 臺北港－八里 | C82: 2888 | D82: 2 | E82: 2085 | F82: － | G82: －
A83: 61乙 | B83: 彰濱－和美 | C83: 6340 | D83: 1 | E83: 25 | F83: － | G83: －
A84: 62 | B84: 萬里－瑞濱 | C84: 18821 | D84: 11 | E84: 2476 | F84: 10 | G84: 2552
A85: 62甲 | B85: 基隆－瑞芳 | C85: 2422 | D85: － | E85: － | F85: － | G85: －
A86: 63 | B86: 臺中－草屯 | C86: 18980 | D86: 11 | E86: 9962 | F86: － | G86: －
A87: 63甲 | B87: 芬園－草屯 | C87: 2173 | D87: 1 | E87: 42 | F87: － | G87: －
A88: 64 | B88: 八里－新店 | C88: 28390 | D88: 6 | E88: 4745 | F88: － | G88: －
A89: 65 | B89: 五股－土城 | C89: 8928 | D89: 1 | E89: 7850
A90: 66 | B90: 觀音－大溪 | C90: 27200 | D90: 10 | E90: 12762 | F90: － | G90: －
A91: 68 | B91: 南寮－竹東 | C91: 23541 | D91: 4 | E91: 3269 | F91: － | G91: －
A92: 68甲 | B92: 四重埔－竹東 | C92: 987 | D92: － | E92: － | F92: － | G92: －
A93: 72 | B93: 後龍－汶水 | C93: 28388 | D93: 32 | E93: 15786 | F93: 4 | G93: 705
A94: 74 | B94: 快官－霧峰 | C94: 30805 | D94: 3 | E94: 12788 | F94: － | G94: －
A95: 74甲 | B95: 快官－花壇 | C95: 10259 | D95: 12 | E95: 2756 | F95: － | G95: －
A96: 76 | B96: 漢寶－草屯 | C96: 21752 | D96: 2 | E96: 46 | F96: 2 | G96: 9863
A97: 78 | B97: 臺西－古坑 | C97: 43007 | D97: 58 | E97: 9483 | F97: － | G97: －
A98: 82 | B98: 東石－嘉義 | C98: 20626 | D98: 6 | E98: 6178 | F98: － | G98: －
A99: 84 | B99: 北門－玉井 | C99: 15048 | D99: 18 | E99: 2301 | F99: 2 | G99: 662
A100: 86 | B100: 臺南－關廟 | C100: 16709 | D100: 4 | E100: 320 | F100: － | G100: －
A101: 88 | B101: 高雄－潮州 | C101: 22383 | D101: 4 | E101: 2629 | F101: － | G101: －

Sheet 表15
A1: 表 15 臺灣地區國道路線里程、橋梁、隧道、收費站、
B2: 交流道及服務區
A3: 民國101 年底
G4: 收 | H4: 交 | I4: 服
B5: 路 線 | C5: 橋 | D5: 梁 | E5: 隧 | F5: 道 | G5: 費 | H5: 流 | I5: 務
A6: 路 線 別 | B6: 里 程 | G6: 站 | H6: 道 | I6: 區
B7: (公 里) | C7: 座 數 | D7: 長 度 | E7: 座 數 | F7: 長 度 | G7: (處) | H7: (處) | I7: (處)
C8: (座) | D8: (公 尺) | E8: (座) | F8: (公尺)
A9: 總 計 | B9: =SUM(B10:B18) -> 989 | C9: 1436 | D9: 460729 | E9: 33 | F9: 42220 | G9: 23 | H9: 168 | I9: 14
A10: 國道1號 | B10: 373 | C10: 484 | D10: 92404 | E10: 2 | F10: 955 | G10: 11 | H10: 69 | I10: 6
A11: 國道2號 | B11: 20 | C11: 34 | D11: 11131 | E11: － | F11: － | G11: － | H11: 5 | I11: －
A12: 國道3號 | B12: 432 | C12: 710 | D12: 237805 | E12: 21 | F12: 15892 | G12: 11 | H12: 66 | I12: 7
A13: 國道3甲 | B13: 6 | C13: 12 | D13: 2082 | E13: 2 | F13: 997 | G13: － | H13: 3 | I13: －
A14: 國道4號 | B14: 17 | C14: 23 | D14: 17610 | E14: － | F14: － | G14: － | H14: 4 | I14: －
A15: 國道5號 | B15: 54 | C15: 59 | D15: 35194 | E15: 5 | F15: 20127 | G15: 1 | H15: 6 | I15: 1
A16: 國道6號 | B16: 38 | C16: 38 | D16: 32746 | E16: 3 | F16: 4249 | G16: － | H16: 6 | I16: －
A17: 國道8號 | B17: 15 | C17: 29 | D17: 12993 | E17: － | F17: － | G17: － | H17: 4 | I17: －
A18: 國道10號 | B18: 34 | C18: 47 | D18: 18764 | E18: － | F18: － | G18: － | H18: 5 | I18: －
A19: 說明：「國道1號」係指中山高速公路 ( 基隆至高雄 )
A20: 「國道2號」係指桃園環線機場支線 ( 臺灣桃園機場至鶯歌系統交流道 )
A21: 「國道3號」係指福爾摩沙高速公路 ( 基金交流道至林邊 )
A22: 「國道3甲」係指臺北聯絡線 (臺北至深坑 )
A23: 「國道4號」係指臺中環線 ( 清水至豐原 )
A24: 「國道5號」係指蔣渭水高速公路(北宜高速公路) ( 南港系統交流道至蘇澳 )
A25: 「國道6號」係指國道3號霧峰系統交流道至埔里
A26: 「國道8號」係指臺南環線 ( 臺南至新化 )
A27: 「國道10號」係指高雄環線( 左營至旗山 )

Sheet 表16
A1: 表16 臺灣地區汽車運輸業家數 | H1: 表16 臺灣地區汽車運輸業家數 ( 續1 ) | O1: 表16 臺灣地區汽車運輸業家數 ( 續完 )
D2: 民國 101 年底 | G2: 單位：家 | K2: 民國 101 年底 | N2: 單位：家 | R2: 民國 101 年底 | U2: 單位：家
A3: 縣 市 別 | B3: 汽車客運 | D3: 遊覽車 | E3: 小客車 租賃業 | F3: 小貨車 租賃業 | G3: 兼營小客車租賃業、小貨車租賃業 | H3: 縣 市 別 | I3: 汽車 貨運業 | J3: 汽車貨櫃貨運業 | K3: 汽車路線貨運業 | L3: 兼營汽車貨運業、汽車貨櫃貨運業 | M3: 兼營汽車貨運業、汽車路線貨運業 | N3: 兼營汽車貨運、汽車貨櫃貨運業及汽車路線貨運業 | O3: 縣 市 別 | P3: 個人小貨車 貨運業 | Q3: 計程車 客運業 | R3: 計程車 客運服務業 | S3: 兼營計程車客運業、計程車客運服務業 | T3: 計程車運輸 合作社 | U3: 個人計程車
B5: 公路 | C5: 市區
A6: 總 計 | B6: 64 | C6: 46 | D6: 952 | E6: 1248 | F6: 57 | G6: 73 | H6: 總 計 | I6: 4655 | J6: 551 | K6: 4 | L6: 289 | M6: 7 | N6: 7 | O6: 總 計 | P6: 42 | Q6: 2921 | R6: 221 | S6: 575 | T6: 110 | U6: 34234
A7: 臺灣地區 | B7: 14 | C7: 14 | D7: 55 | E7: 79 | F7: 16 | G7: 1 | H7: 臺灣地區 | I7: 543 | J7: 108 | K7: 1 | L7: 29 | M7: 2 | N7: 1 | O7: 臺灣地區 | P7: 17 | Q7: 365 | R7: 85 | S7: 7 | T7: 47 | U7: 12409
A8: 新北市 | B8: 8 | C8: 14 | D8: 251 | E8: 326 | F8: 16 | G8: 33 | H8: 新北市 | I8: 336 | J8: 22 | K8: 0 | L8: 22 | M8: 0 | N8: 1 | O8: 新北市 | P8: 0 | Q8: 1287 | R8: 97 | S8: 87 | T8: 17 | U8: 5932
A9: 臺北市 | B9: 9 | C9: 11 | D9: 103 | E9: 178 | F9: 8 | G9: 16 | H9: 臺北市 | I9: 482 | J9: 74 | K9: 1 | L9: 43 | M9: 1 | N9: 2 | O9: 臺北市 | P9: 0 | Q9: 154 | R9: 3 | S9: 111 | T9: 9 | U9: 2204
A10: 臺中市 | B10: 4 | C10: 3 | D10: 67 | E10: 93 | F10: 1 | G10: 4 | H10: 臺中市 | I10: 290 | J10: 3 | K10: 2 | L10: 8 | M10: 1 | N10: 2 | O10: 臺中市 | P10: 0 | Q10: 159 | R10: 10 | S10: 2 | T10: 4 | U10: 1425
A11: 臺南市 | B11: 4 | C11: 5 | D11: 133 | E11: 103 | F11: 5 | G11: 8 | H11: 臺南市 | I11: 884 | J11: 180 | K11: 0 | L11: 121 | M11: 0 | N11: 0 | O11: 臺南市 | P11: 11 | Q11: 109 | R11: 11 | S11: 271 | T11: 11 | U11: 3030
A12: 高雄市 | B12: 25 | C12: 15 | D12: 327 | E12: 449 | F12: 11 | G12: 9 | H12: 高雄市 | I12: 2092 | J12: 164 | K12: 0 | L12: 66 | M12: 3 | N12: 1 | O12: 高雄市 | P12: 7 | Q12: 836 | R12: 15 | S12: 97 | T12: 19 | U12: 8865
A13: 宜蘭縣 | B13: 1 | C13: 2 | D13: 15 | E13: 33 | F13: 0 | G13: 0 | H13: 宜蘭縣 | I13: 174 | J13: 0 | K13: 0 | L13: 1 | M13: 0 | N13: 0 | O13: 宜蘭縣 | P13: 0 | Q13: 35 | R13: 2 | S13: 4 | T13: 0 | U13: 749
A14: 桃園縣 | B14: 7 | C14: 5 | D14: 83 | E14: 117 | F14: 8 | G14: 1 | H14: 桃園縣 | I14: 667 | J14: 57 | K14: 0 | L14: 16 | M14: 0 | N14: 0 | O14: 桃園縣 | P14: 2 | Q14: 124 | R14: 1 | S14: 20 | T14: 6 | U14: 1933
A15: 新竹縣 | B15: 1 | C15: 2 | D15: 23 | E15: 35 | F15: 0 | G15: 0 | H15: 新竹縣 | I15: 103 | J15: 6 | K15: 0 | L15: 2 | M15: 1 | N15: 1 | O15: 新竹縣 | P15: 0 | Q15: 41 | R15: 0 | S15: 0 | T15: 1 | U15: 311
A16: 苗栗縣 | B16: 2 | C16: 0 | D16: 21 | E16: 22 | F16: 0 | G16: 1 | H16: 苗栗縣 | I16: 129 | J16: 3 | K16: 0 | L16: 7 | M16: 0 | N16: 0 | O16: 苗栗縣 | P16: 0 | Q16: 93 | R16: 0 | S16: 2 | T16: 0 | U16: 277
A17: 彰化縣 | B17: 2 | C17: 1 | D17: 47 | E17: 18 | F17: 1 | G17: 3 | H17: 彰化縣 | I17: 230 | J17: 9 | K17: 0 | L17: 9 | M17: 0 | N17: 0 | O17: 彰化縣 | P17: 0 | Q17: 88 | R17: 1 | S17: 17 | T17: 1 | U17: 458
A18: 南投縣 | B18: 2 | C18: 0 | D18: 9 | E18: 31 | F18: 0 | G18: 0 | H18: 南投縣 | I18: 120 | J18: 1 | K18: 0 | L18: 1 | M18: 0 | N18: 0 | O18: 南投縣 | P18: 0 | Q18: 38 | R18: 0 | S18: 5 | T18: 0 | U18: 211
A19: 雲林縣 | B19: 2 | C19: 0 | D19: 18 | E19: 11 | F19: 0 | G19: 1 | H19: 雲林縣 | I19: 112 | J19: 5 | K19: 0 | L19: 7 | M19: 0 | N19: 0 | O19: 雲林縣 | P19: 1 | Q19: 72 | R19: 0 | S19: 0 | T19: 0 | U19: 166
A20: 嘉義縣 | B20: 0 | C20: 2 | D20: 12 | E20: 4 | F20: 0 | G20: 0 | H20: 嘉義縣 | I20: 40 | J20: 0 | K20: 0 | L20: 0 | M20: 0 | N20: 0 | O20: 嘉義縣 | P20: 0 | Q20: 28 | R20: 0 | S20: 0 | T20: 0 | U20: 223
A21: 屏東縣 | B21: 1 | C21: 1 | D21: 13 | E21: 23 | F21: 0 | G21: 0 | H21: 屏東縣 | I21: 99 | J21: 1 | K21: 0 | L21: 0 | M21: 0 | N21: 0 | O21: 屏東縣 | P21: 0 | Q21: 47 | R21: 0 | S21: 0 | T21: 2 | U21: 354
A22: 臺東縣 | B22: 1 | C22: 0 | D22: 4 | E22: 28 | F22: 0 | G22: 0 | H22: 臺東縣 | I22: 39 | J22: 1 | K22: 0 | L22: 1 | M22: 0 | N22: 0 | O22: 臺東縣 | P22: 0 | Q22: 27 | R22: 0 | S22: 0 | T22: 1 | U22: 218
A23: 花蓮縣 | B23: 1 | C23: 1 | D23: 16 | E23: 47 | F23: 0 | G23: 0 | H23: 花蓮縣 | I23: 84 | J23: 1 | K23: 0 | L23: 1 | M23: 2 | N23: 0 | O23: 花蓮縣 | P23: 0 | Q23: 99 | R23: 0 | S23: 11 | T23: 0 | U23: 646
A24: 澎湖縣 | B24: 0 | C24: 1 | D24: 12 | E24: 14 | F24: 0 | G24: 0 | H24: 澎湖縣 | I24: 8 | J24: 0 | K24: 0 | L24: 0 | M24: 0 | N24: 0 | O24: 澎湖縣 | P24: 0 | Q24: 21 | R24: 0 | S24: 0 | T24: 0 | U24: 244
A25: 基隆市 | B25: 1 | C25: 1 | D25: 8 | E25: 14 | F25: 0 | G25: 0 | H25: 基隆市 | I25: 136 | J25: 77 | K25: 0 | L25: 16 | M25: 0 | N25: 0 | O25: 基隆市 | P25: 2 | Q25: 50 | R25: 11 | S25: 36 | T25: 6 | U25: 2689
A26: 新竹市 | B26: 2 | C26: 1 | D26: 28 | E26: 46 | F26: 2 | G26: 2 | H26: 新竹市 | I26: 68 | J26: 2 | K26: 0 | L26: 2 | M26: 0 | N26: 0 | O26: 新竹市 | P26: 0 | Q26: 37 | R26: 0 | S26: 0 | T26: 1 | U26: 216
A27: 嘉義市 | B27: 2 | C27: 1 | D27: 18 | E27: 6 | F27: 0 | G27: 1 | H27: 嘉義市 | I27: 83 | J27: 1 | K27: 0 | L27: 3 | M27: 0 | N27: 0 | O27: 嘉義市 | P27: 2 | Q27: 36 | R27: 0 | S27: 2 | T27: 1 | U27: 170
A28: 金馬地區 | B28: 0 | C28: 2 | D28: 16 | E28: 20 | F28: 0 | G28: 2 | H28: 金馬地區 | I28: 28 | J28: 0 | K28: 0 | L28: 0 | M28: 0 | N28: 0 | O28: 金馬地區 | P28: 7 | Q28: 11 | R28: 0 | S28: 0 | T28: 3 | U28: 369
A29: 金門縣 | B29: 0 | C29: 1 | D29: 15 | E29: 18 | F29: 0 | G29: 2 | H29: 金門縣 | I29: 24 | J29: 0 | K29: 0 | L29: 0 | M29: 0 | N29: 0 | O29: 金門縣 | P29: 4 | Q29: 8 | R29: 0 | S29: 0 | T29: 3 | U29: 149
A30: 連江縣 | B30: 0 | C30: 1 | D30: 1 | E30: 2 | F30: 0 | G30: 0 | H30: 連江縣 | I30: 4 | J30: 0 | K30: 0 | L30: 0 | M30: 0 | N30: 0 | O30: 連江縣 | P30: 3 | Q30: 3 | R30: 0 | S30: 0 | T30: 0 | U30: 220
A31: 說明：市區客運若跨縣市營運，以核定路線之縣市分別計算1家，惟總計及臺灣省家數僅
A32: 依客運公司別列計1家；公路汽車客運及汽車客貨運輸業家數，則以運輸業登記所
A33: 在縣市列計。

Sheet 表17
A1: 表17 機動車輛登記數 | K1: 表 17 機動車輛登記數 ( 續 1 ) | O1: 表 17 機動車輛登記數 ( 續完 )
D2: 民國 101 年底 | H2: 單位：輛 | K2: 民國 101 年底 | O2: 單位：輛 | Q2: 民國 101 年底 | S2: 單位：輛
A3: 車種別 | B3: 總 計 | C3: 大 | D3: 客 | E3: 車 | F3: 大 | G3: 貨 | H3: 車 | I3: 小 | J3: 客 | K3: 車 | M3: 小 | N3: 貨 | O3: 車 | P3: 特 種 車 | R3: 機 器 腳 踏 車
C4: 計 | D4: 自 用 | E4: 營 業 | F4: 計 | G4: 自 用 | H4: 營 業 | I4: 計 | J4: 自 用 | K4: 營 業 | M4: 計 | N4: 自 用 | O4: 營 業 | Q4: 計 | R4: 重 型 | S4: 輕 型
A5: 地區別 | L5: 計程車
A6: 總 計 | B6: 22346398 | C6: 31098 | D6: 1770 | E6: 29328 | F6: 161256 | G6: 91468 | H6: 69788 | I6: 6091324 | J6: 5909115 | K6: 182209 | L6: 86654 | M6: 862230 | N6: 828914 | O6: 33316 | P6: 60862 | Q6: 15139628 | R6: 11820632 | S6: 3318996
A7: 臺灣地區 | B7: 22265065 | C7: 30793 | D7: 1750 | E7: 29043 | F7: 160529 | G7: 90888 | H7: 69641 | I7: 6066450 | J7: 5884984 | K7: 181466 | L7: 86095 | M7: 859272 | N7: 825997 | O7: 33275 | P7: 60330 | Q7: 15087691 | R7: 11777837 | S7: 3309854
A8: 新北市 | B8: 3309078 | C8: 6431 | D8: 206 | E8: 6225 | F8: 14337 | G8: 6808 | H8: 7529 | I8: 818705 | J8: 794706 | K8: 23999 | L8: 22600 | M8: 91595 | N8: 86635 | O8: 4960 | P8: 9099 | Q8: 2368911 | R8: 1916065 | S8: 452846
A9: 臺北市 | B9: 1856536 | C9: 7187 | D9: 232 | E9: 6955 | F9: 6072 | G9: 3863 | H9: 2209 | I9: 675228 | J9: 575653 | K9: 99575 | L9: 30316 | M9: 59877 | N9: 41736 | O9: 18141 | P9: 8238 | Q9: 1099934 | R9: 859852 | S9: 240082
A10: 臺中市 | B10: 2726395 | C10: 3014 | D10: 211 | E10: 2803 | F10: 23582 | G10: 12748 | H10: 10834 | I10: 819550 | J10: 805706 | K10: 13844 | L10: 6677 | M10: 113215 | N10: 110042 | O10: 3173 | P10: 7134 | Q10: 1759900 | R10: 1395037 | S10: 364863
A11: 臺南市 | B11: 2051349 | C11: 1841 | D11: 92 | E11: 1749 | F11: 12262 | G11: 7933 | H11: 4329 | I11: 510491 | J11: 502114 | K11: 8377 | L11: 3317 | M11: 78807 | N11: 77465 | O11: 1342 | P11: 4484 | Q11: 1443464 | R11: 1087706 | S11: 355758
A12: 高雄市 | B12: 3113462 | C12: 3451 | D12: 184 | E12: 3267 | F12: 25025 | G12: 11743 | H12: 13282 | I12: 699256 | J12: 685672 | K12: 13584 | L12: 7731 | M12: 95865 | N12: 93641 | O12: 2224 | P12: 6470 | Q12: 2283395 | R12: 1695165 | S12: 588230
A13: 宜蘭縣 | B13: 441791 | C13: 262 | D13: 40 | E13: 222 | F13: 4222 | G13: 2140 | H13: 2082 | I13: 118747 | J13: 117612 | K13: 1135 | L13: 773 | M13: 19008 | N13: 18938 | O13: 70 | P13: 1389 | Q13: 298163 | R13: 228948 | S13: 69215
A14: 桃園縣 | B14: 1830394 | C14: 2081 | D14: 123 | E14: 1958 | F14: 18380 | G14: 8667 | H14: 9713 | I14: 581095 | J14: 575017 | K14: 6078 | L14: 5196 | M14: 64820 | N14: 62783 | O14: 2037 | P14: 4546 | Q14: 1159472 | R14: 879056 | S14: 280416
A15: 新竹縣 | B15: 484589 | C15: 401 | D15: 40 | E15: 361 | F15: 4485 | G15: 2082 | H15: 2403 | I15: 167200 | J15: 166369 | K15: 831 | L15: 473 | M15: 19000 | N15: 18521 | O15: 479 | P15: 1260 | Q15: 292243 | R15: 247128 | S15: 45115
A16: 苗栗縣 | B16: 564719 | C16: 546 | D16: 98 | E16: 448 | F16: 5046 | G16: 3139 | H16: 1907 | I16: 170834 | J16: 170290 | K16: 544 | L16: 379 | M16: 24316 | N16: 24277 | O16: 39 | P16: 1706 | Q16: 362271 | R16: 295288 | S16: 66983
A17: 彰化縣 | B17: 1379192 | C17: 1206 | D17: 73 | E17: 1133 | F17: 12466 | G17: 8839 | H17: 3627 | I17: 367489 | J17: 364740 | K17: 2749 | L17: 705 | M17: 71119 | N17: 70790 | O17: 329 | P17: 3169 | Q17: 923743 | R17: 744582 | S17: 179161
A18: 南投縣 | B18: 555395 | C18: 262 | D18: 67 | E18: 195 | F18: 4517 | G18: 2896 | H18: 1621 | I18: 156222 | J18: 155810 | K18: 412 | L18: 247 | M18: 32959 | N18: 32958 | O18: 1 | P18: 1642 | Q18: 359793 | R18: 290727 | S18: 69066
A19: 雲林縣 | B19: 738223 | C19: 621 | D19: 66 | E19: 555 | F19: 7883 | G19: 5141 | H19: 2742 | I19: 192066 | J19: 191659 | K19: 407 | L19: 239 | M19: 43557 | N19: 43534 | O19: 23 | P19: 1946 | Q19: 492150 | R19: 383870 | S19: 108280
A20: 嘉義縣 | B20: 557533 | C20: 160 | D20: 50 | E20: 110 | F20: 4434 | G20: 3947 | H20: 487 | I20: 142576 | J20: 142279 | K20: 297 | L20: 276 | M20: 34618 | N20: 34585 | O20: 33 | P20: 1323 | Q20: 374422 | R20: 289252 | S20: 85170
A21: 屏東縣 | B21: 967388 | C21: 465 | D21: 42 | E21: 423 | F21: 6174 | G21: 4431 | H21: 1743 | I21: 205933 | J21: 205365 | K21: 568 | L21: 470 | M21: 47721 | N21: 47717 | O21: 4 | P21: 2148 | Q21: 704947 | R21: 551168 | S21: 153779
A22: 臺東縣 | B22: 246208 | C22: 149 | D22: 24 | E22: 125 | F22: 1610 | G22: 1251 | H22: 359 | I22: 52977 | J22: 52274 | K22: 703 | L22: 396 | M22: 14669 | N22: 14667 | O22: 2 | P22: 938 | Q22: 175865 | R22: 140911 | S22: 34954
A23: 花蓮縣 | B23: 355530 | C23: 396 | D23: 89 | E23: 307 | F23: 2504 | G23: 1594 | H23: 910 | I23: 89383 | J23: 87756 | K23: 1627 | L23: 1006 | M23: 17722 | N23: 17691 | O23: 31 | P23: 1287 | Q23: 244238 | R23: 185603 | S23: 58635
A24: 澎湖縣 | B24: 98283 | C24: 208 | D24: 8 | E24: 200 | F24: 473 | G24: 457 | H24: 16 | I24: 20516 | J24: 20189 | K24: 327 | L24: 242 | M24: 3209 | N24: 3208 | O24: 1 | P24: 417 | Q24: 73460 | R24: 57505 | S24: 15955
A25: 基隆市 | B25: 286325 | C25: 460 | D25: 19 | E25: 441 | F25: 2261 | G25: 531 | H25: 1730 | I25: 80939 | J25: 76883 | K25: 4056 | L25: 3987 | M25: 6250 | N25: 6133 | O25: 117 | P25: 1086 | Q25: 195329 | R25: 163855 | S25: 31474
A26: 新竹市 | B26: 411113 | C26: 993 | D26: 48 | E26: 945 | F26: 2330 | G26: 1453 | H26: 877 | I26: 123653 | J26: 121821 | K26: 1832 | L26: 677 | M26: 11351 | N26: 11122 | O26: 229 | P26: 1227 | Q26: 271559 | R26: 226718 | S26: 44841
A27: 嘉義市 | B27: 291562 | C27: 659 | D27: 38 | E27: 621 | F27: 2466 | G27: 1225 | H27: 1241 | I27: 73590 | J27: 73069 | K27: 521 | L27: 388 | M27: 9594 | N27: 9554 | O27: 40 | P27: 821 | Q27: 204432 | R27: 139401 | S27: 65031
A28: 金馬地區 | B28: 81333 | C28: 305 | D28: 20 | E28: 285 | F28: 727 | G28: 580 | H28: 147 | I28: 24874 | J28: 24131 | K28: 743 | L28: 559 | M28: 2958 | N28: 2917 | O28: 41 | P28: 532 | Q28: 51937 | R28: 42795 | S28: 9142
A29: 金門縣 | B29: 73675 | C29: 259 | D29: 16 | E29: 243 | F29: 605 | G29: 486 | H29: 119 | I29: 22947 | J29: 22321 | K29: 626 | L29: 453 | M29: 2713 | N29: 2676 | O29: 37 | P29: 404 | Q29: 46747 | R29: 37991 | S29: 8756
A30: 連江縣 | B30: 7658 | C30: 46 | D30: 4 | E30: 42 | F30: 122 | G30: 94 | H30: 28 | I30: 1927 | J30: 1810 | K30: 117 | L30: 106 | M30: 245 | N30: 241 | O30: 4 | P30: 128 | Q30: 5190 | R30: 4804 | S30: 386
A31: 說明：民國100年縣市改制後，臺中市包含原臺中縣；臺南市包含原臺南縣；高雄市
A32: 包含原高雄縣統計資料。

Sheet 表18
A1: 表18 機動車輛登記數按車齡分 | I1: 表18 機動車輛登記數按車齡分 ( 續 1 ) | P1: 表18 機動車輛登記數按車齡分 ( 續完 )
D2: 民國 101 年底 | H2: 單位：輛 | K2: 民國 101 年底 | O2: 單位：輛 | Q2: 民國 101 年底 | S2: 單位：輛
A3: 車種別 | B3: 總 計 | C3: 大 | D3: 客 | E3: 車 | F3: 大 | G3: 貨 | H3: 車 | I3: 小 | J3: 客 | K3: 車 | M3: 小 | N3: 貨 | O3: 車 | P3: 特 種 車 | R3: 機 器 腳 踏 車
C4: 計 | D4: 自 用 | E4: 營 業 | F4: 計 | G4: 自 用 | H4: 營 業 | I4: 計 | J4: 自 用 | K4: 營 業 | M4: 計 | N4: 自 用 | O4: 營 業 | Q4: 計 | R4: 重 型 | S4: 輕 型
A5: 車齡 | L5: 計程車
A6: 總 計 | B6: 22346398 | C6: 31098 | D6: 1770 | E6: 29328 | F6: 161256 | G6: 91468 | H6: 69788 | I6: 6091324 | J6: 5909115 | K6: 182209 | L6: 86654 | M6: 862230 | N6: 828914 | O6: 33316 | P6: 60862 | Q6: 15139628 | R6: 11820632 | S6: 3318996
A7: 未滿 1年 | B7: 905026 | C7: 3389 | D7: 70 | E7: 3319 | F7: 5204 | G7: 2229 | H7: 2975 | I7: 290976 | J7: 255452 | K7: 35524 | L7: 7545 | M7: 28994 | N7: 21148 | O7: 7846 | P7: 3520 | Q7: 572943 | R7: 562685 | S7: 10258
A8: 1－未滿 2年 | B8: 1026785 | C8: 3252 | D8: 65 | E8: 3187 | F8: 5829 | G8: 2365 | H8: 3464 | I8: 337497 | J8: 302405 | K8: 35092 | L8: 7545 | M8: 28694 | N8: 21702 | O8: 6992 | P8: 4218 | Q8: 647295 | R8: 636554 | S8: 10741
A9: 2－未滿 3年 | B9: 867864 | C9: 3033 | D9: 73 | E9: 2960 | F9: 4884 | G9: 2433 | H9: 2451 | I9: 288348 | J9: 259886 | K9: 28462 | L9: 6157 | M9: 24839 | N9: 19388 | O9: 5451 | P9: 3345 | Q9: 543415 | R9: 534450 | S9: 8965
A10: 3－未滿 4年 | B10: 748820 | C10: 1969 | D10: 62 | E10: 1907 | F10: 2306 | G10: 1382 | H10: 924 | I10: 243190 | J10: 231227 | K10: 11963 | L10: 5052 | M10: 23029 | N10: 20815 | O10: 2214 | P10: 4129 | Q10: 474197 | R10: 465757 | S10: 8440
A11: 4－未滿 5年 | B11: 1076584 | C11: 1650 | D11: 94 | E11: 1556 | F11: 3474 | G11: 1947 | H11: 1527 | I11: 193811 | J11: 186154 | K11: 7657 | L11: 3972 | M11: 19179 | N11: 17505 | O11: 1674 | P11: 4070 | Q11: 854400 | R11: 835484 | S11: 18916
A12: 5－未滿 6年 | B12: 1065269 | C12: 1239 | D12: 90 | E12: 1149 | F12: 2913 | G12: 1871 | H12: 1042 | I12: 290228 | J12: 283624 | K12: 6604 | L12: 4347 | M12: 29221 | N12: 28158 | O12: 1063 | P12: 3896 | Q12: 737772 | R12: 709389 | S12: 28383
A13: 6－未滿 7年 | B13: 1091099 | C13: 2927 | D13: 79 | E13: 2848 | F13: 8172 | G13: 3971 | H13: 4201 | I13: 302150 | J13: 296641 | K13: 5509 | L13: 4419 | M13: 41806 | N13: 40402 | O13: 1404 | P13: 4323 | Q13: 731721 | R13: 681480 | S13: 50241
A14: 7－未滿 8年 | B14: 1277786 | C14: 1829 | D14: 80 | E14: 1749 | F14: 6687 | G14: 2864 | H14: 3823 | I14: 441882 | J14: 432741 | K14: 9141 | L14: 8243 | M14: 47441 | N14: 46044 | O14: 1397 | P14: 3383 | Q14: 776564 | R14: 699479 | S14: 77085
A15: 8－未滿 9年 | B15: 1206256 | C15: 1931 | D15: 61 | E15: 1870 | F15: 6224 | G15: 2442 | H15: 3782 | I15: 409076 | J15: 400258 | K15: 8818 | L15: 8185 | M15: 45010 | N15: 43843 | O15: 1167 | P15: 3274 | Q15: 740741 | R15: 640350 | S15: 100391
A16: 9－未滿10年 | B16: 1098157 | C16: 1480 | D16: 67 | E16: 1413 | F16: 4050 | G16: 1737 | H16: 2313 | I16: 354238 | J16: 347627 | K16: 6611 | L16: 6160 | M16: 37821 | N16: 36974 | O16: 847 | P16: 3026 | Q16: 697542 | R16: 542074 | S16: 155468
A17: 10－未滿11年 | B17: 922368 | C17: 1546 | D17: 51 | E17: 1495 | F17: 3405 | G17: 1472 | H17: 1933 | I17: 322500 | J17: 316521 | K17: 5979 | L17: 5576 | M17: 40662 | N17: 40005 | O17: 657 | P17: 2245 | Q17: 552010 | R17: 418627 | S17: 133383
A18: 11－未滿12年 | B18: 844112 | C18: 1741 | D18: 78 | E18: 1663 | F18: 2889 | G18: 1280 | H18: 1609 | I18: 276575 | J18: 272384 | K18: 4191 | L18: 3848 | M18: 35335 | N18: 34572 | O18: 763 | P18: 1895 | Q18: 525677 | R18: 401460 | S18: 124217
A19: 12－未滿13年 | B19: 997314 | C19: 831 | D19: 70 | E19: 761 | F19: 5140 | G19: 2033 | H19: 3107 | I19: 328967 | J19: 324704 | K19: 4263 | L19: 3946 | M19: 46492 | N19: 45947 | O19: 545 | P19: 1926 | Q19: 613958 | R19: 452054 | S19: 161904
A20: 13－未滿14年 | B20: 968919 | C20: 887 | D20: 151 | E20: 736 | F20: 5251 | G20: 2570 | H20: 2681 | I20: 298394 | J20: 295311 | K20: 3083 | L20: 2843 | M20: 46155 | N20: 45832 | O20: 323 | P20: 2343 | Q20: 615889 | R20: 419380 | S20: 196509
A21: 14－未滿15年 | B21: 995723 | C21: 993 | D21: 132 | E21: 861 | F21: 6906 | G21: 3575 | H21: 3331 | I21: 315244 | J21: 312485 | K21: 2759 | L21: 2610 | M21: 49317 | N21: 49004 | O21: 313 | P21: 2332 | Q21: 620931 | R21: 431226 | S21: 189705
A22: 15－未滿16年 | B22: 994444 | C22: 672 | D22: 113 | E22: 559 | F22: 6635 | G22: 3593 | H22: 3042 | I22: 292943 | J22: 291130 | K22: 1813 | L22: 1677 | M22: 51206 | N22: 50902 | O22: 304 | P22: 2007 | Q22: 640981 | R22: 403391 | S22: 237590
A23: 16－未滿17年 | B23: 872237 | C23: 282 | D23: 56 | E23: 226 | F23: 4308 | G23: 2572 | H23: 1736 | I23: 254602 | J23: 253292 | K23: 1310 | L23: 1242 | M23: 44190 | N23: 44058 | O23: 132 | P23: 1584 | Q23: 567271 | R23: 372636 | S23: 194635
A24: 17－未滿18年 | B24: 886752 | C24: 359 | D24: 76 | E24: 283 | F24: 7994 | G24: 4555 | H24: 3439 | I24: 234555 | J24: 233298 | K24: 1257 | L24: 1196 | M24: 50737 | N24: 50677 | O24: 60 | P24: 1507 | Q24: 591600 | R24: 368979 | S24: 222621
A25: 18－未滿19年 | B25: 907912 | C25: 325 | D25: 63 | E25: 262 | F25: 9262 | G25: 5913 | H25: 3349 | I25: 204369 | J25: 203370 | K25: 999 | L25: 959 | M25: 48301 | N25: 48251 | O25: 50 | P25: 1298 | Q25: 644357 | R25: 417386 | S25: 226971
A26: 19－未滿20年 | B26: 767331 | C26: 221 | D26: 46 | E26: 175 | F26: 12458 | G26: 7848 | H26: 4610 | I26: 152975 | J26: 152407 | K26: 568 | L26: 554 | M26: 40574 | N26: 40529 | O26: 45 | P26: 1315 | Q26: 559788 | R26: 339344 | S26: 220444
A27: 20－未滿21年 | B27: 613002 | C27: 222 | D27: 45 | E27: 177 | F27: 15765 | G27: 9495 | H27: 6270 | I27: 114231 | J27: 113902 | K27: 329 | L27: 313 | M27: 32529 | N27: 32503 | O27: 26 | P27: 1261 | Q27: 448994 | R27: 262840 | S27: 186154
A28: 21－未滿22年 | B28: 428995 | C28: 99 | D28: 38 | E28: 61 | F28: 7382 | G28: 5298 | H28: 2084 | I28: 62658 | J28: 62520 | K28: 138 | L28: 133 | M28: 21955 | N28: 21928 | O28: 27 | P28: 857 | Q28: 336044 | R28: 188869 | S28: 147175
A29: 22－未滿23年 | B29: 344983 | C29: 57 | D29: 29 | E29: 28 | F29: 6333 | G29: 4730 | H29: 1603 | I29: 37353 | J29: 37293 | K29: 60 | L29: 59 | M29: 14547 | N29: 14534 | O29: 13 | P29: 780 | Q29: 285913 | R29: 164022 | S29: 121891
A30: 23－未滿24年 | B30: 290749 | C30: 53 | D30: 19 | E30: 34 | F30: 5950 | G30: 4561 | H30: 1389 | I30: 23934 | J30: 23897 | K30: 37 | L30: 36 | M30: 7328 | N30: 7328 | O30: 0 | P30: 587 | Q30: 252897 | R30: 147119 | S30: 105778
A31: 24－未滿25年 | B31: 269988 | C31: 39 | D31: 13 | E31: 26 | F31: 4904 | G31: 3524 | H31: 1380 | I31: 9797 | J31: 9779 | K31: 18 | L31: 17 | M31: 2999 | N31: 2999 | O31: 0 | P31: 371 | Q31: 251878 | R31: 153477 | S31: 98401
A32: 25年以上 | B32: 877923 | C32: 72 | D32: 49 | E32: 23 | F32: 6931 | G32: 5208 | H32: 1723 | I32: 10831 | J32: 10807 | K32: 24 | L32: 20 | M32: 3869 | N32: 3866 | O32: 3 | P32: 1370 | Q32: 854850 | R32: 572120 | S32: 282730

Sheet 表19
A1: 表 19 臺灣地區小型汽車停車位概況按縣市分 | F1: 表 19 臺灣地區汽車停車位概況按縣市分 ( 續 )
C2: 民國 101 年底 | E2: 單位：個 | H2: 民國 101 年底 | K2: 單位：個
A3: 縣 市 別 | B3: 總 計 | D3: 路 外 停 車 場 | F3: 縣 市 別 | H3: 路 邊 停 車 場 | J3: 建築物附屬 | K3: 風景遊樂區
C4: 計 | D4: 公 有 | E4: 私 有 | G4: 計 | H4: 收 費 | I4: 不 收 費 | J4: 停 車 空 間 | K4: 停 車 埸
A5: 臺灣地區 | B5: 3940879 | C5: 614512 | D5: 251626 | E5: 362886 | F5: 臺灣地區 | G5: 228752 | H5: 141418 | I5: 87294 | J5: 3037769 | K5: 59846
A6: 新北市 | B6: 656702 | C6: 192913 | D6: 46212 | E6: 146701 | F6: 新北市 | G6: 34182 | H6: 28524 | I6: 5658 | J6: 424139 | K6: 5468
A7: 臺北市 | B7: 723528 | C7: 147575 | D7: 51273 | E7: 96302 | F7: 臺北市 | G7: 49208 | H7: 24732 | I7: 24476 | J7: 526745 | K7: 0
A8: 臺中市 | B8: 458840 | C8: 46056 | D8: 29357 | E8: 16699 | F8: 臺中市 | G8: 33833 | H8: 18774 | I8: 15059 | J8: 374047 | K8: 4904
A9: 臺南市 | B9: 267372 | C9: 34550 | D9: 23169 | E9: 11381 | F9: 臺南市 | G9: 14451 | H9: 11095 | I9: 3356 | J9: 210222 | K9: 8149
A10: 高雄市 | B10: 459064 | C10: 48690 | D10: 17206 | E10: 31484 | F10: 高雄市 | G10: 40704 | H10: 32599 | I10: 8105 | J10: 367630 | K10: 2040
A11: 臺灣省 | B11: 1375373 | C11: 144728 | D11: 84409 | E11: 60319 | F11: 臺灣省 | G11: 56374 | H11: 25734 | I11: 30640 | J11: 1134986 | K11: 39285
A12: 宜蘭縣 | B12: 65677 | C12: 4508 | D12: 4138 | E12: 370 | F12: 宜蘭縣 | G12: 1192 | H12: 649 | I12: 543 | J12: 57029 | K12: 2948
A13: 桃園縣 | B13: 470353 | C13: 57839 | D13: 17623 | E13: 40216 | F13: 桃園縣 | G13: 13680 | H13: 10928 | I13: 2752 | J13: 396234 | K13: 2600
A14: 新竹縣 | B14: 137180 | C14: 8036 | D14: 6818 | E14: 1218 | F14: 新竹縣 | G14: 3900 | H14: 2788 | I14: 1112 | J14: 118610 | K14: 6634
A15: 苗栗縣 | B15: 56246 | C15: 3698 | D15: 3698 | E15: 0 | F15: 苗栗縣 | G15: 977 | H15: 0 | I15: 977 | J15: 46521 | K15: 5050
A16: 彰化縣 | B16: 90647 | C16: 11703 | D16: 10565 | E16: 1138 | F16: 彰化縣 | G16: 6010 | H16: 0 | I16: 6010 | J16: 72306 | K16: 628
A17: 南投縣 | B17: 42241 | C17: 4358 | D17: 3965 | E17: 393 | F17: 南投縣 | G17: 1321 | H17: 0 | I17: 1321 | J17: 29469 | K17: 7093
A18: 雲林縣 | B18: 132789 | C18: 4588 | D18: 3770 | E18: 818 | F18: 雲林縣 | G18: 283 | H18: 0 | I18: 283 | J18: 117838 | K18: 10080
A19: 嘉義縣 | B19: 51634 | C19: 7061 | D19: 4256 | E19: 2805 | F19: 嘉義縣 | G19: 5434 | H19: 607 | I19: 4827 | J19: 39079 | K19: 60
A20: 屏東縣 | B20: 51942 | C20: 3255 | D20: 2815 | E20: 440 | F20: 屏東縣 | G20: 6259 | H20: 988 | I20: 5271 | J20: 41625 | K20: 803
A21: 臺東縣 | B21: 15043 | C21: 1952 | D21: 1952 | E21: 0 | F21: 臺東縣 | G21: 1138 | H21: 560 | I21: 578 | J21: 11240 | K21: 713
A22: 花蓮縣 | B22: 40594 | C22: 7342 | D22: 6591 | E22: 751 | F22: 花蓮縣 | G22: 4083 | H22: 1372 | I22: 2711 | J22: 26927 | K22: 2242
A23: 澎湖縣 | B23: 12823 | C23: 1751 | D23: 1751 | E23: 0 | F23: 澎湖縣 | G23: 368 | H23: 0 | I23: 368 | J23: 10704 | K23: 0
A24: 基隆市 | B24: 46988 | C24: 7528 | D24: 5623 | E24: 1905 | F24: 基隆市 | G24: 1027 | H24: 1027 | I24: 0 | J24: 38297 | K24: 136
A25: 新竹市 | B25: 113020 | C25: 16505 | D25: 8133 | E25: 8372 | F25: 新竹市 | G25: 8701 | H25: 4814 | I25: 3887 | J25: 87556 | K25: 258
A26: 嘉義市 | B26: 48196 | C26: 4604 | D26: 2711 | E26: 1893 | F26: 嘉義市 | G26: 2001 | H26: 2001 | I26: 0 | J26: 41551 | K26: 40
A27: 說明：臺北市及澎湖縣「風景遊樂區停車場」已併入路外、路邊停車場及建築物附設
A28: 停車空間內，無個別統計資料。

Sheet 表20
A1: 表 20 國籍航空公司適航航空器按航空公司及機種分
C2: 民國 101 年底 | F2: 單位：架
A3: 公 司 名 稱 | B3: 總 計 | C3: 定 翼 機 | F3: 直 昇 機
C4: 客 機 | D4: 貨 機 | E4: 其他定翼機
A5: 總計 | B5: =SUM(B6:B21) -> 203 | C5: =SUM(C6:C21) -> 154 | D5: 34 | E5: 6 | F5: 9
A6: 民用航空局 | B6: =SUM(C6:F6) -> 2 | C6: － | D6: － | E6: 2 | F6: －
A7: 中華航空 | B7: 69 | C7: 50 | D7: 19 | E7: － | F7: －
A8: 長榮航空 | B8: 55 | C8: 40 | D8: 15 | E8: － | F8: －
A9: 華信航空 | B9: 8 | C9: 8 | D9: － | E9: － | F9: －
A10: 遠東航空 | B10: 7 | C10: 7 | D10: － | E10: － | F10: －
A11: 復興航空 | B11: 19 | C11: 19 | D11: － | E11: － | F11: －
A12: 立榮航空 | B12: 19 | C12: 19 | D12: － | E12: － | F12: －
A13: 德安航空 | B13: 6 | C13: 4 | D13: － | E13: － | F13: 2
A14: 中興航空 | B14: 4 | C14: 2 | D14: － | E14: － | F14: 2
A15: 凌天航空 | B15: 5 | C15: － | D15: － | E15: － | F15: 5
A16: 大鵬航空 | B16: 1 | C16: － | D16: － | E16: 1 | F16: －
A17: 漢翔航空 | B17: 1 | C17: － | D17: － | E17: 1 | F17: －
A18: 群鷹翔航空 | B18: 2 | C18: － | D18: － | E18: 2 | F18: －
A19: 華捷商務航空 | B19: 2 | C19: 2 | D19: － | E19: － | F19: －
A20: 前進航空 | B20: 1 | C20: 1 | D20: － | E20: － | F20: －
A21: 飛特立航空 | B21: 2 | C21: 2 | D21: － | E21: － | F21: －

Sheet 表21
A1: 表 21 國籍航空公司適航航空器按航空公司及機齡分
A2: 民國 101 年底
B3: 總 計 | C3: 未滿 5 年 | D3: 5 年 至 | E3: 10 年 至 | F3: 15年以上 | G3: 平均機齡
A4: 公 司 名 稱 | D4: 未滿10年 | E4: 未滿15年
B5: (架) | C5: (架) | D5: (架) | E5: (架) | F5: ( 架 ) | G5: ( 年 )
A6: 總計 | B6: =SUM(B7:B22) -> 203 | C6: =SUM(C7:C22) -> 36 | D6: 60 | E6: 51 | F6: 56 | G6: 10.7
A7: 民用航空局 | B7: =SUM(C7:F7) -> 2 | C7: 1 | D7: － | E7: － | F7: 1 | G7: 11.2
A8: 中華航空 | B8: 69 | C8: 6 | D8: 32 | E8: 26 | F8: 5 | G8: 9.4
A9: 長榮航空 | B9: 55 | C9: 13 | D9: 19 | E9: 12 | F9: 11 | G9: 9.5
A10: 華信航空 | B10: 8 | C10: 5 | D10: 3 | E10: － | F10: － | G10: 4.7
A11: 遠東航空 | B11: 7 | C11: － | D11: － | E11: 2 | F11: 5 | G11: 18.1
A12: 復興航空 | B12: 19 | C12: 2 | D12: 3 | E12: 6 | F12: 8 | G12: 12.1
A13: 立榮航空 | B13: 19 | C13: 2 | D13: － | E13: 2 | F13: 15 | G13: 14.4
A14: 德安航空 | B14: 6 | C14: － | D14: － | E14: － | F14: 6 | G14: 19.3
A15: 中興航空 | B15: 4 | C15: 2 | D15: － | E15: － | F15: 2 | G15: 13.1
A16: 凌天航空 | B16: 5 | C16: 1 | D16: 2 | E16: 2 | F16: － | G16: 7.9
A17: 大鵬航空 | B17: 1 | C17: － | D17: － | E17: － | F17: 1 | G17: 21.6
A18: 漢翔航空 | B18: =SUM(C18:F18) -> 1 | C18: － | D18: － | E18: 1 | F18: － | G18: 13.1
A19: 群鷹翔航空 | B19: =SUM(C19:F19) -> 2 | C19: － | D19: － | E19: － | F19: 2 | G19: 21.7
A20: 華捷商務航空 | B20: =SUM(C20:F20) -> 2 | C20: 2 | D20: － | E20: － | F20: － | G20: 2.4
A21: 前進航空 | B21: =SUM(C21:F21) -> 1 | C21: 1 | D21: － | E21: － | F21: － | G21: 0.4
A22: 飛特立航空 | B22: 2 | C22: 1 | D22: 1 | E22: － | F22: － | G22: 5.5

Sheet 表22
A1: 表 22 民航機場設施 | H1: 表 22 民航機場設施 ( 續 )
A2: 民國 101 年底 | I2: 民國 101 年底
A3: 機 場 別 | B3: 跑 | C3: 道 | E3: 停 機 坪 | H3: 機 場 別 | I3: 航空站候機室 | J3: 貨 運 站
B4: 長 ( 公 尺 ) | C4: 寬 ( 公尺 ) | E4: 面積 ( 平方公尺 ) | F4: 機位 ( 個 ) | I4: 面積 ( 平方公尺 ) | J4: 面積 ( 平方公尺 ) | K4: 貨運年容量 ( 公噸 )
A5: 臺灣桃園國際機場 | B5: 3660 | C5: 60 | E5: 1396734 | F5: 112 | H5: 臺灣桃園國際機場 | I5: 502474 | J5: 585184 | K5: 2180000
B6: 3350 | C6: 60
A7: 高雄國際機場 | B7: 3150 | C7: 60 | E7: 414835 | F7: 69 | H7: 高雄國際機場 | I7: 88485 | J7: 16813 | K7: 100000
A8: 臺北松山機場 | B8: 2605 | C8: 60 | E8: 288000 | F8: 61 | H8: 臺北松山機場 | I8: 79000 | J8: 2972 | K8: 38000
A9: 臺 中 機 場 | B9: 3659 | C9: 61 | E9: 36280 | F9: 13 | H9: 臺 中 機 場 | I9: 10054 | J9: － | K9: －
A10: 嘉 義 機 場 | B10: 3050 | C10: 45 | E10: 11900 | F10: 3 | H10: 嘉 義 機 場 | I10: 1717 | J10: － | K10: －
A11: 臺 南 機 場 | B11: 3050 | C11: 45 | E11: 43500 | F11: 5 | H11: 臺 南 機 場 | I11: 15066 | J11: － | K11: －
A12: 花 蓮 機 場 | B12: 2751 | C12: 45 | E12: 40248 | F12: 7 | H12: 花 蓮 機 場 | I12: 21669 | J12: 779 | K12: 2400
A13: 臺 東 機 場 | B13: 2438 | C13: 45 | E13: 46190 | F13: 10 | H13: 臺 東 機 場 | I13: 5178 | J13: － | K13: －
A14: 馬 公 機 場 | B14: 3000 | C14: 45 | E14: 44000 | F14: 10 | H14: 馬 公 機 場 | I14: 24738 | J14: 868 | K14: 23570
A15: 金 門 機 場 | B15: 3004 | C15: 45 | E15: 47100 | F15: 9 | H15: 金 門 機 場 | I15: 10593 | J15: 1270 | K15: 31750
A16: 綠 島 機 場 | B16: 992 | C16: 23 | E16: 8130 | F16: 3 | H16: 綠 島 機 場 | I16: 989 | J16: － | K16: －
A17: 蘭 嶼 機 場 | B17: 1132 | C17: 23.5 | E17: 6880 | F17: 3 | H17: 蘭 嶼 機 場 | I17: 1163 | J17: － | K17: －
A18: 望 安 機 場 | B18: 822 | C18: 23 | E18: 4900 | F18: 4 | H18: 望 安 機 場 | I18: 432 | J18: － | K18: －
A19: 七 美 機 場 | B19: 783 | C19: 23 | E19: 4300 | F19: 4 | H19: 七 美 機 場 | I19: 567 | J19: － | K19: －
A20: 北 竿 機 場 | B20: 1150 | C20: 30 | E20: 8095 | F20: 3 | H20: 北 竿 機 場 | I20: 1365 | J20: － | K20: －
A21: 南 竿 機 場 | B21: 1579 | C21: 30 | E21: 12600 | F21: 4 | H21: 南 竿 機 場 | I21: 2872 | J21: － | K21: －
A22: 恒 春 機 場 | B22: 1700 | C22: 30 | E22: 13860 | F22: 5 | H22: 恒 春 機 場 | I22: 1700 | J22: － | K22: －
A23: 說明：1.桃園國際機場有 2 條跑道，其他機場各有1條跑道。
A24: 2.100年8月屏東機場停止民航營運。

Sheet 表23
A1: 表 23 民航機場助導航及航管設施 | H1: 表 23 民航機場助導航及航管設施 ( 續 )
A2: 年 底 別 | B2: 助 導 航 設 施 | H2: 年 底 別 | I2: 助 導 航 設 施 | M2: 航 管 設 施
B3: 機場管制塔臺 | C3: 多向導航臺 | D3: 歸航臺 | E3: 儀降系統 | F3: 左右定位輔助臺 | G3: 微波降落系統 | I3: 進場燈 | J3: 跑道頭識別燈 | K3: 跑道視程儀 | L3: 目視下滑指示燈 | M3: 終 端 雷 達 | N3: 航 路 雷 達
B4: ( 座 ) | C4: ( 座 ) | D4: ( 座 ) | E4: ( 套 ) | F4: ( 座 ) | G4: ( 套 ) | I4: ( 套 ) | J4: ( 組 ) | K4: ( 套 ) | L4: ( 組 ) | M4: ( 套 ) | N4: ( 套 )
A5: 88 年底 | B5: 8 | C5: 8 | D5: 11 | E5: 10 | F5: － | G5: 3 | H5: 88 年底 | I5: 12 | J5: 9 | K5: 7 | L5: 16 | M5: 4 | N5: －
A6: 89 年底 | B6: 9 | C6: 8 | D6: 11 | E6: 10 | F6: － | G6: 3 | H6: 89 年底 | I6: 12 | J6: 9 | K6: 7 | L6: 16 | M6: 7 | N6: 2
A7: 90 年底 | B7: 10 | C7: 8 | D7: 11 | E7: 10 | F7: － | G7: 3 | H7: 90 年底 | I7: 12 | J7: 9 | K7: 7 | L7: 18 | M7: 7 | N7: 2
A8: 91 年底 | B8: 10 | C8: 8 | D8: 11 | E8: 10 | F8: － | G8: 3 | H8: 91 年底 | I8: 12 | J8: 11 | K8: 10 | L8: 27 | M8: 7 | N8: 2
A9: 92 年底 | B9: 12 | C9: 8 | D9: 11 | E9: 12 | F9: － | G9: 3 | H9: 92 年底 | I9: 13 | J9: 16 | K9: 13 | L9: 29 | M9: 7 | N9: 2
A10: 93 年底 | B10: 12 | C10: 8 | D10: 11 | E10: 12 | F10: － | G10: 2 | H10: 93 年底 | I10: 16 | J10: 16 | K10: 13 | L10: 30 | M10: 8 | N10: 2
A11: 94 年底 | B11: 12 | C11: 8 | D11: 11 | E11: 12 | F11: － | G11: 2 | H11: 94 年底 | I11: 16 | J11: 16 | K11: 13 | L11: 30 | M11: 8 | N11: 2
A12: 95 年底 | B12: 12 | C12: 8 | D12: 11 | E12: 13 | F12: － | G12: 2 | H12: 95 年底 | I12: 16 | J12: 16 | K12: 13 | L12: 30 | M12: 8 | N12: 2
A13: 96 年底 | B13: 12 | C13: 8 | D13: 11 | E13: 13 | F13: － | G13: 2 | H13: 96 年底 | I13: 16 | J13: 18 | K13: 13 | L13: 33 | M13: 8 | N13: 2
A14: 97 年底 | B14: 11 | C14: 8 | D14: 11 | E14: 13 | F14: － | G14: 2 | H14: 97 年底 | I14: 16 | J14: 18 | K14: 13 | L14: 33 | M14: 8 | N14: 2
A15: 98 年底 | B15: 11 | C15: 8 | D15: 11 | E15: 13 | F15: － | G15: 2 | H15: 98 年底 | I15: 16 | J15: 18 | K15: 13 | L15: 33 | M15: 8 | N15: 2
A16: 99 年底 | B16: 11 | C16: 8 | D16: 11 | E16: 13 | F16: － | G16: 2 | H16: 99 年底 | I16: 16 | J16: 18 | K16: 13 | L16: 33 | M16: 8 | N16: 2
A17: 100 年底 | B17: 11 | C17: 8 | D17: 11 | E17: 13 | F17: － | G17: 1 | H17: 100 年底 | I17: 16 | J17: 18 | K17: 13 | L17: 33 | M17: 8 | N17: 2
A18: 101 年底 | B18: 11 | C18: 8 | D18: 10 | E18: 14 | F18: 6 | G18: － | H18: 101 年底 | I18: 16 | J18: 16 | K18: 14 | L18: 31 | M18: 8 | N18: 2

Sheet 表24
C1: 表 24 國 籍 船 舶 登 記 數 | I1: 表 24 國 籍 船 舶 登 記 數 ( 續 )
D2: 民國 101年底 | H2: 單位：艘；噸 | J2: 民國 101 年底 | N2: 單位：艘；噸
B3: 船齡 | C3: 總 計 | E3: 未 滿 5 年 | G3: 5 － 未滿10年 | I3: 10 － 未滿15年 | K3: 15 －未滿 20年 | M3: 20 年 以 上
A4: 船種 | C4: 艘 數 | D4: 載 重 噸 | E4: 艘 數 | F4: 載 重 噸 | G4: 艘 數 | H4: 載 重 噸 | I4: 艘 數 | J4: 載 重 噸 | K4: 艘 數 | L4: 載 重 噸 | M4: 艘 數 | N4: 載 重 噸
A5: 總 | B5: 計 | C5: =SUM(E5,G5,I5,K5,M5) -> 385 | D5: 4675927 | E5: =SUM(E6,E9,E12,E15) -> 29 | F5: =SUM(F6,F9,F12,F15) -> 1198530 | G5: =SUM(G6,G9,G12,G15) -> 38 | H5: 384361 | I5: 57 | J5: 1271455 | K5: 82 | L5: 1014374 | M5: 179 | N5: 807207
A6: 總噸位 20－未滿 100 | B6: 計 | C6: =SUM(C7:C8) -> 97 | D6: =SUM(D7:D8) -> 1859 | E6: 10 | F6: 202 | G6: 13 | H6: 161 | I6: 12 | J6: 172 | K6: 13 | L6: 363 | M6: 49 | N6: 961
B7: 貨船 | C7: 18 | D7: 968 | E7: － | F7: － | G7: 1 | H7: 14 | I7: 1 | J7: 36 | K7: 3 | L7: 250 | M7: 13 | N7: 668
B8: 客船 | C8: =SUM(E8,G8,I8,K8,M8) -> 79 | D8: 891 | E8: 10 | F8: 202 | G8: 12 | H8: 147 | I8: 11 | J8: 136 | K8: 10 | L8: 113 | M8: 36 | N8: 293
A9: 總噸位 100－未滿 200 | B9: 計 | C9: =SUM(C10:C11) -> 61 | D9: 5299 | E9: =SUM(E10:E11) -> 1 | F9: 50 | G9: 8 | H9: 231 | I9: 7 | J9: 359 | K9: 18 | L9: 1844 | M9: 27 | N9: 2815
B10: 貨船 | C10: 21 | D10: 3921 | E10: － | F10: － | G10: － | H10: － | I10: － | J10: － | K10: 5 | L10: 1382 | M10: 16 | N10: 2539
B11: 客船 | C11: 40 | D11: 1378 | E11: 1 | F11: 50 | G11: 8 | H11: 231 | I11: 7 | J11: 359 | K11: 13 | L11: 462 | M11: 11 | N11: 276
A12: 總噸位 200－未滿1,000 | B12: 計 | C12: 83 | D12: 54088 | E12: =SUM(E13:E14) -> 2 | F12: 888 | G12: 6 | H12: 2772 | I12: 8 | J12: 4259 | K12: 16 | L12: 10945 | M12: 51 | N12: 35224
B13: 貨船 | C13: 65 | D13: 53468 | E13: 2 | F13: 888 | G13: 3 | H13: 2590 | I13: 6 | J13: 4197 | K13: 12 | L13: 10810 | M13: 42 | N13: 34983
B14: 客船 | C14: 18 | D14: 620 | E14: － | F14: － | G14: 3 | H14: 182 | I14: 2 | J14: 62 | K14: 4 | L14: 135 | M14: 9 | N14: 241
A15: 總噸位 1,000以上 | B15: 計 | C15: 144 | D15: =SUM(F15,H15,J15,L15,N15) -> 4614681 | E15: =SUM(E16:E17) -> 16 | F15: =SUM(F16:F17) -> 1197390 | G15: =SUM(G16:G17) -> 11 | H15: =SUM(H16:H17) -> 381197 | I15: =SUM(I16:I17) -> 30 | J15: =SUM(J16:J17) -> 1266665 | K15: 35 | L15: 1001222 | M15: 52 | N15: 768207
B16: 貨船 | C16: 137 | D16: =SUM(F16,H16,J16,L16,N16) -> 4609284 | E16: 16 | F16: 1197390 | G16: 10 | H16: 380922 | I16: 29 | J16: 1265796 | K16: 34 | L16: 1000902 | M16: 48 | N16: 764274
B17: 客船 | C17: 7 | D17: =SUM(F17,H17,J17,L17,N17) -> 5397 | E17: － | F17: － | G17: 1 | H17: 275 | I17: 1 | J17: 869 | K17: 1 | L17: 320 | M17: 4 | N17: 3933
A18: 說明：本表不含總噸位未滿20噸之小船。

Sheet 表25
A1: 表 25 臺 灣 地 區 港 埠 概 況 | J1: 表 25 臺 灣 地 區 港 埠 概 況 ( 續 1 ) | P1: 表 25 臺 灣 地 區 港 埠 概 況 ( 續 2 ) | V1: 表 25 臺 灣 地 區 港 埠 概 況 ( 續完 )
A2: 民國 101年底 | I2: 民國 101 年底 | O2: 民國 101 年底 | U2: 民國101 年底
A3: 港 別 | B3: 面 積 ( 公 頃 ) | I3: 水 深 | J3: ( 公尺 ) | L3: 寬 度 | M3: ( 公尺 ) | O3: 泊地面積 ( 千平方公尺 ) | Q3: 防波堤長度 | R3: 倉 | S3: 棧 | U3: 碼 | X3: 頭
B4: 總 計 | D4: 陸 域 | F4: 海 域 | H4: 港 口 | I4: 航 道 | J4: 碼 頭 | K4: 淺水碼頭 | L4: 港 口 | M4: 航 道 | N4: 計 | O4: 內 港 | P4: 外 港 | Q4: ( 公尺 ) | R4: 棟 | S4: 總 容 量 | T4: 座 數 | U4: 長 度 | V4: 寬 度 | W4: 深 度 | X4: 泊船總噸 | Y4: 工人數
S5: (千公噸) | T5: (座) | U5: (公尺) | V5: (公尺) | W5: (公尺) | X5: (千噸) | Y5: (人)
A6: 總 計 | B6: =SUM(B7:B13) -> 33856 | D6: =SUM(D7:D13) -> 5526 | F6: =SUM(F7:F13) -> 28330 | H6: － | I6: － | J6: － | K6: － | L6: － | M6: － | N6: =SUM(N7:N13) -> 101389 | O6: =SUM(O7:O13) -> 18785 | P6: 82604 | Q6: 32424 | R6: 139 | S6: 1554.2 | T6: 305 | U6: 65444.4 | V6: － | W6: － | X6: =SUM(X7:X13) -> 9024 | Y6: =SUM(Y7:Y13) -> 192
A7: 基隆港 | B7: =SUM(D7:F7) -> 572 | D7: 202 | F7: 370 | H7: 22.0~24.0 | I7: 15.0~20.0 | J7: 9.0~14.5 | K7: 3.0~8.0 | L7: 280 | M7: 250~360 | N7: =SUM(O7:P7) -> 412 | O7: － | P7: 412 | Q7: 4606 | R7: 41 | S7: 128 | T7: 56 | U7: 9973.7 | V7: 4.9~120.0 | W7: 3.0~14.5 | X7: 774 | Y7: －
A8: 附屬港：蘇澳港 | B8: =SUM(D8:F8) -> 376 | D8: 86 | F8: 290 | H8: 26 | I8: 10.0~26.0 | J8: 5.0~15.0 | K8: 2.0~5.0 | L8: 240 | M8: 140~240 | N8: － | O8: － | P8: － | Q8: 2931 | R8: 3 | S8: 31 | T8: 13 | U8: 2610 | V8: 20 | W8: 5.0~15.0 | X8: 316 | Y8: －
A9: 臺北港 | B9: 3102 | D9: 175 | F9: 2927 | H9: 16 | I9: 14.5~16.0 | J9: 6.0~14.0 | K9: 4.5 | L9: 300 | M9: 300~400 | N9: － | O9: － | P9: － | Q9: 6813 | R9: － | S9: － | T9: 20 | U9: 4637 | V9: 25.0~75.0 | W9: 4.5~14.0 | X9: 505 | Y9: －
A10: 高雄港 | B10: 17736 | D10: 1871 | F10: 15865 | H10: 12.5~17.0 | I10: 12.5~17.0 | J10: 4.5~17.6 | K10: 4.5~9.0 | L10: 98~183 | M10: 98~280 | N10: =SUM(O10:P10) -> 74780 | O10: － | P10: 74780 | Q10: 5383 | R10: 63 | S10: 956 | T10: 121 | U10: 27369.7 | V10: 4.0~50.0 | W10: 4.5~17.6 | X10: 3991 | Y10: －
A11: 附屬港：安平港 | B11: 477 | D11: 200 | F11: 277 | H11: 11.5 | I11: 11.5 | J11: 7.0~11.0 | K11: 5.0~7.0 | L11: 180 | M11: 180 | N11: =SUM(O11:P11) -> 6740 | O11: － | P11: 6740 | Q11: 3411 | R11: 3 | S11: 4.2 | T11: 17 | U11: 2926 | V11: 18.0~30.0 | W11: 5.0~11.0 | X11: 178 | Y11: －
A12: 花蓮港 | B12: 308 | D12: 172 | F12: 136 | H12: 17.5 | I12: 9.0~16.5 | J12: 6.5~16.5 | K12: 2.5~3.5 | L12: 275 | M12: 100 | N12: =SUM(O12:P12) -> 672 | O12: － | P12: 672 | Q12: 5065 | R12: 15 | S12: 41 | T12: 25 | U12: 4742 | V12: 10.0~50.0 | W12: 6.5~16.5 | X12: 618 | Y12: 192
A13: 臺中港 | B13: 11285 | D13: 2820 | F13: 8465 | H13: 15.5~18.0 | I13: 14.1~18.2 | J13: 9.3~21.4 | K13: 4.2~6.1 | L13: 350~470 | M13: 320~500 | N13: 18785 | O13: 18785 | P13: － | Q13: 4215 | R13: 14 | S13: 394 | T13: 53 | U13: 13186 | V13: 15.8~45.5 | W13: 9.0~18.0 | X13: 2642 | Y13: －

Sheet 表26
A1: 表 26 臺 灣 地 區 港 埠 機 具 及 車 輛
D2: 民國 101 年底
C3: 機 | H3: 具
A4: 港 別 | B4: 貨 櫃 起 重 機 | D4: 跨 載 機 | F4: 堆 高 機 | H4: 起 重 機
B5: 臺 | C5: 噸量 | D5: 臺 | E5: 噸量 | F5: 臺 | G5: 噸量 | H5: 臺 | I5: 噸量
A6: 總 計 | B6: =SUM(B7:B13) -> 23 | C6: =SUM(C7:C13) -> 938 | D6: 19 | E6: 700 | F6: 55 | G6: 289 | H6: 8 | I6: 285
A7: 基隆港 | B7: 15 | C7: 640 | D7: 19 | E7: 700 | F7: 25 | G7: 144 | H7: － | I7: －
A8: 附屬港：蘇澳港 | B8: － | C8: － | D8: － | E8: － | F8: － | G8: － | H8: － | I8: －
A9: 臺北港 | B9: － | C9: － | D9: － | E9: － | F9: 1 | G9: 3 | H9: － | I9: －
A10: 高雄港 | B10: 3 | C10: 123 | D10: － | E10: － | F10: 25 | G10: 133 | H10: 8 | I10: 285
A11: 附屬港：安平港 | B11: － | C11: － | D11: － | E11: － | F11: 1 | G11: 3 | H11: － | I11: －
A12: 花蓮港 | B12: － | C12: － | D12: － | E12: － | F12: 3 | G12: 6 | H12: － | I12: －
A13: 臺中港 | B13: 5 | C13: 175 | D13: － | E13: － | F13: － | G13: － | H13: － | I13: －
A14: 說明：本表為國際商港資料，不含廠商自有部分。
A17: 表 26 臺 灣 地 區 港 埠 機 具 及 車 輛 ( 續 )
D18: 民國 101 年底
C19: 機 | D19: 具 | G19: 車 | H19: 輛
A20: 港 別 | B20: 抓 斗 | D20: 吸 穀 機 | F20: 拖 車 | H20: 拖 板
B21: 臺 | C21: 噸量 | D21: 臺 | E21: 噸量 | F21: 臺 | G21: 噸量 | H21: 臺 | I21: 噸量
A22: 總 計 | B22: － | C22: － | D22: － | E22: － | F22: =SUM(F23:F29) -> 7 | G22: 22 | H22: 2 | I22: 23
A23: 基隆港 | B23: － | C23: － | D23: － | E23: － | F23: 5 | G23: 14 | H23: － | I23: －
A24: 附屬港：蘇澳港 | B24: － | C24: － | D24: － | E24: － | F24: － | G24: － | H24: － | I24: －
A25: 臺北港 | B25: － | C25: － | D25: － | E25: － | F25: － | G25: － | H25: － | I25: －
A26: 高雄港 | B26: － | C26: － | D26: － | E26: － | F26: 2 | G26: 8 | H26: 2 | I26: 23
A27: 附屬港：安平港 | B27: － | C27: － | D27: － | E27: － | F27: － | G27: － | H27: － | I27: －
A28: 花蓮港 | B28: － | C28: － | D28: － | E28: － | F28: － | G28: － | H28: － | I28: －
A29: 臺中港 | B29: － | C29: － | D29: － | E29: － | F29: － | G29: － | H29: － | I29: －

Sheet 表27
A1: 表 27 基 隆 港 碼 頭 概 況
A2: 民國101 年底
A3: 名 稱 | B3: 長 度 | C3: 寬 度 | D3: 深 度 | E3: 泊 船 總 噸
B4: ( 公 尺 ) | C4: ( 公 尺 ) | D4: ( 公 尺 ) | E4: ( 噸 )
A5: 總 計 | B5: 9973.7 | C5: － | D5: － | E5: =SUM(E6:E61) -> 774400
A6: 西1號碼頭 | B6: 149.1 | C6: 11.4 | D6: 8 | E6: 5000
A7: 西1B號碼頭 | B7: 90.9 | C7: 10.9 | D7: 9 | E7: 3000
A8: 西2號碼頭 | B8: 204.5 | C8: 12.4 | D8: 9 | E8: 10000
A9: 西3號碼頭 | B9: 183 | C9: 12.4 | D9: 9 | E9: 10000
A10: 西4號碼頭 | B10: 167 | C10: 12.4 | D10: 9 | E10: 10000
A11: 西5號碼頭 | B11: 54.5 | C11: 12.8 | D11: 9 | E11: 500
A12: 西6號碼頭 | B12: 131 | C12: 14.3 | D12: 9 | E12: 5000
A13: 西7號碼頭 | B13: 106 | C13: 12.9 | D13: 9 | E13: 5000
A14: 西8號碼頭 | B14: 136.4 | C14: 12.9 | D14: 8 | E14: 5000
A15: 西9號碼頭 | B15: 136.4 | C15: 12.9 | D15: 8 | E15: 5000
A16: 西10號碼頭 | B16: 136.4 | C16: 12.9 | D16: 8 | E16: 5000
A17: 西11號碼頭 | B17: 167.8 | C17: 17.6 | D17: 5.5-6.5 | E17: 3000
A18: 西12號碼頭 | B18: 170 | C18: 17.6 | D18: 6.5 | E18: 3000
A19: 西12B號碼頭 | B19: 251 | C19: 17.6 | D19: 3.0-9.0 | E19: 10000
A20: 西14號碼頭 | B20: 172.4 | C20: 14.8 | D20: 9 | E20: 10000
A21: 西15號碼頭 | B21: 148.3 | C21: 14.8 | D21: 9 | E21: 10000
A22: 西16號碼頭 | B22: 156.5 | C22: 34 | D22: 12 | E22: 20000
A23: 西17號碼頭 | B23: 207 | C23: 34 | D23: 12 | E23: 30000
A24: 西18號碼頭 | B24: 403.9 | C24: 20 | D24: 12.0-13.0 | E24: 30000
A25: 西19號碼頭 | B25: 364.4 | C25: 37.4 | D25: 14.5 | E25: 60000
A26: 西20號碼頭 | B26: 325.6 | C26: 120 | D26: 10.5 | E26: 30000
A27: 西21號碼頭 | B27: 236.6 | C27: 120 | D27: 10 | E27: 20000
A28: 西22號碼頭 | B28: 190 | C28: 120 | D28: 10.0-11.0 | E28: 30000
A29: 西23號碼頭 | B29: 210 | C29: 120 | D29: 11 | E29: 30000
A30: 西24號碼頭 | B30: 240 | C30: 120 | D30: 13 | E30: 30000
A31: 西25號碼頭 | B31: 300 | C31: 120 | D31: 13 | E31: 30000
A32: 西26號碼頭 | B32: 210 | C32: 120 | D32: 11 | E32: 30000
A33: 西27號碼頭 | B33: 150 | C33: 13 | D33: 7 | E33: 5000
A34: 西28A號碼頭 | B34: 82.4 | C34: 65.4 | D34: 5 | E34: 500
A35: 西28B號碼頭 | B35: 53 | C35: 15.4 | D35: 3.5 | E35: 500
A36: 西29號碼頭 | B36: 178 | C36: 11 | D36: 4.5-6.5 | E36: 3000
A37: 西30號碼頭 | B37: 180 | C37: 11 | D37: 10.5 | E37: 20000
A38: 西31號碼頭 | B38: 165 | C38: 15 | D38: 10.5 | E38: 20000
A39: 西32號碼頭 | B39: 165 | C39: 15 | D39: 11 | E39: 20000
A40: 西33號碼頭 | B40: 210 | C40: 14.8 | D40: 11.5 | E40: 30000
A41: 西33B號碼頭 | B41: 95.8 | C41: 11.9 | D41: 6.5 | E41: 3000
A42: 東1號碼頭 | B42: 96.19 | C42: 4.9 | D42: 4.5 | E42: 500
A43: 東2號碼頭 | B43: 200 | C43: 10.5 | D43: 9 | E43: 20000
A44: 東3號碼頭 | B44: 170 | C44: 10.5 | D44: 9 | E44: 10000
A45: 東4號碼頭 | B45: 306.3 | C45: 10.5 | D45: 9 | E45: 10000
A46: 東5號碼頭 | B46: 169.2 | C46: 10.5 | D46: 9 | E46: 10000
A47: 東6號碼頭 | B47: 180 | C47: 15 | D47: 9 | E47: 20000
A48: 東7號碼頭 | B48: 178 | C48: 27 | D48: 9 | E48: 10000
A49: 東8號碼頭 | B49: 240 | C49: 47 | D49: 12 | E49: 30000
A50: 東9號碼頭 | B50: 220 | C50: 76 | D50: 12 | E50: 30000
A51: 東10號碼頭 | B51: 200 | C51: 76 | D51: 12 | E51: 30000
A52: 東11號碼頭 | B52: 200 | C52: 76 | D52: 13 | E52: 30000
A53: 東12號碼頭 | B53: 50 | C53: 56 | D53: 5 | E53: 3000
A54: 東14號碼頭 | B54: 112.7 | C54: 20 | D54: 5 | E54: 300
A55: 東15號碼頭 | B55: 208.7 | C55: 21 | D55: 3 | E55: 300
A56: 東16號碼頭 | B56: 125 | C56: 8 | D56: 3 | E56: 300
A57: 東17號碼頭 | B57: 223.6 | C57: 8 | D57: 3.0-8.0 | E57: 500
A58: 東19號碼頭 | B58: 220 | C58: 30 | D58: 9 | E58: 15000
A59: 東20號碼頭 | B59: 120 | C59: 30 | D59: 6 | E59: 3000
A60: 東21號碼頭 | B60: 113 | C60: 20 | D60: 9 | E60: 5000
A61: 東22號碼頭 | B61: 113 | C61: 20 | D61: 9 | E61: 5000

Sheet 表28
A1: 表 28 蘇 澳 港 碼 頭 概 況
C2: 民國 101 年底
A3: 名 稱 | B3: 長 度 | C3: 寬 度 | D3: 深 度 | E3: 泊 船 總 噸
B4: ( 公 尺 ) | C4: ( 公 尺 ) | D4: ( 公 尺 ) | E4: ( 噸 )
A5: 總 計 | B5: =SUM(B6:B18) -> 2610 | C5: － | D5: － | E5: =SUM(E6:E18) -> 316000
A6: 1號碼頭 | B6: 210 | C6: 20 | D6: 5.0-11.0 | E6: 6000
A7: 2號碼頭 | B7: 175 | C7: 20 | D7: 11 | E7: 20000
A8: 3號碼頭 | B8: 215 | C8: 20 | D8: 11 | E8: 30000
A9: 4號碼頭 | B9: 300 | C9: 20 | D9: 11 | E9: 30000
A10: 5號碼頭 | B10: 200 | C10: 20 | D10: 11 | E10: 30000
A11: 6號碼頭 | B11: 290 | C11: 20 | D11: 15 | E11: 80000
A12: 7號碼頭 | B12: 240 | C12: 20 | D12: 13 | E12: 60000
A13: 8號碼頭 | B13: 125 | C13: 20 | D13: 8 | E13: 6000
A14: 9號碼頭 | B14: 125 | C14: 20 | D14: 8 | E14: 6000
A15: 10號碼頭 | B15: 175 | C15: 20 | D15: 9 | E15: 12000
A16: 11號碼頭 | B16: 175 | C16: 20 | D16: 9 | E16: 12000
A17: 12號碼頭 | B17: 200 | C17: 20 | D17: 9 | E17: 12000
A18: 13號碼頭 | B18: 180 | C18: 20 | D18: 9 | E18: 12000

Sheet 表29
A1: 表 29 臺 北 港 碼 頭 概 況
C2: 民國 101 年底
A3: 名 稱 | B3: 長 度 | C3: 寬 度 | D3: 深 度 | E3: 泊 船 總 噸
B4: ( 公 尺 ) | C4: ( 公 尺 ) | D4: ( 公 尺 ) | E4: ( 噸 )
A5: 總 計 | B5: =SUM(B6:B25) -> 4637 | C5: － | D5: － | E5: =SUM(E6:E25) -> 505000
A6: 東1號碼頭 | B6: 170 | C6: 30 | D6: 9 | E6: 5000
A7: 東2號碼頭 | B7: 170 | C7: 30 | D7: 9 | E7: 10000
A8: 東3號碼頭 | B8: 245 | C8: 30 | D8: 11 | E8: 20000
A9: 東4號碼頭 | B9: 150 | C9: 25 | D9: 13 | E9: 15000
A10: 東5號碼頭 | B10: 150 | C10: 25 | D10: 9 | E10: 5000
A11: 東6號碼頭 | B11: 157 | C11: 25 | D11: 6.5 | E11: 5000
A12: 東7號碼頭 | B12: 250 | C12: 25 | D12: 4.5 | E12: －
A13: 東8號碼頭 | B13: 125 | C13: 55 | D13: 4.5 | E13: －
A14: 東9號碼頭 | B14: 200 | C14: 60 | D14: 4.5 | E14: －
A15: 東10號碼頭 | B15: 200 | C15: 25 | D15: 14.5 | E15: 20000
A16: 東11號碼頭 | B16: 245 | C16: 30 | D16: 14.5 | E16: 80000
A17: 東12號碼頭 | B17: 245 | C17: 30 | D17: 14.5 | E17: 25000
A18: 東13號碼頭 | B18: 200 | C18: 25 | D18: 12 | E18: 5000
A19: 東14號碼頭 | B19: 300 | C19: 40 | D19: 14 | E19: 60000
A20: 東15號碼頭 | B20: 250 | C20: 40 | D20: 14 | E20: 40000
A21: 東16號碼頭 | B21: 360 | C21: 50 | D21: 14 | E21: 60000
A22: 北2號碼頭 | B22: 200 | C22: 40 | D22: 9 | E22: 5000
A23: 北3號碼頭 | B23: 360 | C23: 75 | D23: 12 | E23: 30000
A24: 北4號碼頭 | B24: 330 | C24: 75 | D24: 14 | E24: 60000
A25: 北5號碼頭 | B25: 330 | C25: 75 | D25: 14 | E25: 60000

Sheet 表30
A1: 表 30 高 雄 港 碼 頭 概 況
A2: 民國 101 年底
A3: 名 稱 | B3: 長 度 | C3: 寬 度 | D3: 深 度 | E3: 泊 船 總 噸
B4: ( 公 尺 ) | C4: ( 公 尺 ) | D4: ( 公 尺 ) | E4: ( 噸 )
A5: 總 計 | B5: =SUM(B6:B126) -> 27369.73 | C5: － | D5: － | E5: =SUM(E6:E126) -> 3990500
A6: 新濱1號碼頭 | B6: 139.2 | C6: 12.6 | D6: 9 | E6: 8000
A7: 新濱2號碼頭 | B7: 139.2 | C7: 12.6 | D7: 9 | E7: 10000
A8: 1號碼頭 | B8: 250.27 | C8: 9.7 | D8: 9 | E8: 10000
A9: 2號碼頭 | B9: 136.97 | C9: 9.7 | D9: 9 | E9: 8000
A10: 3號碼頭 | B10: 150 | C10: 10.7 | D10: 9 | E10: 10000
A11: 4號碼頭 | B11: 150 | C11: 10.7 | D11: 9 | E11: 10000
A12: 5號碼頭 | B12: 150 | C12: 10.7 | D12: 9 | E12: 10000
A13: 6號碼頭 | B13: 150 | C13: 10.7 | D13: 9 | E13: 10000
A14: 7號碼頭 | B14: 150 | C14: 11 | D14: 9 | E14: 10000
A15: 8號碼頭 | B15: 150 | C15: 9 | D15: 10.5 | E15: 10000
A16: 9號碼頭 | B16: 141.68 | C16: 9 | D16: 10.5 | E16: 15000
A17: 10號碼頭 | B17: 150 | C17: 11.7 | D17: 10.5 | E17: 20000
A18: 修造廠艤裝碼頭 | B18: 122.64 | C18: 30 | D18: 6.5 | E18: 3000
A19: 淺水1號碼頭 | B19: 261.9 | C19: 23.8 | D19: 4.5-9.0 | E19: 3000
A20: 淺水2號碼頭 | B20: 291 | C20: 23.8 | D20: 6.5 | E20: 3000
A21: 淺水3號碼頭 | B21: 378.28 | C21: 23.8 | D21: 4.5 | E21: 1000
A22: 11號碼頭 | B22: 160.54 | C22: 4 | D22: 9 | E22: 10000
A23: 12號碼頭 | B23: 160.54 | C23: 4 | D23: 9 | E23: 8000
A24: 登1號碼頭 | B24: 94.65 | C24: 25 | D24: 5 | E24: 3500
A25: 登2號碼頭 | B25: 89.9 | C25: 25 | D25: 5 | E25: 3500
A26: 13號碼頭 | B26: 156 | C26: 10.5 | D26: 9 | E26: 10000
A27: 14號碼頭 | B27: 150 | C27: 10.5 | D27: 9 | E27: 10000
A28: 15號碼頭 | B28: 150 | C28: 10.5 | D28: 9 | E28: 10000
A29: 16號碼頭 | B29: 180.2 | C29: 10.5 | D29: 9 | E29: 10000
A30: 17號碼頭 | B30: 150.13 | C30: 25 | D30: 10.5 | E30: 15000
A31: 18號碼頭 | B31: 150 | C31: 25 | D31: 10.5 | E31: 15000
A32: 19號碼頭 | B32: 151.3 | C32: 25 | D32: 10.5 | E32: 15000
A33: 20號碼頭 | B33: 150.7 | C33: 25 | D33: 10.5 | E33: 15000
A34: 21號碼頭 | B34: 124.7 | C34: 25 | D34: 5.0-10.5 | E34: 15000
A35: 22號碼頭 | B35: 120.15 | C35: 14 | D35: 10.5 | E35: 20000
A36: 25號碼頭 | B36: 250 | C36: 23.5 | D36: 10.5 | E36: 20000
A37: 27號碼頭 | B37: 195 | C37: 10 | D37: 10 | E37: 10000
A38: 28號碼頭 | B38: 210 | C38: 8.5 | D38: 10.5 | E38: 20000
A39: 29號碼頭 | B39: 220 | C39: 18 | D39: 10.5 | E39: 20000
A40: 30號碼頭 | B40: 298.3 | C40: 48 | D40: 10.5 | E40: 20000
A41: 31號碼頭 | B41: 195.55 | C41: 20 | D41: 10.5 | E41: 15000
A42: 32號碼頭 | B42: 200.02 | C42: 20 | D42: 10.5 | E42: 20000
A43: 33號碼頭 | B43: 200.04 | C43: 20 | D43: 10.5 | E43: 20000
A44: 34號碼頭 | B44: 200 | C44: 20 | D44: 10.5 | E44: 20000
A45: 35號碼頭 | B45: 214.97 | C45: 20 | D45: 10.5 | E45: 20000
A46: 36號碼頭 | B46: 199.38 | C46: 20 | D46: 10.5 | E46: 20000
A47: 37號碼頭 | B47: 198.68 | C47: 20 | D47: 10.5 | E47: 20000
A48: 38號碼頭 | B48: 197.7 | C48: 20 | D48: 10.5 | E48: 20000
A49: 39號碼頭 | B49: 199.05 | C49: 20 | D49: 10.5 | E49: 20000
A50: 40號碼頭 | B50: 214.17 | C50: 30 | D50: 10.5 | E50: 20000
A51: 41號碼頭 | B51: 204.53 | C51: 30 | D51: 10.5 | E51: 20000
A52: 42號碼頭 | B52: 230 | C52: 30 | D52: 10.5 | E52: 20000
A53: 43號碼頭 | B53: 190 | C53: 20 | D53: 10.5 | E53: 20000
A54: 44號碼頭 | B54: 199.16 | C54: 20 | D54: 10.5 | E54: 20000
A55: 45號碼頭 | B55: 200 | C55: 20 | D55: 10.5 | E55: 20000
A56: 46號碼頭 | B56: 200 | C56: 20 | D56: 11 | E56: 30000
A57: 47號碼頭 | B57: 200 | C57: 20 | D57: 11 | E57: 30000
A58: 48號碼頭 | B58: 260.35 | C58: 15 | D58: 10.5 | E58: 30000
A59: 49號碼頭 | B59: 200 | C59: 10.5 | D59: 10.5 | E59: 30000
A60: 50號碼頭 | B60: 200 | C60: 15 | D60: 10.5 | E60: 30000
A61: 51號碼頭 | B61: 200 | C61: 15 | D61: 10.5 | E61: 30000
A62: 52號碼頭 | B62: 200 | C62: 15 | D62: 10.5 | E62: 30000
A63: 53號碼頭 | B63: 200 | C63: 15 | D63: 10.5 | E63: 30000
A64: 54號碼頭 | B64: 200 | C64: 18 | D64: 10.5 | E64: 30000
A65: 55號碼頭 | B65: 200 | C65: 18 | D65: 10.5 | E65: 30000
A66: 56號碼頭 | B66: 200 | C66: 18 | D66: 10.5 | E66: 30000
A67: 57號碼頭 | B67: 183.6 | C67: 18 | D67: 10.5 | E67: 30000
A68: 58號碼頭 | B68: 306 | C68: 18 | D68: 10.5 | E68: 1000
A69: 59號碼頭 | B69: 270.38 | C69: 20 | D69: 6.5 | E69: 3000
A70: 60號碼頭 | B70: 150.75 | C70: 25 | D70: 6.5 | E70: 3000
A71: 61號碼頭 | B71: 230 | C71: 20 | D71: 10.5 | E71: 30000
A72: 62號碼頭 | B72: 230 | C72: 20 | D72: 10.5 | E72: 30000
A73: 63號碼頭 | B73: 250 | C73: 30 | D73: 14.5 | E73: 30000
A74: 64號碼頭 | B74: 245.46 | C74: 30 | D74: 14.5 | E74: 30000
A75: 65號碼頭 | B75: 250 | C75: 30 | D75: 14.5 | E75: 30000
A76: 66號碼頭 | B76: 255.1 | C76: 30 | D76: 14.5 | E76: 30000
A77: 67號碼頭 | B77: 275.6 | C77: 30 | D77: 14.5 | E77: 30000
A78: 68號碼頭 | B78: 320.16 | C78: 30 | D78: 14 | E78: 75000
A79: 69號碼頭 | B79: 320 | C79: 50 | D79: 14 | E79: 75000
A80: 70號碼頭 | B80: 320.6 | C80: 50 | D80: 14 | E80: 75000
A81: 71號碼頭 | B81: 329.9 | C81: 19 | D81: 14 | E81: 75000
A82: 72號碼頭 | B82: 300 | C82: 19 | D82: 14 | E82: 75000
A83: 73號碼頭 | B83: 320.1 | C83: 24.15 | D83: 14 | E83: 70000
A84: 74號碼頭 | B84: 314.1 | C84: 22 | D84: 13 | E84: 30000
A85: 75號碼頭 | B85: 320 | C85: 33 | D85: 14 | E85: 75000
A86: 76號碼頭 | B86: 320 | C86: 33 | D86: 14 | E86: 75000
A87: 77號碼頭 | B87: 355 | C87: 39 | D87: 15 | E87: 75000
A88: 78號碼頭 | B88: 320 | C88: 38.1 | D88: 15 | E88: 70000
A89: 79號碼頭 | B89: 355 | C89: 38.46 | D89: 15 | E89: 70000
A90: 80號碼頭 | B90: 340 | C90: 32 | D90: 14 | E90: 70000
A91: 81號碼頭 | B91: 120 | C91: 32 | D91: 14 | E91: 70000
A92: 85號碼頭 | B92: 225.18 | C92: 20 | D92: 9 | E92: 30000
A93: 86號碼頭 | B93: 225.18 | C93: 20 | D93: 9 | E93: 30000
A94: 87號碼頭 | B94: 300 | C94: 20 | D94: 10.5 | E94: 30000
A95: 88號碼頭 | B95: 224.5 | C95: 20 | D95: 10.5 | E95: 30000
A96: 89號碼頭 | B96: 224.5 | C96: 20 | D96: 10.5 | E96: 30000
A97: 90號碼頭 | B97: 250 | C97: 18.5 | D97: 10.5 | E97: 30000
A98: 91號碼頭 | B98: 101 | C98: 18.5 | D98: 10.5 | E98: 30000
A99: 94號碼頭 | B99: 170.66 | C99: 30 | D99: 10.5 | E99: 20000
A100: 95號碼頭 | B100: 170.56 | C100: 30 | D100: 10.5 | E100: 20000
A101: 96號碼頭 | B101: 170.56 | C101: 30 | D101: 10.5 | E101: 20000
A102: 97號碼頭 | B102: 380 | C102: 28 | D102: 16.5 | E102: 100000
A103: 98號碼頭 | B103: 360 | C103: 28 | D103: 16.5 | E103: 100000
A104: 99號碼頭 | B104: 149.44 | C104: 28 | D104: 12.5 | E104: 10000
A105: 101號碼頭 | B105: 384.24 | C105: 20 | D105: 16.5 | E105: 130000
A106: 102號碼頭 | B106: 176.75 | C106: 42 | D106: 11.8 | E106: 30000
A107: 103號碼頭 | B107: 273.28 | C107: 16 | D107: 11.8 | E107: 40000
A108: 104號碼頭 | B108: 251.67 | C108: 20 | D108: 16 | E108: 100000
A109: 105號碼頭 | B109: 300.17 | C109: 20 | D109: 16 | E109: 50000
A110: 107號碼頭 | B110: 365 | C110: 30 | D110: 16.5 | E110: 100000
A111: 108號碼頭 | B111: 375 | C111: 43 | D111: 17.6 | E111: 100000
A112: 109號碼頭 | B112: 375 | C112: 43 | D112: 17.6 | E112: 100000
A113: 112號碼頭 | B113: 245.8 | C113: 23 | D113: 8.5 | E113: 10000
A114: 115號碼頭 | B114: 276.86 | C114: 30 | D114: 14 | E114: 70000
A115: 116號碼頭 | B115: 320.02 | C115: 30 | D115: 14 | E115: 75000
A116: 117號碼頭 | B116: 320 | C116: 30 | D116: 14 | E116: 12500
A117: 118號碼頭 | B117: 320 | C117: 30 | D117: 14 | E117: 75000
A118: 119號碼頭 | B118: 320 | C118: 30 | D118: 14 | E118: 75000
A119: 120號碼頭 | B119: 320 | C119: 30 | D119: 14 | E119: 75000
A120: 121號碼頭 | B120: 320 | C120: 30 | D120: 14 | E120: 75000
A121: 122號碼頭 | B121: 336.26 | C121: 30 | D121: 14 | E121: 75000
A122: 141號碼頭 | B122: 240 | C122: 12 | D122: 5 | E122: 30000
A123: 142號碼頭 | B123: 167 | C123: 12 | D123: 12 | E123: 30000
A124: 143號碼頭 | B124: 117.5 | C124: 12 | D124: 7 | E124: 5000
A125: 144號碼頭 | B125: 117.5 | C125: 12 | D125: 7 | E125: 5000
A126: 145號碼頭 | B126: 117.5 | C126: 12 | D126: 7 | E126: 5000

Sheet 表31
A1: 表 31 安 平 港 碼 頭 概 況
A2: 民國 101 年底
A3: 名 稱 | B3: 長 度 | C3: 寬 度 | D3: 深 度 | E3: 泊 船 總 噸
B4: ( 公 尺 ) | C4: ( 公 尺 ) | D4: ( 公 尺 ) | E4: ( 噸 )
A5: 總 計 | B5: =SUM(B6:B22) -> 2926 | C5: － | D5: － | E5: =SUM(E6:E22) -> 178000
A6: 1號碼頭 | B6: 175 | C6: 25 | D6: 9 | E6: 10000
A7: 2號碼頭 | B7: 170 | C7: 23 | D7: 9 | E7: 10000
A8: 3號碼頭 | B8: 160 | C8: 30 | D8: 9 | E8: 10000
A9: 4號碼頭 | B9: 160 | C9: 30 | D9: 9 | E9: 10000
A10: 5號碼頭 | B10: 231 | C10: 19 | D10: 7.5 | E10: 6000
A11: 6號碼頭 | B11: 150 | C11: 18 | D11: 7.5 | E11: 6000
A12: 7號碼頭 | B12: 150 | C12: 18 | D12: 7.5 | E12: 6000
A13: 8號碼頭 | B13: 200 | C13: 20 | D13: 5 | E13: 1000
A14: 9號碼頭 | B14: 200 | C14: 20 | D14: 7 | E14: 6000
A15: 21號碼頭 | B15: 230 | C15: 30 | D15: 11 | E15: 20000
A16: 22號碼頭 | B16: 200 | C16: 30 | D16: 11 | E16: 20000
A17: 23號碼頭 | B17: 200 | C17: 30 | D17: 11 | E17: 20000
A18: 27號碼頭 | B18: 130 | C18: 25 | D18: 7.5 | E18: 1000
A19: 28號碼頭 | B19: 110 | C19: 30 | D19: 7.5 | E19: 6000
A20: 29號碼頭 | B20: 130 | C20: 30 | D20: 7.5 | E20: 6000
A21: 30號碼頭 | B21: 160 | C21: 30 | D21: 7.5-11.0 | E21: 20000
A22: 31號碼頭 | B22: 170 | C22: 20 | D22: 11 | E22: 20000

Sheet 表32
A1: 表 32 花 蓮 港 碼 頭 概 況
C2: 民國 101 年底
A3: 名 稱 | B3: 長 度 | C3: 寬 度 | D3: 深 度 | E3: 泊 船 總 噸
B4: ( 公 尺 ) | C4: ( 公 尺 ) | D4: ( 公 尺 ) | E4: ( 噸 )
A5: 總 計 | B5: =SUM(B6:B30) -> 4742 | C5: － | D5: － | E5: =SUM(E6:E30) -> 618000
A6: 1號碼頭 | B6: 123 | C6: 10 | D6: 7.5 | E6: 6000
A7: 2號碼頭 | B7: 153 | C7: 10 | D7: 7.5 | E7: 6000
A8: 3號碼頭 | B8: 134 | C8: 10 | D8: 7.5 | E8: 6000
A9: 4號碼頭 | B9: 160 | C9: 20 | D9: 8.5 | E9: 10000
A10: 5號碼頭 | B10: 160 | C10: 20 | D10: 8.5 | E10: 10000
A11: 6號碼頭 | B11: 150 | C11: 20 | D11: 8.5 | E11: 10000
A12: 7號碼頭 | B12: 120 | C12: 20 | D12: 6.5 | E12: 4000
A13: 8號碼頭 | B13: 220 | C13: 20 | D13: 10.5 | E13: 15000
A14: 9號碼頭 | B14: 103 | C14: 20 | D14: 9.5 | E14: 5000
A15: 10號碼頭 | B15: 183 | C15: 30 | D15: 9.5 | E15: 12000
A16: 11號碼頭 | B16: 185 | C16: 30 | D16: 9.5 | E16: 12000
A17: 12號碼頭 | B17: 150 | C17: 30 | D17: 7.5 | E17: 6000
A18: 13號碼頭 | B18: 185 | C18: 30 | D18: 9.5 | E18: 12000
A19: 14號碼頭 | B19: 185 | C19: 30 | D19: 9.5 | E19: 12000
A20: 15號碼頭 | B20: 100 | C20: 30 | D20: 8.5 | E20: 6000
A21: 16號碼頭 | B21: 144 | C21: 15 | D21: 7.5 | E21: 6000
A22: 17號碼頭 | B22: 200 | C22: 35 | D22: 12 | E22: 30000
A23: 18號碼頭 | B23: 200 | C23: 35 | D23: 12 | E23: 30000
A24: 19號碼頭 | B24: 310 | C24: 43 | D24: 14 | E24: 60000
A25: 20號碼頭 | B25: 302 | C25: 43 | D25: 14 | E25: 60000
A26: 21號碼頭 | B26: 200 | C26: 43 | D26: 14 | E26: 60000
A27: 22號碼頭 | B27: 200 | C27: 43 | D27: 14 | E27: 60000
A28: 23號碼頭 | B28: 272 | C28: 43 | D28: 14 | E28: 60000
A29: 24號碼頭 | B29: 271 | C29: 43 | D29: 14 | E29: 60000
A30: 25號碼頭 | B30: 332 | C30: 50 | D30: 16.5 | E30: 60000

Sheet 表33
A1: 表 33 臺 中 港 碼 頭 概 況
C2: 民國 101 年底
A3: 名 稱 | B3: 長 度 | C3: 寬 度 | D3: 深 度 | E3: 泊 船 總 噸
B4: ( 公 尺 ) | C4: ( 公 尺 ) | D4: ( 公 尺 ) | E4: ( 噸 )
A5: 總 計 | B5: =SUM(B6:B58) -> 13186 | C5: － | D5: － | E5: =SUM(E6:E58) -> 2641500
A6: 1號碼頭 | B6: 250 | C6: 20 | D6: 13 | E6: 50000
A7: 2號碼頭 | B7: 250 | C7: 20 | D7: 13 | E7: 50000
A8: 3號碼頭 | B8: 250 | C8: 20 | D8: 13 | E8: 50000
A9: 4號碼頭 | B9: 200 | C9: 20 | D9: 11 | E9: 30000
A10: 4A號碼頭 | B10: 185 | C10: 20 | D10: 9 | E10: 10000
A11: 5號碼頭 | B11: 200 | C11: 24 | D11: 11 | E11: 30000
A12: 5A號碼頭 | B12: 220 | C12: 20 | D12: 11 | E12: 30000
A13: 6號碼頭 | B13: 200 | C13: 24 | D13: 11 | E13: 30000
A14: 7號碼頭 | B14: 200 | C14: 24 | D14: 11 | E14: 30000
A15: 8號碼頭 | B15: 200 | C15: 24 | D15: 11 | E15: 30000
A16: 8A號碼頭 | B16: 260 | C16: 24 | D16: 11 | E16: 30000
A17: 9號碼頭 | B17: 260 | C17: 27 | D17: 14 | E17: 60000
A18: 10號碼頭 | B18: 320 | C18: 27 | D18: 13 | E18: 50000
A19: 11號碼頭 | B19: 320 | C19: 27 | D19: 13 | E19: 50000
A20: 12號碼頭 | B20: 200 | C20: 30 | D20: 11 | E20: 30000
A21: 13號碼頭 | B21: 200 | C21: 30 | D21: 11 | E21: 30000
A22: 14號碼頭 | B22: 180 | C22: 15.8 | D22: 10 | E22: 20000
A23: 15號碼頭 | B23: 180 | C23: 15.8 | D23: 10 | E23: 20000
A24: 19A號碼頭 | B24: 214 | C24: 22.3 | D24: 9 | E24: 15000
A25: 20號碼頭 | B25: 180 | C25: 23.5 | D25: 9 | E25: 15000
A26: 21號碼頭 | B26: 180 | C26: 23.5 | D26: 11 | E26: 15000
A27: 22號碼頭 | B27: 180 | C27: 24 | D27: 11 | E27: 30000
A28: 23號碼頭 | B28: 180 | C28: 25 | D28: 11 | E28: 20000
A29: 24號碼頭 | B29: 180 | C29: 25 | D29: 11 | E29: 20000
A30: 25號碼頭 | B30: 200 | C30: 25 | D30: 11 | E30: 30000
A31: 26號碼頭 | B31: 200 | C31: 30 | D31: 11 | E31: 30000
A32: 27號碼頭 | B32: 200 | C32: 30 | D32: 11 | E32: 30000
A33: 28號碼頭 | B33: 145 | C33: 30 | D33: 11 | E33: 30000
A34: 29號碼頭 | B34: 250 | C34: 30 | D34: 14 | E34: 60000
A35: 30號碼頭 | B35: 320 | C35: 32 | D35: 14 | E35: 60000
A36: 31號碼頭 | B36: 320 | C36: 30 | D36: 14 | E36: 60000
A37: 32號碼頭 | B37: 320 | C37: 30 | D37: 14 | E37: 60000
A38: 33號碼頭 | B38: 250 | C38: 30 | D38: 14 | E38: 60000
A39: 34號碼頭 | B39: 250 | C39: 30 | D39: 14 | E39: 60000
A40: 35號碼頭 | B40: 340 | C40: 34.6 | D40: 14 | E40: 60000
A41: 43號碼頭 | B41: 250 | C41: 28.7 | D41: 14 | E41: 66000
A42: 西1號碼頭 | B42: 250 | C42: 25 | D42: 13 | E42: 50000
A43: 西2號碼頭 | B43: 250 | C43: 30 | D43: 14 | E43: 60000
A44: 西3號碼頭 | B44: 250 | C44: 27 | D44: 14 | E44: 60000
A45: 西4號碼頭 | B45: 250 | C45: 27 | D45: 14 | E45: 60000
A46: 西5號碼頭 | B46: 300 | C46: 27 | D46: 14 | E46: 60000
A47: 西6號碼頭 | B47: 250 | C47: 27 | D47: 14 | E47: 60000
A48: 西7號碼頭 | B48: 250 | C48: 27 | D48: 14 | E48: 60000
A49: 西8號碼頭 | B49: 250 | C49: 30 | D49: 14 | E49: 60000
A50: 西9號碼頭 | B50: 250 | C50: 30 | D50: 14 | E50: 60000
A51: 西13號碼頭 | B51: 412 | C51: 45.5 | D51: 13 | E51: 72500
A52: 97號碼頭 | B52: 357 | C52: 35 | D52: 16 | E52: 153000
A53: 98號碼頭 | B53: 393 | C53: 35 | D53: 16 | E53: 125000
A54: 99號碼頭 | B54: 250 | C54: 30 | D54: 12 | E54: 40000
A55: 101號碼頭 | B55: 340 | C55: 38 | D55: 18 | E55: 125000
A56: 102號碼頭 | B56: 340 | C56: 38 | D56: 18 | E56: 125000
A57: 103號碼頭 | B57: 290 | C57: 43.5 | D57: 14.5 | E57: 60000
A58: 104號碼頭 | B58: 270 | C58: 35 | D58: 14 | E58: 60000

Sheet 表34
A1: 表 34 中華郵政股份有限公司主要設備及郵路里程
A2: 民國101年底
A3: 分 類 | B3: 名 稱 | C3: 單 位 | D3: 數 量
A4: 分 信 設 備 | B4: 郵 件 分 揀 機 | C4: 臺 | D4: 32
A5: 受 信 設 備 | B5: 信 筒 箱 | C5: 個 | D5: 3917
A6: 終 端 設 備 | B6: 自 動 付 款 機 | C6: 臺 | D6: 1358
B7: 自 動 櫃 員 機 ( 含 補 摺 機 ) | C7: 臺 | D7: 3221
A8: 貨 車 | B8: 大 型 貨 車 | C8: 輛 | D8: 346
B9: 小 型 貨 車 | C9: 輛 | D9: 2501
A10: 機 器 腳 踏 車 | B10: 二 輪 機 踏 車 | C10: 輛 | D10: 9126
A11: 郵 資 蓋 銷 設 備 | B11: 郵 資 機 | C11: 具 | D11: 16
B12: 蓋 銷 機 | C12: 具 | D12: 431
A13: 計 算 機 具 | B13: 點 鈔 機 | C13: 臺 | D13: 6877
A14: 郵 路 里 程 | B14: 總 計 | C14: 公里 | D14: =SUM(D15:D17) -> 1920551
B15: 航 空 | C15: 公里 | D15: 1205582
B16: 水 路 | C16: 公里 | D16: 594913
B17: 陸 路 | C17: 公里 | D17: 120056

Sheet 表35
A1: 表 35 觀光遊憩區統計 | H1: 表 35 觀光遊憩區統計 ( 續 )
G2: 單位：處 | N2: 單位：處
A3: 年 底 別 | B3: 總 計 | C3: 國家公園 | D3: 國家風景區 | E3: 公營觀光區 | F3: 省級風景 | G3: 縣級風景 | H3: 年 底 別 | I3: 森林遊樂區 | J3: 海水浴場 | K3: 民營觀光區 | L3: 寺 廟 | M3: 古 蹟 | N3: 其 他
F4: 特 定 區 | G4: 特 定 區
A5: 88 年底 | B5: 230 | C5: 33 | D5: 19 | E5: 39 | F5: 30 | G5: 20 | H5: 88 年底 | I5: 17 | J5: 10 | K5: 55 | L5: 3 | M5: 12 | N5: 1
A6: 89 年底 | B6: 250 | C6: 34 | D6: 35 | E6: 39 | F6: 36 | G6: 19 | H6: 89 年底 | I6: 17 | J6: 12 | K6: 56 | L6: 5 | M6: 12 | N6: 1
A7: 90 年底 | B7: 263 | C7: 38 | D7: 37 | E7: 47 | F7: 33 | G7: 19 | H7: 90 年底 | I7: 17 | J7: 12 | K7: 54 | L7: 5 | M7: 14 | N7: 3
A8: 91 年底 | B8: 252 | C8: 32 | D8: 65 | E8: 50 | F8: － | G8: 16 | H8: 91 年底 | I8: 21 | J8: 13 | K8: 50 | L8: 6 | M8: 14 | N8: 3
A9: 92 年底 | B9: 279 | C9: 34 | D9: 75 | E9: 59 | F9: － | G9: 17 | H9: 92 年底 | I9: 21 | J9: 13 | K9: 52 | L9: 8 | M9: 13 | N9: 6
A10: 93 年底 | B10: 285 | C10: 34 | D10: 75 | E10: 65 | F10: － | G10: 14 | H10: 93 年底 | I10: 21 | J10: 12 | K10: 47 | L10: 7 | M10: 17 | N10: 9
A11: 94 年底 | B11: 301 | C11: 38 | D11: 80 | E11: 72 | F11: － | G11: 15 | H11: 94 年底 | I11: 21 | J11: 12 | K11: 43 | L11: 7 | M11: 18 | N11: 13
A12: 95 年底 | B12: 298 | C12: 35 | D12: 79 | E12: 72 | F12: － | G12: 15 | H12: 95 年底 | I12: 21 | J12: 10 | K12: 43 | L12: 7 | M12: 20 | N12: 13
A13: 96 年底 | B13: 295 | C13: 35 | D13: 83 | E13: 73 | F13: － | G13: 14 | H13: 96 年底 | I13: 22 | J13: 10 | K13: 41 | L13: 7 | M13: 21 | N13: 12
A14: 97 年底 | B14: 297 | C14: 36 | D14: 87 | E14: 72 | F14: － | G14: 15 | H14: 97 年底 | I14: 22 | J14: 9 | K14: 40 | L14: 7 | M14: 21 | N14: 13
A15: 98 年底 | B15: 300 | C15: 37 | D15: 90 | E15: 70 | F15: － | G15: 14 | H15: 98 年底 | I15: 22 | J15: 9 | K15: 41 | L15: 7 | M15: 20 | N15: 14
A16: 99 年底 | B16: 302 | C16: 37 | D16: 89 | E16: 70 | F16: － | G16: 14 | H16: 99 年底 | I16: 22 | J16: 9 | K16: 42 | L16: 9 | M16: 20 | N16: 14
A17: 100 年底 | B17: 303 | C17: 39 | D17: 86 | E17: 71 | F17: － | G17: 14 | H17: 100 年底 | I17: 21 | J17: 6 | K17: 42 | L17: 9 | M17: 21 | N17: 16
A18: 101 年底 | B18: 307 | C18: 40 | D18: 89 | E18: 73 | G18: 14 | H18: 101 年底 | I18: 20 | J18: 5 | K18: 42 | L18: 9 | M18: 21 | N18: 16
A19: 說明：1.本表部分觀光遊憩區劃屬二個類別，惟總計已剔除重複列計部分。
A20: 2.國家公園、國家風景區、公營觀光區、縣級風景特定區及森林遊樂區須具
A21: (1)面積10公頃以上之主要遊憩區(2)遊客中心(服務站)或收費處所。
A22: 3.海水浴場、民營觀光區、寺廟及古蹟須具遊客中心(服務站)或收費處所。

Sheet 表36
A1: 表 36 觀光旅館概況
B2: 總 計 | E2: 國際觀光旅館 | H2: 一般觀光旅館
A3: 年 底 別 | B3: 家數 | C3: 房間數 | D3: 員工 | E3: 家數 | F3: 房間數 | G3: 員工 | H3: 家數 | I3: 房間數 | J3: 員工
D4: 人數 | G4: 人數 | J4: 人數
B5: (家) | C5: (間) | D5: (人) | E5: (家) | F5: (間) | G5: (人) | H5: (家) | I5: (間) | J5: (人)
A6: 80 年 | B6: =SUM(E6+H6) -> 94 | C6: 19786 | D6: =SUM(G6,J6) -> 19003 | E6: 46 | F6: 14538 | G6: 17205 | H6: 48 | I6: 5248 | J6: 1798
A7: 85 年底 | B7: 78 | C7: 20007 | D7: 21398 | E7: 54 | F7: 17232 | G7: 19839 | H7: 24 | I7: 2775 | J7: 1559
A8: 86 年底 | B8: 76 | C8: 19402 | D8: 21535 | E8: 54 | F8: 16845 | G8: 20089 | H8: 22 | I8: 2557 | J8: 1446
A9: 87 年底 | B9: =SUM(E9+H9) -> 77 | C9: 19409 | D9: 21855 | E9: 54 | F9: 16756 | G9: 20228 | H9: 23 | I9: 2653 | J9: 1627
A10: 88 年底 | B10: 80 | C10: 20274 | D10: 21953 | E10: 56 | F10: 17403 | G10: 20406 | H10: 24 | I10: 2871 | J10: 1547
A11: 89 年底 | B11: 80 | C11: 19928 | D11: 21854 | E11: 56 | F11: 17057 | G11: 20125 | H11: 24 | I11: 2871 | J11: 1729
A12: 90 年底 | B12: 83 | C12: 20789 | D12: 20978 | E12: 58 | F12: 17815 | G12: 19093 | H12: 25 | I12: 2974 | J12: 1885
A13: 91 年底 | B13: =SUM(E13+H13) -> 87 | C13: 21763 | D13: 21081 | E13: 62 | F13: 18790 | G13: 19221 | H13: 25 | I13: 2973 | J13: 1860
A14: 92 年底 | B14: 87 | C14: 21896 | D14: =SUM(G14,J14) -> 19853 | E14: 62 | F14: 18776 | G14: 18100 | H14: 25 | I14: 3120 | J14: 1753
A15: 93 年底 | B15: 87 | C15: 21744 | D15: =SUM(G15,J15) -> 19807 | E15: 61 | F15: 18705 | G15: 17952 | H15: 26 | I15: 3039 | J15: 1855
A16: 94 年底 | B16: 87 | C16: 21434 | D16: =SUM(G16,J16) -> 20160 | E16: 60 | F16: 18385 | G16: 18323 | H16: 27 | I16: 3049 | J16: 1837
A18: 95 年底 | B18: =SUM(E18+H18) -> 89 | C18: 21095 | D18: =SUM(G18,J18) -> 21069 | E18: 60 | F18: 17830 | G18: 18877 | H18: 29 | I18: 3265 | J18: 2192
A19: 96 年底 | B19: 90 | C19: 21171 | D19: 20568 | E19: 60 | F19: 17733 | G19: 18298 | H19: 30 | I19: 3438 | J19: 2270
A20: 97 年底 | B20: =SUM(E20+H20) -> 92 | C20: 21771 | D20: 20697 | E20: 61 | F20: 18092 | G20: 18441 | H20: 31 | I20: 3679 | J20: 2256
A21: 98 年底 | B21: 95 | C21: 22395 | D21: 20800 | E21: 64 | F21: 18645 | G21: 18411 | H21: 31 | I21: 3750 | J21: 2389
A22: 99 年底 | B22: =SUM(E22+H22) -> 104 | C22: =SUM(F22+I22) -> 24900 | D22: =SUM(G22,J22) -> 23935 | E22: 68 | F22: 19894 | G22: 20631 | H22: 36 | I22: 5006 | J22: 3304
A23: 100 年底 | B23: =SUM(E23+H23) -> 106 | C23: =SUM(F23+I23) -> 25333 | D23: =SUM(G23,J23) -> 24802 | E23: 70 | F23: 20382 | G23: 21333 | H23: 36 | I23: 4951 | J23: 3469
A24: 101 年底 | B24: =SUM(E24+H24) -> 108 | C24: =SUM(F24+I24) -> 25517 | D24: =SUM(G24,J24) -> 25645 | E24: 70 | F24: 20339 | G24: 21992 | H24: 38 | I24: 5178 | J24: 3653
A25: 說明：本表國際觀光及一般觀光旅館之定義係依據發展觀光條例第2條第七項及觀光旅館
A26: 業管理規則之規定，為對旅客提供住宿及旅館相關服務之營利事業。

Sheet 表37
A1: 表 37 觀光旅館按縣市別分
A2: 民國 101 年底
A3: 縣 市 別 | B3: 家 數 | D3: 房 間 數 | F3: 員 工 人 數
B4: ( 家 ) | D4: ( 間 ) | F4: ( 人 )
A5: 臺灣地區 | B5: =SUM(B6:B25) -> 108 | D5: =SUM(D6:D25) -> 25517 | F5: 25645
A6: 新北市 | B6: 5 | D6: 472 | F6: 436
A7: 臺北市 | B7: 39 | D7: 10353 | F7: 12074
A8: 臺中市 | B8: 7 | D8: 1473 | F8: 1585
A9: 臺南市 | B9: 6 | D9: 1241 | F9: 1187
A10: 高雄市 | B10: 11 | D10: 3854 | F10: 3573
A11: 宜蘭縣 | B11: 5 | D11: 823 | F11: 914
A12: 桃園縣 | B12: 8 | D12: 1915 | F12: 1426
A13: 新竹縣 | B13: 2 | D13: 775 | F13: 446
A14: 苗栗縣 | B14: 1 | D14: 107 | F14: 85
A15: 彰化縣 | B15: － | D15: － | F15: －
A16: 南投縣 | B16: 4 | D16: 453 | F16: 684
A17: 雲林縣 | B17: － | D17: － | F17: －
A18: 嘉義縣 | B18: 3 | D18: 236 | F18: 162
A19: 屏東縣 | B19: 3 | D19: 777 | F19: 649
A20: 臺東縣 | B20: 2 | D20: 459 | F20: 399
A21: 花蓮縣 | B21: 6 | D21: 1530 | F21: 1116
A22: 澎湖縣 | B22: 1 | D22: 78 | F22: 11
A23: 基隆市 | B23: 1 | D23: 141 | F23: 65
A24: 新竹市 | B24: 2 | D24: 465 | F24: 555
A25: 嘉義市 | B25: 2 | D25: 365 | F25: 278
A26: 金馬地區 | B26: － | D26: － | F26: －
A27: 金門縣 | B27: － | D27: － | F27: －
A28: 連江縣 | B28: － | D28: － | F28: －

Sheet 表38
A1: 表 38 一般旅館按縣市別分
A2: 年 底 別／ | B2: 家 數 ( 家 ) | D2: 房 間 數 ( 間 ) | F2: 員 工 人 數 ( 人 )
A3: 縣 市 別
A4: 91 年 | B4: 3208 | D4: 114070 | F4: 31017
A5: 92 年 | B5: 3199 | D5: 114957 | F5: 31237
A6: 93 年底 | B6: 2547 | D6: 93959 | F6: 27299
A7: 94 年底 | B7: 2561 | D7: 95131 | F7: 28561
A8: 95 年底 | B8: 2598 | D8: 99192 | F8: 32401
A9: 96 年底 | B9: 2645 | D9: 102326 | F9: 34658
A10: 97 年底 | B10: 2673 | D10: 105179 | F10: 37149
A11: 98 年底 | B11: 2680 | D11: 106863 | F11: 38124
A12: 99 年底 | B12: 2678 | D12: 108905 | F12: 39165
A13: 100 年底 | B13: 2692 | D13: 110772 | F13: 40193
A14: 101 年底 | B14: 2746 | D14: 114329 | F14: 42403
A15: 臺灣地區 | B15: 2722 | D15: 113109 | F15: 42148
A16: 新北市 | B16: 238 | D16: 9972 | F16: 4445
A17: 臺北市 | B17: 353 | D17: 16071 | F17: 6536
A18: 臺中市 | B18: 280 | D18: 13162 | F18: 5296
A19: 臺南市 | B19: 206 | D19: 7221 | F19: 2694
A20: 高雄市 | B20: 350 | D20: 14902 | F20: 4691
A21: 宜蘭縣 | B21: 186 | D21: 5631 | F21: 2227
A22: 桃園縣 | B22: 198 | D22: 8418 | F22: 3354
A23: 新竹縣 | B23: 36 | D23: 1249 | F23: 493
A24: 苗栗縣 | B24: 70 | D24: 2070 | F24: 743
A25: 彰化縣 | B25: 68 | D25: 1993 | F25: 755
A26: 南投縣 | B26: 107 | D26: 5207 | F26: 1773
A27: 雲林縣 | B27: 70 | D27: 2102 | F27: 758
A28: 嘉義縣 | B28: 61 | D28: 1976 | F28: 449
A29: 屏東縣 | B29: 105 | D29: 4324 | F29: 1919
A30: 臺東縣 | B30: 85 | D30: 4408 | F30: 1310
A31: 花蓮縣 | B31: 130 | D31: 5948 | F31: 1784
A32: 澎湖縣 | B32: 47 | D32: 2311 | F32: 595
A33: 基隆市 | B33: 30 | D33: 1223 | F33: 396
A34: 新竹市 | B34: 53 | D34: 2801 | F34: 1285
A35: 嘉義市 | B35: 49 | D35: 2120 | F35: 645
A36: 金馬地區 | B36: =SUM(B37:B38) -> 24 | D36: =SUM(D37:D38) -> 1220 | F36: =SUM(F37:F38) -> 255
A37: 金門縣 | B37: 22 | D37: 1165 | F37: 235
A38: 連江縣 | B38: 2 | D38: 55 | F38: 20
A39: 說明：本表一般旅館資料係依法辦妥公司登記或商業登記，並向地方主管機關(旅
A40: 館所在地縣市政府)申請登記，已領取旅館業登記證及旅館業專用核章之旅
A41: 館。

Sheet 表39
A1: 表 39 觀光旅館及一般旅館家數按房間規模分
C2: 民國 101 年底 | E2: 單位：家
A3: 房 間 數 | B3: 總 計 | C3: 國際觀光旅館 | D3: 一般觀光旅館 | E3: 一 般 旅 館
A4: 總 計 | B4: =SUM(B5:B11) -> 2854 | C4: =SUM(C5:C11) -> 70 | D4: =SUM(D5:D11) -> 38 | E4: =SUM(E5:E11) -> 2746
A5: 未滿 50 間 | B5: =SUM(C5:E5) -> 2042 | C5: － | D5: 4 | E5: 2038
A6: 50－99 間 | B6: 540 | C6: 4 | D6: 11 | E6: 525
A7: 100－199 間 | B7: 178 | C7: 14 | D7: 15 | E7: 149
A8: 200－299 間 | B8: 60 | C8: 27 | D8: 7 | E8: 26
A9: 300－399 間 | B9: 19 | C9: 12 | D9: 1 | E9: 6
A10: 400－499 間 | B10: 8 | C10: 7 | D10: － | E10: 1
A11: 500 間以上 | B11: 7 | C11: 6 | D11: － | E11: 1

Sheet 表40
A1: 表 40 旅 行 業 家 數
I2: 單位：家
A3: 年底別 | B3: 總 計
B4: 計 | C4: 新北市 | D4: 臺北市 | E4: 臺中市 | F4: 臺南市 | G4: 高雄市 | H4: 臺灣省 | I4: 金馬地區
A5: 86 年 | B5: =SUM(J5,B29,J29) -> 68 | D5: =SUM(L5,D29,L29) -> 50 | G5: =SUM(O5,G29,O29) -> 18 | H5: 7
A6: 87 年 | B6: =SUM(D6:I6) -> 78 | D6: =SUM(L6,D30,L30) -> 55 | G6: 16 | H6: 7 | I6: －
A7: 88年底 | B7: =SUM(D7:I7) -> 82 | D7: =SUM(L7,D31,L31) -> 58 | G7: 16 | H7: 8 | I7: －
A8: 89年底 | B8: =SUM(D8:I8) -> 86 | D8: =SUM(L8,D32,L32) -> 62 | G8: 16 | H8: 8 | I8: =SUM(I32,Q32) -> 0
A9: 90年底 | B9: =SUM(C9:I9) -> 1840 | C9: － | D9: 968 | E9: － | F9: － | G9: 234 | H9: 623 | I9: 15
A10: 91年底 | B10: =SUM(C10:I10) -> 1885 | C10: － | D10: 981 | E10: － | F10: － | G10: 238 | H10: 651 | I10: 15
A11: 92年底 | B11: 1923 | C11: － | D11: 985 | E11: － | F11: － | G11: 241 | H11: 683 | I11: 14
A12: 93年底 | B12: 2000 | C12: － | D12: 997 | E12: － | F12: － | G12: 246 | H12: 743 | I12: 14
A13: 94年底 | B13: 2052 | C13: － | D13: 1017 | E13: － | F13: － | G13: 246 | H13: 774 | I13: 15
A14: 95年底 | B14: 2060 | C14: － | D14: 1026 | E14: － | F14: － | G14: 246 | H14: 773 | I14: 15
A15: 96年底 | B15: 2178 | C15: － | D15: 1048 | E15: － | F15: － | G15: 247 | H15: 867 | I15: 16
A16: 97年底 | B16: 2230 | C16: － | D16: 1065 | E16: － | F16: － | G16: 249 | H16: 899 | I16: 17
A17: 98年底 | B17: 2227 | C17: － | D17: 1064 | E17: － | F17: － | G17: 247 | H17: 899 | I17: 17
A18: 99年底 | B18: 2241 | C18: － | D18: 1062 | E18: － | F18: － | G18: 240 | H18: 921 | I18: 18
A19: 100年底 | B19: 2312 | C19: =SUM(C43+C65+C90) -> 66 | D19: 1095 | E19: 233 | F19: 122 | G19: 267 | H19: =SUM(H65+H90) -> 509 | I19: 20
A20: 101年底 | B20: =SUM(C20:I20) -> 2405 | C20: 75 | D20: 1145 | E20: 241 | F20: 127 | G20: 274 | H20: =SUM(H66+H91) -> 522 | I20: 21
A21: 說明：1.自100年1月起，臺北縣、臺中市及臺南市改制直轄市，其中臺北縣更名為新北市。
A22: 2.金馬地區包含金門、連江二縣資料。
A25: 表40 旅 行 業 家 數 ( 續 1 )
I26: 單位：家
A27: 年底別 | B27: 綜 合 旅 行 業
B28: 計 | C28: 新北市 | D28: 臺北市 | E28: 臺中市 | F28: 臺南市 | G28: 高雄市 | H28: 臺灣省 | I28: 金馬地區
A29: 86年底 | B29: =SUM(D29:G29) -> 68 | D29: 50 | G29: 18 | H29: 7
A30: 87年底 | B30: =SUM(D30:I30) -> 78 | D30: 55 | G30: 16 | H30: 7 | I30: －
A31: 88年底 | B31: =SUM(D31:I31) -> 82 | D31: 58 | G31: 16 | H31: 8 | I31: －
A32: 89年底 | B32: 86 | D32: 62 | G32: 16 | H32: 8 | I32: －
A33: 90年底 | B33: 85 | C33: － | D33: 61 | E33: － | F33: － | G33: 18 | H33: 6 | I33: －
A34: 91年底 | B34: 84 | C34: － | D34: 60 | E34: － | F34: － | G34: 18 | H34: 6 | I34: －
A35: 92年底 | B35: 79 | C35: － | D35: 54 | E35: － | F35: － | G35: 18 | H35: 7 | I35: －
A36: 93年底 | B36: 82 | C36: － | D36: 57 | E36: － | F36: － | G36: 18 | H36: 7 | I36: －
A37: 94年底 | B37: 81 | C37: － | D37: 58 | E37: － | F37: － | G37: 19 | H37: 4 | I37: －
A38: 95年底 | B38: =SUM(D38:I38) -> 89 | C38: － | D38: 67 | E38: － | F38: － | G38: 19 | H38: 3 | I38: －
A39: 96年底 | B39: =SUM(D39:I39) -> 89 | C39: － | D39: 67 | E39: － | F39: － | G39: 19 | H39: 3 | I39: －
A40: 97年底 | B40: =SUM(D40:I40) -> 92 | C40: － | D40: 69 | E40: － | F40: － | G40: 19 | H40: 4 | I40: －
A41: 98年底 | B41: =SUM(D41:I41) -> 89 | C41: － | D41: 68 | E41: － | F41: － | G41: 17 | H41: 4 | I41: －
A42: 99年底 | B42: =SUM(D42:I42) -> 94 | C42: － | D42: 71 | E42: － | F42: － | G42: 17 | H42: 6 | I42: －
A43: 100年底 | B43: =SUM(C43:I43) -> 97 | C43: 2 | D43: 73 | E43: 2 | F43: 2 | G43: 18 | H43: － | I43: －
A44: 101年底 | B44: =SUM(C44:I44) -> 101 | C44: 1 | D44: 78 | E44: 3 | F44: 2 | G44: 17 | H44: － | I44: －
A45: 說明：綜合旅行業係經營旅遊批發業務，可委託甲種與乙種旅行社代為招攬其相關業務。
A47: 表 40 旅 行 業 家 數 ( 續 2 )
I48: 單位：家
A49: 年底別 | B49: 甲 種 旅 行 業
B50: 計 | C50: 新北市 | D50: 臺北市 | E50: 臺中市 | F50: 臺南市 | G50: 高雄市 | H50: 臺灣省 | I50: 金馬地區
A51: 86年底 | B51: =SUM(D51:G51) -> 1004 | D51: 817 | G51: 187 | H51: 431
A52: 87年底 | B52: =SUM(D52:I52) -> 1442 | D52: 811 | G52: 191 | H52: 440 | I52: －
A53: 88年底 | B53: 1553 | D53: 853 | G53: 197 | H53: 503 | I53: －
A54: 89年底 | B54: 1619 | D54: 893 | G54: 201 | H54: 521 | I54: 4
A55: 90年底 | B55: 1648 | C55: － | D55: 893 | E55: － | F55: － | G55: 200 | H55: 546 | I55: 9
A56: 91年底 | B56: 1698 | C56: － | D56: 911 | E56: － | F56: － | G56: 202 | H56: 574 | I56: 11
A57: 92年底 | B57: 1737 | C57: － | D57: 921 | E57: － | F57: － | G57: 205 | H57: 599 | I57: 12
A58: 93年底 | B58: 1803 | C58: － | D58: 931 | E58: － | F58: － | G58: 211 | H58: 648 | I58: 13
A59: 94年底 | B59: 1842 | C59: － | D59: 948 | E59: － | F59: － | G59: 213 | H59: 667 | I59: 14
A60: 95年底 | B60: 1896 | C60: － | D60: 963 | E60: － | F60: － | G60: 215 | H60: 704 | I60: 14
A61: 96年底 | B61: 1939 | C61: － | D61: 969 | E61: － | F61: － | G61: 216 | H61: 739 | I61: 15
A62: 97年底 | B62: 1989 | C62: － | D62: 986 | E62: － | F62: － | G62: 220 | H62: 767 | I62: 16
A63: 98年底 | B63: 1927 | C63: － | D63: 944 | E63: － | F63: － | G63: 210 | H63: 757 | I63: 16
A64: 99年底 | B64: =SUM(C64:I64) -> 1978 | C64: － | D64: 980 | E64: － | F64: － | G64: 209 | H64: 771 | I64: 18
A65: 100年底 | B65: =SUM(C65:I65) -> 2038 | C65: 53 | D65: 1008 | E65: 215 | F65: 114 | G65: 232 | H65: 396 | I65: 20
A66: 101年底 | B66: =SUM(C66:I66) -> 2121 | C66: 63 | D66: 1055 | E66: 223 | F66: 116 | G66: 239 | H66: 404 | I66: 21
A67: 說明：甲種旅行業係主要經營國內外旅遊，接受旅客委託代辦出、入境及簽證手續，及代客購
A68: 買國內外客票等業務；自98年3月14日起並可代理外國旅行業辦理聯絡、推廣、報價等
A69: 業務。
A72: 表 40 旅 行 業 家 數 ( 續完 )
I73: 單位：家
A74: 年底別 | B74: 乙 種 旅 行 業
B75: 計 | C75: 新北市 | D75: 臺北市 | E75: 臺中市 | F75: 臺南市 | G75: 高雄市 | H75: 臺灣省 | I75: 金馬地區
A76: 86年底 | B76: =SUM(D76:G76) -> 23 | D76: 11 | G76: 12 | H76: 61
A77: 87年底 | B77: =SUM(D77:I77) -> 107 | D77: 16 | G77: 15 | H77: 76 | I77: －
A78: 88年底 | B78: =SUM(D78:I78) -> 107 | D78: 15 | G78: 15 | H78: 77 | I78: －
A79: 89年底 | B79: 109 | D79: 16 | G79: 17 | H79: 66 | I79: 10
A80: 90年底 | B80: 107 | C80: － | D80: 14 | E80: － | F80: － | G80: 16 | H80: 71 | I80: 6
A81: 91年底 | B81: 103 | C81: － | D81: 10 | E81: － | F81: － | G81: 18 | H81: 71 | I81: 4
A82: 92年底 | B82: 107 | C82: － | D82: 10 | E82: － | F82: － | G82: 18 | H82: 77 | I82: 2
A83: 93年底 | B83: 115 | C83: － | D83: 9 | E83: － | F83: － | G83: 17 | H83: 88 | I83: 1
A84: 94年底 | B84: 129 | C84: － | D84: 11 | E84: － | F84: － | G84: 14 | H84: 103 | I84: 1
A85: 95年底 | B85: =SUM(D85:I85) -> 141 | C85: － | D85: 13 | E85: － | F85: － | G85: 14 | H85: 113 | I85: 1
A86: 96年底 | B86: =SUM(D86:I86) -> 150 | C86: － | D86: 12 | E86: － | F86: － | G86: 12 | H86: 125 | I86: 1
A87: 97年底 | B87: =SUM(D87:I87) -> 149 | C87: － | D87: 10 | E87: － | F87: － | G87: 10 | H87: 128 | I87: 1
A88: 98年底 | B88: =SUM(D88:I88) -> 146 | C88: － | D88: 9 | E88: － | F88: － | G88: 10 | H88: 127 | I88: －
A89: 99年底 | B89: =SUM(C89:I89) -> 169 | C89: － | D89: 11 | E89: － | F89: － | G89: 14 | H89: 144 | I89: －
A90: 100年底 | B90: =SUM(C90:I90) -> 177 | C90: 11 | D90: 14 | E90: 16 | F90: 6 | G90: 17 | H90: 113 | I90: －
A91: 101年底 | B91: =SUM(C91:I91) -> 183 | C91: 11 | D91: 12 | E91: 15 | F91: 9 | G91: 18 | H91: 118 | I91: －
A92: 說明：乙種旅行業係主要經營國內旅遊及代客購買國內客票等業務。

Sheet 表41
A1: 表 41 氣象測站概況
F2: 單位：站
A3: 年 底 別 | B3: 氣 象 站 | C3: 雷 達 站 | D3: 自動雨量站 | E3: 自動氣象站 | F3: 專 用 氣 象
F4: 觀 測 站
A5: 60 年底 | B5: 24 | C5: 2 | D5: － | E5: － | F5: 1137
A6: 70年底 | B6: 26 | C6: 2 | D6: － | E6: － | F6: 1072
A7: 80年底 | B7: 29 | C7: 2 | D7: 57 | E7: 27 | F7: 917
A8: 90 年底 | B8: 46 | C8: 3 | D8: 222 | E8: 102 | F8: 779
A9: 91 年底 | B9: 47 | C9: 4 | D9: 257 | E9: 105 | F9: 765
A10: 92 年底 | B10: 49 | C10: 4 | D10: 259 | E10: 103 | F10: 595
A11: 93 年底 | B11: 48 | C11: 4 | D11: 259 | E11: 115 | F11: 596
A12: 94 年底 | B12: 47 | C12: 4 | D12: 259 | E12: 117 | F12: 628
A13: 95 年底 | B13: 47 | C13: 4 | D13: 259 | E13: 117 | F13: 628
A14: 96 年底 | B14: 47 | C14: 4 | D14: 250 | E14: 135 | F14: 659
A15: 97 年底 | B15: 47 | C15: 4 | D15: 249 | E15: 137 | F15: 664
A16: 98 年底 | B16: 46 | C16: 4 | D16: 241 | E16: 153 | F16: 600
A17: 99 年底 | B17: 46 | C17: 4 | D17: 237 | E17: 159 | F17: 775
A18: 100 年底 | B18: 46 | C18: 4 | D18: 224 | E18: 210 | F18: 782
A19: 101 年底 | B19: 47 | C19: 4 | D19: 223 | E19: 210 | F19: 788
